TRANS No,Service Area Categorisation,Service Division Categorisation,Responsible Unit,Unit Code,Expenses Type,Expenses Sub Type,Expense Code,Narrative,Amount,Invoice Date,Cap/Rev,Supplier Name
1,Central Services,Corporate Mangmt not separated,Chief Exec's Office,A01001,Supplies & Services           ,Grants and Subscriptions      ,DJ04,Subscriptions                           ,"11,500.00",02/01/2015,REV,LGIU                          
2,Central Services,SupS Chief Execs,Local Involvement Network,A01039,Third Party Payments          ,Private Contractors           ,EH10,Contract Payments                       ,"10,423.75",05/01/2015,REV,MERTON VOLUNTARY SERV COUNCIL 
3,Central Services,SupS Chief Execs,Local Involvement Network,A01039,Third Party Payments          ,Private Contractors           ,EH10,Contract Payments                       ,"3,475.00",09/01/2015,REV,VOICEABILITY                  
4,Central Services,SupS Chief Execs,Local Involvement Network,A01039,Third Party Payments          ,Private Contractors           ,EH10,Contract Payments                       ,"10,423.75",01/12/2014,REV,MERTON VOLUNTARY SERV COUNCIL 
5,Cultural Env Reg&Plan Services,Comm Safety (Crime Reduction),CCTV,A01200,Supplies & Services           ,Equip Furniture/Materials     ,DA01,Equipment - R & M                       ,"3,448.84",11/12/2014,REV,EUROVIA INFRASTRUCTURE LTD    
6,Cultural Env Reg&Plan Services,Comm Safety (Crime Reduction),CCTV,A01200,Supplies & Services           ,Services                      ,DF57,Consulting Engineers Fees               ,"7,526.78",09/12/2014,REV,GLOBAL MSC SECURITY LTD       
7,Cultural Env Reg&Plan Services,Comm Safety (Crime Reduction),CCTV,A01200,Supplies & Services           ,Comms and Computing           ,DG15,Network Maintenance                     ,"10,401.84",02/01/2015,REV,BT REDCARE                    
8,Central Services,SupS Chief Execs,NON-STATUTORY MARKETING & COMM,A02019,Supplies & Services           ,Services                      ,DF02,Misc Advertising/Publicity              ,500,06/01/2015,REV,NEW FAMILY SOCIAL             
9,Central Services,SupS Chief Execs,NON-STATUTORY MARKETING & COMM,A02019,Supplies & Services           ,Services                      ,DF02,Misc Advertising/Publicity              ,618.5,06/11/2014,REV,ACHIEVING FOR CHILDREN LTD    
10,Central Services,SupS Chief Execs,NON-STATUTORY MARKETING & COMM,A02019,Supplies & Services           ,Services                      ,DF35,Graphic Design                          ,"3,700.00",12/01/2015,REV,THE BIG IDEA 
11,Central Services,SupS Chief Execs,NON-STATUTORY MARKETING & COMM,A02019,Supplies & Services           ,Services                      ,DF35,Graphic Design                          ,945,19/12/2014,REV,DOMINO 4 LIMITED              
12,Central Services,SupS Chief Execs,Democratic Services,A02023,Supplies & Services           ,Expenses                      ,DH79,INCOMING MAYOR (MAY-MARCH)              ,920,09/12/2014,REV,AAA BADGES OF QUALITY         
13,Central Services,SupS Chief Execs,Democratic Services,A02023,Supplies & Services           ,Expenses                      ,DH79,INCOMING MAYOR (MAY-MARCH)              ,780,12/01/2015,REV,AAA BADGES OF QUALITY         
14,Central Services,SupS Chief Execs,Press and Public Relations.,A02026,Supplies & Services           ,Expenses                      ,DH21,Christma Lights                         ,"5,299.00",20/01/2015,REV,MAY GURNEY LTD T/A CARTLEDGE  
15,Central Services,SupS Chief Execs,Press and Public Relations.,A02026,Supplies & Services           ,Expenses                      ,DH21,Christma Lights                         ,518.64,20/01/2015,REV,MAY GURNEY LTD T/A CARTLEDGE  
16,Central Services,SupS Chief Execs,Press and Public Relations.,A02026,Supplies & Services           ,Expenses                      ,DH21,Christma Lights                         ,"12,500.00",22/12/2014,REV,MAY GURNEY LTD T/A CARTLEDGE  
17,Central Services,SupS Chief Execs,Press and Public Relations.,A02026,Supplies & Services           ,Expenses                      ,DH21,Christma Lights                         ,"1,037.28",20/01/2015,REV,MAY GURNEY LTD T/A CARTLEDGE  
18,Central Services,SupS Chief Execs,Press and Public Relations.,A02026,Supplies & Services           ,Expenses                      ,DH21,Christma Lights                         ,500,06/01/2015,REV,FM CONWAY LTD                 
19,Central Services,SupS Chief Execs,Press and Public Relations.,A02026,Supplies & Services           ,Expenses                      ,DH21,Christma Lights                         ,"4,860.00",20/01/2015,REV,MAY GURNEY LTD T/A CARTLEDGE  
20,CS -Oth Operating Inc & Expend,T/A Corporate Services,Prtng Jobs - Ext Agncy,A03041,Supplies & Services           ,Prntng Stnry Gen Off Exp      ,DE01,External Printing                       ,539,15/01/2015,REV,COMMERCIAL COLOUR PRESS       
21,Central Services,SupS Comm and Member Services,COMMUNITY ENGAGAMENT,A04057,Supplies & Services           ,Services                      ,DF32,Customer Survey                         ,"22,625.00",07/01/2015,REV,TNS UK LTD                    
22,Central Services,SupS Comm and Member Services,PROGRAMME OFFICE,A04068,Employees                     ,Indirect Employee Expenses    ,AB02,RECRUITMENT ADVERTS                     ,"1,440.00",31/12/2014,REV,PENNA COMMUNICATIONS (NO 2 A/C
23,Central Services,SupS Comm and Member Services,PROGRAMME OFFICE,A04068,Employees                     ,Indirect Employee Expenses    ,AB02,RECRUITMENT ADVERTS                     ,"2,940.00",13/01/2015,REV,PENNA COMMUNICATIONS (NO 2 A/C
24,Central Services,Grants - Voluntary Groups,VOLUNTARY SECTOR COORDINATION,A04082,Supplies & Services           ,Grants and Subscriptions      ,DJ01,Grants                                  ,899.58,16/12/2014,REV,SOUTH THAMES COLLEGE          
25,Central Services,Grants - Voluntary Groups,VOLUNTARY SECTOR COORDINATION,A04082,Supplies & Services           ,Grants and Subscriptions      ,DJ04,Subscriptions                           ,"54,763.00",06/01/2015,REV,LONDON COUNCILS               
26,Central Services,SupS Comm and Member Services,COMMERICIAL SERVICES,A04085,Employees                     ,Direct Employee Expenses      ,AA17,Agency Staff & Casual Paymts            ,"2,034.00",21/01/2015,REV,HAYS RECRUITING EXPERTS       
27,Central Services,SupS Comm and Member Services,COMMERICIAL SERVICES,A04085,Employees                     ,Direct Employee Expenses      ,AA17,Agency Staff & Casual Paymts            ,"2,712.00",24/12/2014,REV,HAYS RECRUITING EXPERTS       
28,Central Services,SupS Comm and Member Services,COMMERICIAL SERVICES,A04085,Employees                     ,Direct Employee Expenses      ,AA17,Agency Staff & Casual Paymts            ,"16,565.22",10/12/2014,REV,V4 SERVICES LIMITED           
29,Central Services,SupS Comm and Member Services,COMMERICIAL SERVICES,A04085,Employees                     ,Direct Employee Expenses      ,AA17,Agency Staff & Casual Paymts            ,"3,390.00",14/01/2015,REV,HAYS RECRUITING EXPERTS       
30,Central Services,SupS Comm and Member Services,COMMERICIAL SERVICES,A04085,Employees                     ,Direct Employee Expenses      ,AA17,Agency Staff & Casual Paymts            ,"2,034.00",07/01/2015,REV,HAYS RECRUITING EXPERTS       
31,Central Services,SupS Comm and Member Services,COMMERICIAL SERVICES,A04085,Employees                     ,Direct Employee Expenses      ,AA17,Agency Staff & Casual Paymts            ,"16,350.00",11/12/2014,REV,V4 SERVICES LIMITED           
32,Central Services,SupS Comm and Member Services,COMMERICIAL SERVICES,A04085,Employees                     ,Direct Employee Expenses      ,AA17,Agency Staff & Casual Paymts            ,678,07/01/2015,REV,HAYS RECRUITING EXPERTS       
33,Highways & Transport Services,On-street parking,Blue Badge Service,A04088,Supplies & Services           ,Comms and Computing           ,DG15,Network Maintenance                     ,876.27,05/01/2015,REV,NORTHGATE  INFORMATION SOLUT. 
34,Highways & Transport Services,On-street parking,Blue Badge Service,A04088,Supplies & Services           ,Comms and Computing           ,DG15,Network Maintenance                     ,867.1,01/12/2014,REV,NORTHGATE INFORMATION SOLUTION
35,Central Services,SupS Health & Safety,Learning and Development,B06146,Employees                     ,Indirect Employee Expenses    ,AB57,EXTERNAL TRAINING COSTS                 ,"1,500.00",13/11/2014,REV,BEXLEY COUNCIL                
36,Central Services,SupS Health & Safety,Learning and Development,B06146,Employees                     ,Indirect Employee Expenses    ,AB57,EXTERNAL TRAINING COSTS                 ,"2,000.00",02/12/2014,REV,JUST IT TRAINING LTD          
37,Central Services,SupS Health & Safety,Learning and Development,B06146,Employees                     ,Indirect Employee Expenses    ,AB57,EXTERNAL TRAINING COSTS                 ,"2,250.00",18/03/2014,REV,TUTORCARE LTD                 
38,Central Services,SupS Health & Safety,Learning and Development,B06146,Employees                     ,Indirect Employee Expenses    ,AB57,EXTERNAL TRAINING COSTS                 ,550,17/01/2015,REV,MSH TRAINING & CONSULTANCY LTD
39,Central Services,SupS Health & Safety,Learning and Development,B06146,Employees                     ,Indirect Employee Expenses    ,AB57,EXTERNAL TRAINING COSTS                 ,"2,000.00",19/12/2014,REV,WIMBLETECH                    
40,Central Services,SupS Health & Safety,Learning and Development,B06146,Employees                     ,Indirect Employee Expenses    ,AB57,EXTERNAL TRAINING COSTS                 ,"1,550.00",07/01/2015,REV,UNIVERSITY OF WESTMINSTER     
41,Central Services,SupS Health & Safety,Learning and Development,B06146,Employees                     ,Indirect Employee Expenses    ,AB57,EXTERNAL TRAINING COSTS                 ,"2,285.20",01/11/2014,REV,WOLTERS KLUWER (UK) LTD       
42,Central Services,SupS Health & Safety,Learning and Development,B06146,Employees                     ,Indirect Employee Expenses    ,AB57,EXTERNAL TRAINING COSTS                 ,899,19/01/2015,REV,REDACTED
43,Central Services,SupS Health & Safety,Learning and Development,B06146,Employees                     ,Indirect Employee Expenses    ,AB57,EXTERNAL TRAINING COSTS                 ,"2,350.00",02/10/2014,REV,REDACTED
44,Central Services,SupS Health & Safety,Learning and Development,B06146,Employees                     ,Indirect Employee Expenses    ,AB57,EXTERNAL TRAINING COSTS                 ,550,22/12/2014,REV,MSH TRAINING & CONSULTANCY LTD
45,Central Services,SupS Health & Safety,Learning and Development,B06146,Employees                     ,Indirect Employee Expenses    ,AB57,EXTERNAL TRAINING COSTS                 ,900,21/11/2014,REV,REDACTED
46,Central Services,SupS Health & Safety,Learning and Development,B06146,Supplies & Services           ,Expenses                      ,DH02,Conferences                             ,"1,590.00",11/12/2014,REV,SURREY COUNTY COUNCIL         
47,Central Services,SupS Health & Safety,Departmental HR - CSF,B06148,Employees                     ,Indirect Employee Expenses    ,AB02,Recruitment Adverts                     ,500,27/05/2014,REV,LONDON BOROUGH OF SUTTON      
142,,,Laptops for Other Staff                 ,CC018EB,Vehicles Plant Equipment and Machinery,,D3,Equipment                               ,"1,866.84",04/12/2014,CAP,SPECIALIST COMPUTER CENT. PLC 
143,,,Disabled Facilities Grant               ,CC022RA,Other Capital Expenditure,,E1,Grants                                  ,"2,446.87",07/01/2015,CAP,ABLE 2 OCCUP.THERAPY SERV.LTD 
144,,,Disabled Facilities Grant               ,CC022RA,Other Capital Expenditure,,E1,Grants                                  ,"2,404.14",26/01/2015,CAP,STAYING FIRST                 
145,,,Disabled Facilities Grant               ,CC022RA,Other Capital Expenditure,,E1,Grants                                  ,"2,036.01",26/01/2015,CAP,CBS ADAPTATION                
146,,,Disabled Facilities Grant               ,CC022RA,Other Capital Expenditure,,E1,Grants                                  ,"4,674.00",26/01/2015,CAP,W C EVANS LTD                 
147,,,Disabled Facilities Grant               ,CC022RA,Other Capital Expenditure,,E1,Grants                                  ,"2,439.75",07/01/2015,CAP,ABLE 2 OCCUP.THERAPY SERV.LTD 
148,,,Disabled Facilities Grant               ,CC022RA,Other Capital Expenditure,,E1,Grants                                  ,"1,962.36",26/01/2015,CAP,STAYING FIRST                 
149,,,Disabled Facilities Grant               ,CC022RA,Other Capital Expenditure,,E1,Grants                                  ,"4,674.00",26/01/2015,CAP,W C EVANS LTD                 
150,,,Disabled Facilities Grant               ,CC022RA,Other Capital Expenditure,,E1,Grants                                  ,"14,396.30",07/01/2015,CAP,W C EVANS LTD                 
151,,,Disabled Facilities Grant               ,CC022RA,Other Capital Expenditure,,E1,Grants                                  ,"6,003.63",26/01/2015,CAP,T BROWN LTD                   
152,,,Disabled Facilities Grant               ,CC022RA,Other Capital Expenditure,,E1,Grants                                  ,"2,170.00",26/01/2015,CAP,TLC STAIRLIFTS                
153,,,Colliers Wd- Regeneration Fund          ,CE006FB,Other Capital Expenditure,,E4,TFL Other                               ,"1,000.00",22/01/2015,CAP,GORT SCOTT LTD                
154,,,Mitcham Major schemes                   ,CE006FD,New Construction Conversion and Renovation,,B5,Suppliers - Site works                  ,"15,768.40",19/11/2014,CAP,GILLETT&JOHNSTON (CROYDON) LTD
155,,,Parks Investment                        ,CE013SA,New Construction Conversion and Renovation,,B4,Contractor - Site works                 ,"2,488.00",09/01/2015,CAP,THE CRESCENT FENCING CO.      
156,,,Parks Investment                        ,CE013SA,New Construction Conversion and Renovation,,B4,Contractor - Site works                 ,550,07/01/2015,CAP,PARK LEISURE LTD              
157,,,Parks Investment                        ,CE013SA,New Construction Conversion and Renovation,,B4,Contractor - Site works                 ,"2,687.59",06/11/2014,CAP,ALPHA RAIL LTD                
158,,,Parks Investment                        ,CE013SA,New Construction Conversion and Renovation,,B4,Contractor - Site works                 ,"1,500.00",01/10/2014,CAP,TAYLOR BUILDING COMPANY LTD   
159,,,Parks Investment                        ,CE013SA,New Construction Conversion and Renovation,,B4,Contractor - Site works                 ,"9,640.00",06/01/2015,CAP,TAYLOR BUILDING COMPANY LTD   
160,,,Parks Investment                        ,CE013SA,New Construction Conversion and Renovation,,B4,Contractor - Site works                 ,"12,357.75",07/01/2015,CAP,PARK LEISURE LTD              
161,,,Parks Investment                        ,CE013SA,New Construction Conversion and Renovation,,B4,Contractor - Site works                 ,"1,490.00",10/12/2014,CAP,JUST METAL UK LTD             
162,,,Restoration of South Park Gdns          ,CE015CA,New Construction Conversion and Renovation,,B4,Contractor - Site works                 ,"43,049.90",23/12/2014,CAP,MOY CONSTRUCTION CO LTD       
163,,,Restoration of South Park Gdns          ,CE015CA,New Construction Conversion and Renovation,,B4,Contractor - Site works                 ,"42,688.00",23/12/2014,CAP,MOY CONSTRUCTION CO LTD       
164,,,B488 Landscape Dundonald Rec G          ,CE016CA,New Construction Conversion and Renovation,,B4,Contractor - Site works                 ,"6,930.00",07/01/2015,CAP,PARK LEISURE LTD              
165,,,B650 Rowan Road Park Improvmnt          ,CE023CB,New Construction Conversion and Renovation,,B4,Contractor - Site works                 ,"3,060.00",07/01/2015,CAP,PARK LEISURE LTD              
166,,,Borough Roads Maintenance               ,CE026FA,New Construction Conversion and Renovation,,B4,Contractor - Site works                 ,"28,158.33",19/12/2014,CAP,FM CONWAY LTD                 
167,,,Borough Roads Maintenance               ,CE026FA,New Construction Conversion and Renovation,,B4,Contractor - Site works                 ,"6,082.60",12/01/2015,CAP,FM CONWAY LTD                 
168,,,Borough Roads Maintenance               ,CE026FA,New Construction Conversion and Renovation,,B4,Contractor - Site works                 ,"22,173.75",12/01/2015,CAP,FM CONWAY LTD                 
169,,,Borough Roads Maintenance               ,CE026FA,New Construction Conversion and Renovation,,B4,Contractor - Site works                 ,"25,000.00",12/01/2015,CAP,FM CONWAY LTD                 
170,,,Borough Roads Maintenance               ,CE026FA,New Construction Conversion and Renovation,,B4,Contractor - Site works                 ,"38,680.57",12/01/2015,CAP,FM CONWAY LTD                 
171,,,Borough Roads Maintenance               ,CE026FA,New Construction Conversion and Renovation,,B4,Contractor - Site works                 ,"2,516.68",19/12/2014,CAP,FM CONWAY LTD                 
172,,,Borough Roads Maintenance               ,CE026FA,New Construction Conversion and Renovation,,B4,Contractor - Site works                 ,"40,000.00",19/12/2014,CAP,FM CONWAY LTD                 
173,,,Borough Roads Maintenance               ,CE026FA,New Construction Conversion and Renovation,,B4,Contractor - Site works                 ,"2,132.25",21/01/2015,CAP,FM CONWAY LTD                 
174,,,Borough Roads Maintenance               ,CE026FA,New Construction Conversion and Renovation,,B4,Contractor - Site works                 ,"25,112.69",19/12/2014,CAP,FM CONWAY LTD                 
175,,,Borough Roads Maintenance               ,CE026FA,New Construction Conversion and Renovation,,B4,Contractor - Site works                 ,"55,000.00",21/01/2015,CAP,FM CONWAY LTD                 
176,,,Severe Weather Road Maintenanc          ,CE026FD,New Construction Conversion and Renovation,,B4,Contractor - Site works                 ,"68,270.97",19/12/2014,CAP,FM CONWAY LTD                 
177,,,Severe Weather Road Maintenanc          ,CE026FD,New Construction Conversion and Renovation,,B4,Contractor - Site works                 ,"40,868.43",06/01/2015,CAP,FM CONWAY LTD                 
178,,,Repairs to Footways                     ,CE029FA,New Construction Conversion and Renovation,,B4,Contractor - Site works                 ,"7,000.00",12/01/2015,CAP,FM CONWAY LTD                 
179,,,Repairs to Footways                     ,CE029FA,New Construction Conversion and Renovation,,B4,Contractor - Site works                 ,"24,000.00",12/01/2015,CAP,FM CONWAY LTD                 
180,,,Repairs to Footways                     ,CE029FA,New Construction Conversion and Renovation,,B4,Contractor - Site works                 ,"2,000.00",01/12/2014,CAP,THE CRESCENT FENCING CO.      
181,,,Repairs to Footways                     ,CE029FA,New Construction Conversion and Renovation,,B4,Contractor - Site works                 ,"5,000.00",12/01/2015,CAP,FM CONWAY LTD                 
182,,,Leisure Centre Plant & Machine          ,CE038MA,New Construction Conversion and Renovation,,B4,Contractor - Site works                 ,"1,945.00",07/01/2015,CAP,REDACTED
183,,,Leisure Centre Plant & Machine          ,CE038MA,New Construction Conversion and Renovation,,B4,Contractor - Site works                 ,500,12/12/2014,CAP,SALTASH ENTERPRISES LTD       
184,,,Leisure Centre Plant & Machine          ,CE038MA,New Construction Conversion and Renovation,,B4,Contractor - Site works                 ,"6,288.00",12/01/2015,CAP,GREENWICH LEISURE LTD         
185,,,Big Lottery Play Areas                  ,CE044MA,New Construction Conversion and Renovation,,B4,Contractor - Site works                 ,"1,200.00",11/12/2014,CAP,KC DRAINS LTD                 
186,,,Big Lottery Play Areas                  ,CE044MA,New Construction Conversion and Renovation,,B4,Contractor - Site works                 ,"2,350.00",18/12/2014,CAP,MORTON FAIRVIEW ELEC SERVICES 
187,,,Morden Leisure Centre                   ,CE045AA,New Construction Conversion and Renovation,,B1,Consultants Fees D&S Structure          ,"1,320.00",16/01/2015,CAP,MATERIALS SCIENCE CONS. LTD   
188,,,Morden Leisure Centre                   ,CE045AA,New Construction Conversion and Renovation,,B1,Consultants Fees D&S Structure          ,"1,190.00",19/12/2014,CAP,PATRICK STILEMAN LTD          
189,,,Morden Leisure Centre                   ,CE045AA,New Construction Conversion and Renovation,,B2,Site Surveys D&S Structure              ,"3,056.00",19/12/2014,CAP,ASHDOWN SITE INVESTIGATION    
190,,,St Marks Academy Flood Lights           ,CE056CA,New Construction Conversion and Renovation,,B1,Consultants Fees D&S Structure          ,"1,500.00",15/01/2015,CAP,MATERIALS SCIENCE CONS. LTD   
191,,,Mitcham Town Centre Imprvmnt            ,CE061FE,New Construction Conversion and Renovation,,B4,Contractor - Site works                 ,"8,665.58",12/01/2015,CAP,FM CONWAY LTD                 
192,,,Street Tree Programme                   ,CE067FA,New Construction Conversion and Renovation,,B5,Suppliers - Site works                  ,"3,316.50",06/01/2015,CAP,BARCHAM TREES P.L.C.          
193,,,Street Lighting Replacement Pr          ,CE068FA,New Construction Conversion and Renovation,,B4,Contractor - Site works                 ,"1,058.66",20/01/2015,CAP,MAY GURNEY LTD T/A CARTLEDGE  
194,,,Street Lighting Replacement Pr          ,CE068FA,New Construction Conversion and Renovation,,B6,Other Costs - Site works                ,"1,124.00",07/01/2015,CAP,UK POWER NETWORKS (OPERATIONS)
195,,,Street Lighting Replacement Pr          ,CE068FA,New Construction Conversion and Renovation,,B6,Other Costs - Site works                ,578,12/01/2015,CAP,UK POWER NETWORKS (OPERATIONS)
196,,,Street Lighting Replacement Pr          ,CE068FA,New Construction Conversion and Renovation,,B6,Other Costs - Site works                ,786,12/01/2015,CAP,UK POWER NETWORKS (OPERATIONS)
197,,,Street Lighting Replacement Pr          ,CE068FA,New Construction Conversion and Renovation,,B6,Other Costs - Site works                ,786,12/01/2015,CAP,UK POWER NETWORKS (OPERATIONS)
198,,,Street Lighting Replacement Pr          ,CE068FA,New Construction Conversion and Renovation,,B6,Other Costs - Site works                ,"1,176.00",12/01/2015,CAP,UK POWER NETWORKS (OPERATIONS)
199,,,Street Lighting Replacement Pr          ,CE068FA,New Construction Conversion and Renovation,,B6,Other Costs - Site works                ,"1,060.00",07/01/2015,CAP,UK POWER NETWORKS (OPERATIONS)
200,,,Replacement of Fleet Vehicles           ,CE082EA,Vehicles Plant Equipment and Machinery,,D1,Vehicles                                ,620.83,23/12/2014,CAP,COMMERCIAL SERV'S TRADING LTD 
201,,,Replacement of Fleet Vehicles           ,CE082EA,Vehicles Plant Equipment and Machinery,,D1,Vehicles                                ,"11,453.00",23/12/2014,CAP,COMMERCIAL SERV'S TRADING LTD 
202,,,Alley Gating Scheme - Fly Tip           ,CE087FA,Other Capital Expenditure,,E1,Grants                                  ,"1,012.50",21/01/2015,CAP,W C EVANS LTD                 
203,,,Cycle access/parking                    ,CE104FG,New Construction Conversion and Renovation,,B4,Contractor - Site works                 ,"10,000.00",06/01/2015,CAP,FM CONWAY LTD                 
204,,,Mitcham Town Centre                     ,CE104FP,New Construction Conversion and Renovation,,B2,Site Surveys D&S Structure              ,"6,933.33",19/01/2015,CAP,LIVIS LIMITED                 
205,,,Mitcham Town Centre                     ,CE104FP,New Construction Conversion and Renovation,,B6,Other Costs - Site works                ,"1,156.00",12/01/2015,CAP,UK POWER NETWORKS (OPERATIONS)
206,,,Pollution PH Funding                    ,CE110SJ,New Construction Conversion and Renovation,,B4,Contractor - Site works                 ,808.5,04/12/2014,CAP,ANTHOS PLANTS LTD             
207,,,Pollution PH Funding                    ,CE110SJ,New Construction Conversion and Renovation,,B5,Suppliers - Site works                  ,643.66,09/12/2014,CAP,RICHMONDS                     
208,,,Pollution PH Funding                    ,CE110SJ,New Construction Conversion and Renovation,,B5,Suppliers - Site works                  ,655.4,19/11/2014,CAP,BARCHAM TREES P.L.C.          
209,,,Pollution PH Funding                    ,CE110SJ,New Construction Conversion and Renovation,,B5,Suppliers - Site works                  ,"1,188.00",19/11/2014,CAP,BARCHAM TREES P.L.C.          
210,,,Machinery Grounds Maintenance           ,CE110SK,Vehicles Plant Equipment and Machinery,,D3,Equipment                               ,"23,750.00",15/01/2015,CAP,RJW MACHINERY SALES LTD       
211,,,Civic Centre                            ,CF001AA,Vehicles Plant Equipment and Machinery,,D3,Equipment                               ,"1,850.00",22/12/2014,CAP,CAD-CAPTURE                   
212,,,Civic Centre refurbishment              ,CF001AB,Vehicles Plant Equipment and Machinery,,D3,Equipment                               ,674.16,31/12/2014,CAP,NEOPOST FINANCE LIMITED       
213,,,Civic Centre refurbishment              ,CF001AB,Vehicles Plant Equipment and Machinery,,D3,Equipment                               ,"1,805.00",22/12/2014,CAP,CAD-CAPTURE                   
214,,,Civic Centre refurbishment              ,CF001AB,Vehicles Plant Equipment and Machinery,,D3,Equipment                               ,"2,206.48",31/12/2014,CAP,NEOPOST FINANCE LIMITED       
215,,,Civic Centre refurbishment              ,CF001AB,Vehicles Plant Equipment and Machinery,,D3,Equipment                               ,"3,222.06",31/12/2014,CAP,NEOPOST FINANCE LIMITED       
216,,,Civic Centre refurbishment              ,CF001AB,Vehicles Plant Equipment and Machinery,,D3,Equipment                               ,"1,776.00",03/12/2014,CAP,SPECIALIST COMPUTER CENT. PLC 
217,,,Civic Centre refurbishment              ,CF001AB,Vehicles Plant Equipment and Machinery,,D3,Equipment                               ,577.61,31/12/2014,CAP,NEOPOST FINANCE LIMITED       
218,,,Civic Centre refurbishment              ,CF001AB,Vehicles Plant Equipment and Machinery,,D3,Equipment                               ,934.11,31/12/2014,CAP,NEOPOST FINANCE LIMITED       
219,,,Repair and Maintenance                  ,CF004SA,New Construction Conversion and Renovation,,B4,Contractor - Site works                 ,"17,720.00",08/01/2015,CAP,SALTASH ENTERPRISES LTD       
220,,,Repair and Maintenance                  ,CF004SA,New Construction Conversion and Renovation,,B4,Contractor - Site works                 ,"30,798.75",09/01/2015,CAP,SALTASH ENTERPRISES LTD       
221,,,Repair and Maintenance                  ,CF004SA,New Construction Conversion and Renovation,,B4,Contractor - Site works                 ,"10,056.00",12/01/2015,CAP,MAGUIRE BROTHERS LTD          
222,,,Repair and Maintenance                  ,CF004SA,New Construction Conversion and Renovation,,B4,Contractor - Site works                 ,"2,338.00",08/01/2015,CAP,SALTASH ENTERPRISES LTD       
223,,,Repair and Maintenance                  ,CF004SA,New Construction Conversion and Renovation,,B4,Contractor - Site works                 ,"12,340.00",06/01/2015,CAP,SALTASH ENTERPRISES LTD       
224,,,Repair and Maintenance                  ,CF004SA,New Construction Conversion and Renovation,,B4,Contractor - Site works                 ,"4,031.25",09/01/2015,CAP,SALTASH ENTERPRISES LTD       
225,,,Repair and Maintenance                  ,CF004SA,New Construction Conversion and Renovation,,B4,Contractor - Site works                 ,"13,995.00",08/01/2015,CAP,SALTASH ENTERPRISES LTD       
226,,,St Mary's expansion                     ,CS008RA,New Construction Conversion and Renovation,,B1,Consultants Fees D&S Structure          ,"4,152.00",07/01/2015,CAP,NPS PROPERTY CONSULTANTS LTD  
227,,,St Mary's expansion                     ,CS008RA,New Construction Conversion and Renovation,,B4,Contractor - Site works                 ,"91,669.00",20/01/2015,CAP,MANSELL CONSTRUCTION SERVICES 
228,,,Hillcross School Expansion              ,CS020AC,New Construction Conversion and Renovation,,B1,Consultants Fees D&S Structure          ,"1,925.00",27/01/2015,CAP,STACE LLP                     
229,,,Hillcross School Expansion              ,CS020AC,New Construction Conversion and Renovation,,B1,Consultants Fees D&S Structure          ,"1,925.00",23/12/2014,CAP,STACE LLP                     
230,,,Hillcross School Expansion              ,CS020AC,New Construction Conversion and Renovation,,B4,Contractor - Site works                 ,"421,796.94",05/01/2014,CAP,MANSELL CONSTRUCTION SERVICES 
231,,,Merton Abbey Temp Accomodation          ,CS022AC,New Construction Conversion and Renovation,,B1,Consultants Fees D&S Structure          ,824.4,22/12/2014,CAP,PELLINGS LLP                  
232,,,Merton Abbey Temp Accomodation          ,CS022AC,New Construction Conversion and Renovation,,B1,Consultants Fees D&S Structure          ,"4,058.44",24/12/2014,CAP,PELLINGS LLP                  
233,,,Merton Abbey Temp Accomodation          ,CS022AC,New Construction Conversion and Renovation,,B2,Site Surveys D&S Structure              ,717.5,22/12/2014,CAP,KEEGANS LIMITED               
234,,,Merton Abbey Temp Accomodation          ,CS022AC,New Construction Conversion and Renovation,,B4,Contractor - Site works                 ,"401,106.83",22/12/2014,CAP,MANSELL CONSTRUCTION SERVICES 
235,,,Pelham School Expansion                 ,CS023AC,New Construction Conversion and Renovation,,B1,Consultants Fees D&S Structure          ,"7,215.00",06/01/2015,CAP,HAVERSTOCK ASSOCIATES LLP     
236,,,Pelham School Expansion                 ,CS023AC,New Construction Conversion and Renovation,,B1,Consultants Fees D&S Structure          ,"1,975.00",23/12/2014,CAP,STACE LLP                     
237,,,Pelham School Expansion                 ,CS023AC,New Construction Conversion and Renovation,,B1,Consultants Fees D&S Structure          ,"1,975.00",27/01/2015,CAP,STACE LLP                     
238,,,Pelham School Expansion                 ,CS023AC,New Construction Conversion and Renovation,,B4,Contractor - Site works                 ,"183,636.22",05/01/2015,CAP,MANSELL CONSTRUCTION SERVICES 
239,,,Dundonald expansion                     ,CS031AC,New Construction Conversion and Renovation,,B1,Consultants Fees D&S Structure          ,"17,267.00",06/01/2015,CAP,HAVERSTOCK ASSOCIATES LLP     
240,,,Dundonald expansion                     ,CS031AC,New Construction Conversion and Renovation,,B1,Consultants Fees D&S Structure          ,"1,570.00",31/12/2014,CAP,SYNERGY CPC LLP               
241,,,Dundonald expansion                     ,CS031AC,New Construction Conversion and Renovation,,B2,Site Surveys D&S Structure              ,550,09/01/2015,CAP,NOISE.CO.UK                   
242,,,Dundonald expansion                     ,CS031AC,New Construction Conversion and Renovation,,B4,Contractor - Site works                 ,"40,000.00",31/12/2014,CAP,FM CONWAY LTD                 
243,,,Free School Meals                       ,CS033AB,New Construction Conversion and Renovation,,B2,Site Surveys D&S Structure              ,975,13/01/2015,CAP,MORTON FAIRVIEW ELEC SERVICES 
244,,,Poplar Permanent Expansion              ,CS034AB,New Construction Conversion and Renovation,,B1,Consultants Fees D&S Structure          ,"3,312.12",24/12/2014,CAP,PELLINGS LLP                  
245,,,Poplar Permanent Expansion              ,CS034AB,New Construction Conversion and Renovation,,B4,Contractor - Site works                 ,"255,248.00",22/12/2014,CAP,MANSELL CONSTRUCTION SERVICES 
246,,,Holy Trinity Expansion                  ,CS044RA,New Construction Conversion and Renovation,,B4,Contractor - Site works                 ,"4,846.99",20/01/2015,CAP,R DURTNELL & SONS LTD         
247,,,Singlegate expansion                    ,CS049AA,New Construction Conversion and Renovation,,B1,Consultants Fees D&S Structure          ,"58,937.87",28/11/2014,CAP,ATKINS LIMITED                
248,,,Singlegate expansion                    ,CS049AA,New Construction Conversion and Renovation,,B4,Contractor - Site works                 ,"287,517.70",05/01/2015,CAP,MANSELL CONSTRUCTION SERVICES 
249,,,Singlegate expansion                    ,CS049AA,New Construction Conversion and Renovation,,B4,Contractor - Site works                 ,"4,728.22",09/01/2015,CAP,BLAKEDOWN L/SCAPES OPERATIONS 
250,,,Singlegate expansion                    ,CS049AA,New Construction Conversion and Renovation,,B4,Contractor - Site works                 ,"8,549.26",09/01/2015,CAP,BLAKEDOWN L/SCAPES OPERATIONS 
251,,,Schs Cap Maint & Accessibility          ,CS080SD,New Construction Conversion and Renovation,,B4,Contractor - Site works                 ,"1,425.00",07/01/2014,CAP,TAG CONSTRUCTION (UK) LTD     
252,,,Schs Cap Maint & Accessibility          ,CS080SD,New Construction Conversion and Renovation,,B4,Contractor - Site works                 ,"13,289.22",18/11/2014,CAP,T BROWN GROUP LTD             
253,,,Hatfield                                ,CS081SA,New Construction Conversion and Renovation,,B2,Site Surveys D&S Structure              ,625,20/11/2014,CAP,REDHILL ANALYSTS LTD          
254,,,Perseid                                 ,CS092AA,New Construction Conversion and Renovation,,B2,Site Surveys D&S Structure              ,"4,600.00",09/01/2015,CAP,ROBSON LIDDLE LTD             
255,,,IT Equipment                            ,CT006EA,Vehicles Plant Equipment and Machinery,,D3,Equipment                               ,"7,744.56",09/12/2014,CAP,SPECIALIST COMPUTER CENT. PLC 
256,,,IT Equipment                            ,CT006EA,Vehicles Plant Equipment and Machinery,,D3,Equipment                               ,"3,600.00",19/01/2015,CAP,VIGLEN LIMITED                
257,,,IT Equipment                            ,CT006EA,Vehicles Plant Equipment and Machinery,,D3,Equipment                               ,900.16,17/12/2014,CAP,SPECIALIST COMPUTER CENT. PLC 
258,,,IT Equipment                            ,CT006EA,Vehicles Plant Equipment and Machinery,,D3,Equipment                               ,"52,043.16",10/12/2014,CAP,SPECIALIST COMPUTER CENT. PLC 
259,,,IT Equipment                            ,CT006EA,Other Capital Expenditure,,E3,Miscellaneous Capital Expendit          ,"25,750.00",14/01/2015,CAP,INSIGHT DIRECT (UK) LTD       
260,,,IT Equipment                            ,CT006EA,Other Capital Expenditure,,E3,Miscellaneous Capital Expendit          ,"8,807.00",14/01/2015,CAP,INSIGHT DIRECT (UK) LTD       
261,,,IT Equipment                            ,CT006EA,Other Capital Expenditure,,E3,Miscellaneous Capital Expendit          ,"12,000.00",14/01/2015,CAP,INSIGHT DIRECT (UK) LTD       
262,,,IT Equipment                            ,CT006EA,Other Capital Expenditure,,E3,Miscellaneous Capital Expendit          ,"85,875.00",12/01/2015,CAP,LONDON GRID LTD               
263,,,IT Equipment                            ,CT006EA,Other Capital Expenditure,,E3,Miscellaneous Capital Expendit          ,"12,700.00",12/01/2015,CAP,INSIGHT DIRECT (UK) LTD       
264,,,IT Equipment                            ,CT006EA,Other Capital Expenditure,,E3,Miscellaneous Capital Expendit          ,"21,875.00",12/01/2015,CAP,LONDON GRID LTD               
265,,,Room and Space Management               ,CT007EX,New Construction Conversion and Renovation,,B4,Contractor - Site works                 ,"3,700.00",10/12/2014,CAP,KEYTREE LIMITED               
266,,,Room and Space Management               ,CT007EX,Vehicles Plant Equipment and Machinery,,D3,Equipment                               ,"27,100.00",22/12/2014,CAP,CAD-CAPTURE                   
267,Central Services,Council tax collection,Local Taxation Services,E02100,Supplies & Services           ,Comms and Computing           ,DG09,Computer Purchases - Misc               ,"26,640.00",22/12/2014,REV,ONESTEP SOLUTIONS PLC         
268,Central Services,Council tax collection,Local Taxation Services,E02100,Supplies & Services           ,Comms and Computing           ,DG09,Computer Purchases - Misc               ,839.68,31/12/2014,REV,CIVICA UK LIMITED             
269,Central Services,Council tax collection,Local Taxation Services,E02100,Supplies & Services           ,Comms and Computing           ,DG09,Computer Purchases - Misc               ,"1,437.99",14/01/2015,REV,CIVICA UK LIMITED             
270,Central Services,Council tax collection,Local Taxation Services,E02100,Supplies & Services           ,Comms and Computing           ,DG09,Computer Purchases - Misc               ,725,23/12/2014,REV,MAG:NET SOLUTIONS             
271,Central Services,Council tax collection,Local Taxation Services,E02100,Supplies & Services           ,Comms and Computing           ,DG09,Computer Purchases - Misc               ,"2,372.50",27/01/2015,REV,MAG:NET SOLUTIONS             
272,Central Services,Council tax collection,Local Taxation Bailiffs,E02101,Supplies & Services           ,Services                      ,DF18,Bailiffs' fees                          ,"1,000.00",01/01/2015,REV,DATA INTERCHANGE PLC          
273,Central Services,Council tax collection,Local Taxation Bailiffs,E02101,Supplies & Services           ,Comms and Computing           ,DG09,Computer Purchases - Misc               ,"12,250.00",31/12/2014,REV,INFORM CPI LTD                
274,Housing Services,HB Administration,Local Welfare Support,E02123,Transfer Payments             ,Housing Benefits              ,FA95,Other Payments                          ,678.77,05/12/2014,REV,THE VINE PROJECT              
275,Housing Services,HB Administration,Local Welfare Support,E02123,Transfer Payments             ,Housing Benefits              ,FA95,Other Payments                          ,678.77,16/12/2014,REV,THE VINE PROJECT              
276,Housing Services,HB Administration,Local Welfare Support,E02123,Transfer Payments             ,Housing Benefits              ,FA95,Other Payments                          ,"10,000.00",28/01/2015,REV,WIMBLEDON FOODBANK            
277,Housing Services,HB Administration,Local Welfare Support,E02123,Transfer Payments             ,Housing Benefits              ,FA95,Other Payments                          ,842.77,26/11/2014,REV,THE VINE PROJECT              
278,Housing Services,HB Administration,Local Welfare Support,E02123,Transfer Payments             ,Housing Benefits              ,FA95,Other Payments                          ,812.77,13/01/2015,REV,THE VINE PROJECT              
279,Housing Services,HB Administration,Local Welfare Support,E02123,Transfer Payments             ,Housing Benefits              ,FA95,Other Payments                          ,"9,500.00",07/01/2015,REV,MERTON & LAMBETH CAB LTD      
280,Housing Services,HB Administration,Local Welfare Support,E02123,Transfer Payments             ,Housing Benefits              ,FA95,Other Payments                          ,791.57,14/01/2015,REV,THE VINE PROJECT              
281,Housing Services,HB Administration,Local Welfare Support,E02123,Transfer Payments             ,Housing Benefits              ,FA95,Other Payments                          ,792.77,08/01/2015,REV,THE VINE PROJECT              
282,Central Services,SupS Payroll,Payroll,E02140,Third Party Payments          ,Private Contractors           ,EH10,Contract Payments                       ,"12,535.56",26/01/2015,REV,LONDON BOROUGH OF SUTTON      
283,Central Services,SupS Payroll,Payroll,E02140,Third Party Payments          ,Private Contractors           ,EH10,Contract Payments                       ,"5,756.14",26/01/2015,REV,LONDON BOROUGH OF SUTTON      
284,Central Services,SupS Payroll,Payroll,E02140,Third Party Payments          ,Private Contractors           ,EH10,Contract Payments                       ,"27,622.01",19/01/2015,REV,LONDON BOROUGH OF SUTTON      
285,Central Services,SupS Payroll,Trinity Project,E02141,Supplies & Services           ,Services                      ,DF03,Consultants                             ,"1,800.00",24/12/2014,REV,LONDON BOROUGH OF SUTTON      
286,Central Services,SupS Payroll,Trinity Project,E02141,Supplies & Services           ,Services                      ,DF03,Consultants                             ,"2,460.00",24/12/2014,REV,LONDON BOROUGH OF SUTTON      
287,Central Services,SupS Payroll,Trinity Project,E02141,Supplies & Services           ,Comms and Computing           ,DG07,Computer Software                       ,"10,219.96",20/10/2014,REV,LONDON BOROUGH OF SUTTON      
288,Central Services,SupS Facilities,Post Room,E02220,Supplies & Services           ,Equip Furniture/Materials     ,DA01,Equipment - R & M                       ,"1,814.88",01/11/2014,REV,NEOPOST FINANCE LIMITED       
289,Central Services,SupS Facilities,Post Room,E02220,Supplies & Services           ,Comms and Computing           ,DG04,Postage - General                       ,757.87,12/01/2015,REV,STREETWISE COURIERS           
290,Central Services,SupS Facilities,Post Room,E02220,Supplies & Services           ,Comms and Computing           ,DG04,Postage - General                       ,633.1,19/01/2015,REV,STREETWISE COURIERS           
291,Central Services,SupS Facilities,Post Room,E02220,Supplies & Services           ,Comms and Computing           ,DG04,Postage - General                       ,623.7,22/12/2014,REV,STREETWISE COURIERS           
292,Central Services,SupS Facilities,Post Room,E02220,Supplies & Services           ,Comms and Computing           ,DG04,Postage - General                       ,"1,320.70",31/12/2014,REV,PARKER CARS LTD               
293,Central Services,SupS Facilities,Security Services,E02221,Employees                     ,Direct Employee Expenses      ,AA17,Agency Staff & Casual Paymts            ,"1,983.15",01/01/2015,REV,SIGHT & SOUND                 
294,Central Services,SupS Facilities,Security Services,E02221,Employees                     ,Direct Employee Expenses      ,AA17,Agency Staff & Casual Paymts            ,"2,000.70",01/01/2015,REV,SIGHT & SOUND                 
295,Central Services,SupS Facilities,Security Services,E02221,Employees                     ,Direct Employee Expenses      ,AA17,Agency Staff & Casual Paymts            ,"2,106.00",01/01/2015,REV,SIGHT & SOUND                 
296,Central Services,SupS Facilities,Security Services,E02221,Employees                     ,Direct Employee Expenses      ,AA17,Agency Staff & Casual Paymts            ,"2,321.12",01/01/2015,REV,SIGHT & SOUND                 
297,Central Services,SupS Facilities,Security Services,E02221,Employees                     ,Direct Employee Expenses      ,AA17,Agency Staff & Casual Paymts            ,"1,971.45",01/01/2015,REV,SIGHT & SOUND                 
298,Central Services,SupS Facilities,Civic Centre,E02222,Premises Related Expenditure  ,RepairsAlterations&MtceOfBldgs,BA29,BUILD MAINT MGT FEES                    ,798,28/11/2014,REV,EDE'S (U.K.) LTD              
299,Central Services,SupS Facilities,Civic Centre,E02222,Premises Related Expenditure  ,RepairsAlterations&MtceOfBldgs,BA29,BUILD MAINT MGT FEES                    ,608,28/11/2014,REV,EDE'S (U.K.) LTD              
300,Central Services,SupS Facilities,Civic Centre,E02222,Premises Related Expenditure  ,RepairsAlterations&MtceOfBldgs,BA29,BUILD MAINT MGT FEES                    ,750,24/12/2014,REV,NETWORK SOLUTIONS INC         
301,Central Services,SupS Facilities,Civic Centre,E02222,Premises Related Expenditure  ,RepairsAlterations&MtceOfBldgs,BA29,BUILD MAINT MGT FEES                    ,611.5,30/12/2014,REV,EDE'S (U.K.) LTD              
302,Central Services,SupS Facilities,Civic Centre,E02222,Premises Related Expenditure  ,RepairsAlterations&MtceOfBldgs,BA29,BUILD MAINT MGT FEES                    ,749.75,28/11/2014,REV,EDE'S (U.K.) LTD              
303,Central Services,SupS Facilities,Facilities,E02231,Premises Related Expenditure  ,RepairsAlterations&MtceOfBldgs,BA02,ENERGY CONSERVATION                     ,"1,917.00",01/01/2015,REV,BERGEN ENERGI                 
304,Central Services,SupS Facilities,Facilities,E02231,Supplies & Services           ,Services                      ,DF03,Consultants                             ,"2,250.00",18/12/2014,REV,BRIAR ASSOCIATES              
305,Central Services,SupS Facilities,Corporate Services Buildings,E02240,Premises Related Expenditure  ,RepairsAlterations&MtceOfBldgs,BA01,DDM - General Building                  ,"2,525.00",20/01/2015,REV,SALTASH ENTERPRISES LTD       
306,Central Services,SupS Facilities,Corporate Services Buildings,E02240,Premises Related Expenditure  ,RepairsAlterations&MtceOfBldgs,BA01,DDM - General Building                  ,937.8,07/01/2015,REV,CHARTWELL DOORS LIMITED       
307,Central Services,SupS Facilities,Corporate Services Buildings,E02240,Premises Related Expenditure  ,RepairsAlterations&MtceOfBldgs,BA03,DDM - Mechanical                        ,"14,397.17",18/12/2014,REV,ENER-G COMBINED POWER LIMITED 
308,Central Services,SupS Facilities,Corporate Services Buildings,E02240,Premises Related Expenditure  ,RepairsAlterations&MtceOfBldgs,BA05,DDM - Electrical                        ,"1,645.00",15/01/2015,REV,SSD LIMITED                   
309,Central Services,SupS Facilities,Corporate Services Buildings,E02240,Premises Related Expenditure  ,RepairsAlterations&MtceOfBldgs,BA06,Repairs & Maintenance General           ,900,22/01/2015,REV,BUTLER & YOUNG LIFT CONSULTANT
310,Central Services,SupS Facilities,Corporate Services Buildings,E02240,Premises Related Expenditure  ,Energy Costs                  ,BB02,Electricity                             ,"12,692.32",07/01/2015,REV,SCOTTISHPOWER                 
311,Central Services,SupS Facilities,Corporate Services Buildings,E02240,Premises Related Expenditure  ,Energy Costs                  ,BB02,Electricity                             ,552.91,14/01/2015,REV,SCOTTISHPOWER                 
312,Central Services,SupS Facilities,Corporate Services Buildings,E02240,Premises Related Expenditure  ,Energy Costs                  ,BB03,Gas (incl. Butane)                      ,"8,787.44",06/01/2015,REV,GAZPROM MARKETING&TRADING LTD 
313,Central Services,SupS Facilities,Corporate Services Buildings,E02240,Premises Related Expenditure  ,Energy Costs                  ,BB03,Gas (incl. Butane)                      ,522.79,06/01/2015,REV,GAZPROM MARKETING&TRADING LTD 
314,Central Services,SupS Facilities,Corporate Services Buildings,E02240,Premises Related Expenditure  ,Energy Costs                  ,BB03,Gas (incl. Butane)                      ,613.41,06/01/2015,REV,GAZPROM MARKETING&TRADING LTD 
315,Central Services,SupS Facilities,Corporate Services Buildings,E02240,Premises Related Expenditure  ,Water Services                ,BE01,Use of Water (Metered)                  ,"1,080.18",19/12/2014,REV,SUTTON AND EAST SURREY WATER  
316,Central Services,SupS Facilities,Corporate Services Buildings,E02240,Premises Related Expenditure  ,Water Services                ,BE01,Use of Water (Metered)                  ,"1,578.41",19/12/2014,REV,SUTTON AND EAST SURREY WATER  
317,Childrens & Education Services,Strategic Management,PDC,E02254,Premises Related Expenditure  ,Energy Costs                  ,BB03,Gas (incl. Butane)                      ,"1,053.79",06/01/2015,REV,GAZPROM MARKETING&TRADING LTD 
318,Childrens & Education Services,Strategic Management,PDC,E02254,Premises Related Expenditure  ,Water Services                ,BE01,Use of Water (Metered)                  ,832.06,19/12/2014,REV,SUTTON & EAST SURREY WATER PLC
319,Adult Social Care,OP 65 & Over Day Care,Pollards Hill Day Centre,E02270,Premises Related Expenditure  ,Cleaning and Domestic Supplies,BH03,Cleaning Services                       ,835.04,20/12/2014,REV,BIRKIN CLEANING SERVICES LTD  
320,Adult Social Care,OP 65 & Over Day Care,Pollards Hill Day Centre,E02270,Premises Related Expenditure  ,Cleaning and Domestic Supplies,BH03,Cleaning Services                       ,"1,239.08",20/12/2014,REV,BIRKIN CLEANING SERVICES LTD  
321,Adult Social Care,OP 65 & Over Day Care,Pollards Hill Day Centre,E02270,Premises Related Expenditure  ,Cleaning and Domestic Supplies,BH03,Cleaning Services                       ,"1,540.02",20/12/2014,REV,BIRKIN CLEANING SERVICES LTD  
322,Adult Social Care,OP 65 & Over Day Care,Pollards Hill Day Centre,E02270,Premises Related Expenditure  ,Cleaning and Domestic Supplies,BH03,Cleaning Services                       ,"6,596.17",20/12/2014,REV,BIRKIN CLEANING SERVICES LTD  
323,Adult Social Care,OP 65 & Over Day Care,Pollards Hill Day Centre,E02270,Premises Related Expenditure  ,Cleaning and Domestic Supplies,BH03,Cleaning Services                       ,"3,093.61",20/12/2014,REV,BIRKIN CLEANING SERVICES LTD  
324,Adult Social Care,OP 65 & Over Day Care,Pollards Hill Day Centre,E02270,Premises Related Expenditure  ,Cleaning and Domestic Supplies,BH03,Cleaning Services                       ,816.35,20/12/2014,REV,BIRKIN CLEANING SERVICES LTD  
325,Adult Social Care,OP 65 & Over Day Care,Pollards Hill Day Centre,E02270,Premises Related Expenditure  ,Cleaning and Domestic Supplies,BH03,Cleaning Services                       ,"1,492.52",20/12/2014,REV,BIRKIN CLEANING SERVICES LTD  
326,Adult Social Care,OP 65 & Over Day Care,Pollards Hill Day Centre,E02270,Premises Related Expenditure  ,Cleaning and Domestic Supplies,BH03,Cleaning Services                       ,"1,222.20",20/12/2014,REV,BIRKIN CLEANING SERVICES LTD  
327,Adult Social Care,OP 65 & Over Day Care,Pollards Hill Day Centre,E02270,Premises Related Expenditure  ,Cleaning and Domestic Supplies,BH03,Cleaning Services                       ,"1,421.80",20/12/2014,REV,BIRKIN CLEANING SERVICES LTD  
328,Adult Social Care,OP 65 & Over Day Care,Pollards Hill Day Centre,E02270,Premises Related Expenditure  ,Cleaning and Domestic Supplies,BH03,Cleaning Services                       ,"1,673.61",20/12/2014,REV,BIRKIN CLEANING SERVICES LTD  
329,Adult Social Care,OP 65 & Over Day Care,Pollards Hill Day Centre,E02270,Third Party Payments          ,Private Contractors           ,EH02,Miscellaneous Hired Services            ,520,28/12/2014,REV,GREENWORKS                    
330,Adult Social Care,OP 65 & Over Day Care,Pollards Hill Day Centre,E02270,Third Party Payments          ,Private Contractors           ,EH10,Contract Payments                       ,500,13/01/2015,REV,GOSTO FINO PORTUGAL PATISSERIE
331,Adult Social Care,OP 65 & Over Day Care,Pollards Hill Day Centre,E02270,Third Party Payments          ,Private Contractors           ,EH10,Contract Payments                       ,770,13/01/2015,REV,GOSTO FINO PORTUGAL PATISSERIE
332,Adult Social Care,PS u65 Day Care,C & H Buildings,E02345,Premises Related Expenditure  ,RepairsAlterations&MtceOfBldgs,BA01,DDM - General Building                  ,"2,143.75",28/03/2014,REV,SALTASH ENTERPRISES LTD       
333,Central Services,SupS DOF,Director of Corporate Services,E04060,Supplies & Services           ,Services                      ,DF11,Counsel's Fees                          ,"7,875.00",04/01/2015,REV,REDACTED
334,Central Services,SupS DOF,AD RESOURCES,E04061,Supplies & Services           ,Services                      ,DF03,CONSULTANTS                             ,"1,900.00",17/12/2014,REV,CIVICA UK LIMITED             
335,Central Services,SupS DOF,AD RESOURCES,E04061,Supplies & Services           ,Services                      ,DF03,CONSULTANTS                             ,"9,430.00",01/01/2015,REV,PUBLIC SECTOR CONSULTANTS     
336,Central Services,Officer support time,Corporately Funded Items,E04065,Supplies & Services           ,Services                      ,DF11,Counsel's Fees                          ,"3,800.00",15/12/2014,REV,REDACTED
337,Central Services,SupS Corporate Finance,Corporate Accountancy,E06209,Supplies & Services           ,Services                      ,DF58,Audit Fee                               ,"2,070.00",07/01/2015,REV,ERNST & YOUNG LLP             
338,Central Services,SupS Strategic Finance,Business Planning,E06221,Employees                     ,Direct Employee Expenses      ,AA17,Agency Staff & Casual Paymts            ,"1,662.50",23/12/2014,REV,REDACTED
339,Central Services,SupS Strategic Finance,Business Planning,E06221,Employees                     ,Direct Employee Expenses      ,AA17,Agency Staff & Casual Paymts            ,800,23/12/2014,REV,REDACTED
340,Central Services,SupS Strategic Finance,Business Planning,E06221,Employees                     ,Direct Employee Expenses      ,AA17,Agency Staff & Casual Paymts            ,"1,737.50",16/12/2014,REV,REDACTED
341,Central Services,SupS Strategic Finance,Business Planning,E06221,Employees                     ,Indirect Employee Expenses    ,AB02,Recruitment Adverts                     ,800,31/12/2014,REV,PENNA COMMUNICATIONS (NO 2 A/C
342,Central Services,SupS Strategic Finance,Treasury & Insurance,E06222,Employees                     ,Direct Employee Expenses      ,AA17,Agency Staff & Casual Paymts            ,"5,170.00",05/01/2015,REV,REDACTED
343,Central Services,SupS Strategic Finance,Treasury & Insurance,E06222,Supplies & Services           ,Comms and Computing           ,DG02,Software Licences                       ,"2,400.00",30/11/2014,REV,LOGOTECH SYSTEMS              
344,Central Services,SupS DOF,Service Accountancy,E06227,Employees                     ,Direct Employee Expenses      ,AA17,Agency Staff & Casual Paymts            ,"4,140.00",14/01/2015,REV,REDACTED
345,Central Services,SupS DOF,Service Accountancy,E06227,Supplies & Services           ,Services                      ,DF95,Services from Provider                  ,797.41,27/01/2015,REV,POST OFFICE LTD               
346,Central Services,SupS Legal,Legal Services,E10282,Supplies & Services           ,Services                      ,DF28,Court Fees                              ,"1,075.00",30/12/2014,REV,REDACTED
347,Central Services,Registration of electors,Electoral Registration,E10285,Employees                     ,Direct Employee Expenses      ,AA17,Agency Staff & Casual Paymts            ,"10,571.00",05/11/2014,REV,ASS.OF ELECTORAL ADMINISTRATOR
348,Central Services,Registration of electors,Electoral Registration,E10285,Supplies & Services           ,Services                      ,DF02,Misc Advertising/Publicity              ,"1,995.00",24/11/2014,REV,LIFE CHANNEL LIMITED          
349,Central Services,Registration of electors,Electoral Registration,E10285,Supplies & Services           ,Comms and Computing           ,DG04,Postage - General                       ,733.37,05/01/2015,REV,ROYAL MAIL GROUP LTD          
350,Central Services,Registration of electors,Electoral Registration,E10285,Supplies & Services           ,Comms and Computing           ,DG04,Postage - General                       ,651.09,01/01/2015,REV,FINANCIAL DATA MANAGEMENT PLC 
351,Central Services,SupS Legal,Shared Legal Service,E10288,Supplies & Services           ,Expenses                      ,DH16,Compensation Payments                   ,"1,636.00",27/01/2015,REV,LONDON BOROUGH OF RICHMOND    
352,Central Services,SupS Legal,Richmond Legal,E10289,Supplies & Services           ,Services                      ,DF11,Counsel's Fees                          ,500,20/01/2015,REV,REDACTED
353,Central Services,SupS Legal,Richmond Legal,E10289,Supplies & Services           ,Services                      ,DF95,Services from Provider                  ,645.85,30/11/2014,REV,SHARPE PRITCHARD SOLICITORS   
354,Central Services,SupS Legal,Richmond Legal,E10289,Supplies & Services           ,Services                      ,DF95,Services from Provider                  ,"3,226.67",30/09/2014,REV,SHARPE PRITCHARD SOLICITORS   
355,Central Services,SupS Legal,Richmond Legal,E10289,Supplies & Services           ,Services                      ,DF95,Services from Provider                  ,"1,333.33",31/10/2014,REV,SHARPE PRITCHARD SOLICITORS   
356,Central Services,SupS Legal,Richmond Legal,E10289,Supplies & Services           ,Services                      ,DF95,Services from Provider                  ,"6,550.00",20/01/2015,REV,HUNTERS SOLICITORS            
357,Central Services,SupS Legal,Richmond Legal,E10289,Supplies & Services           ,Services                      ,DF95,Services from Provider                  ,"4,880.00",31/08/2014,REV,SHARPE PRITCHARD SOLICITORS   
358,Central Services,SupS Legal,Richmond Legal,E10289,Supplies & Services           ,Services                      ,DF95,Services from Provider                  ,675,16/12/2014,REV,WRIGLEYS SOLICITORS           
359,Central Services,SupS Legal,Kingston Legal                          ,E10292,Supplies & Services           ,Services                      ,DF11,Counsel's Fees                          ,600,17/12/2014,REV,REDACTED
360,Central Services,SupS Legal,Kingston Legal                          ,E10292,Supplies & Services           ,Services                      ,DF11,Counsel's Fees                          ,500,17/12/2014,REV,REDACTED
361,Central Services,SupS Legal,Kingston Legal                          ,E10292,Supplies & Services           ,Services                      ,DF11,Counsel's Fees                          ,"6,250.00",08/12/2014,REV,REDACTED
362,Central Services,SupS Legal,Kingston Legal                          ,E10292,Supplies & Services           ,Services                      ,DF11,Counsel's Fees                          ,500,25/11/2014,REV,REDACTED
363,Central Services,SupS Legal,Kingston Legal                          ,E10292,Supplies & Services           ,Services                      ,DF11,Counsel's Fees                          ,"6,750.00",05/01/2015,REV,REDACTED
364,Central Services,SupS Legal,Kingston Legal                          ,E10292,Supplies & Services           ,Services                      ,DF11,Counsel's Fees                          ,"3,287.50",18/12/2014,REV,REDACTED
365,Central Services,SupS Legal,Kingston Legal                          ,E10292,Supplies & Services           ,Services                      ,DF11,Counsel's Fees                          ,"12,000.00",22/01/2015,REV,REDACTED
366,Central Services,SupS Legal,Kingston Legal                          ,E10292,Supplies & Services           ,Expenses                      ,DH16,Compensation Payments                   ,"1,615.00",16/01/2015,REV,REDACTED
367,Central Services,SupS Legal,Sutton Legal                            ,E10293,Supplies & Services           ,Services                      ,DF11,Counsel's Fees                          ,"1,030.00",23/12/2014,REV,REDACTED
368,Central Services,SupS Legal,Sutton Legal                            ,E10293,Supplies & Services           ,Services                      ,DF11,Counsel's Fees                          ,"5,800.00",18/11/2014,REV,REDACTED
369,Central Services,SupS Legal,Sutton Legal                            ,E10293,Supplies & Services           ,Services                      ,DF11,Counsel's Fees                          ,610,23/12/2014,REV,REDACTED
370,Central Services,SupS Legal,Sutton Legal                            ,E10293,Supplies & Services           ,Services                      ,DF11,Counsel's Fees                          ,610,23/12/2014,REV,REDACTED
371,Central Services,SupS Legal,Sutton Legal                            ,E10293,Supplies & Services           ,Services                      ,DF11,Counsel's Fees                          ,"4,175.00",17/12/2014,REV,REDACTED
372,Central Services,SupS Legal,Sutton Legal                            ,E10293,Supplies & Services           ,Services                      ,DF11,Counsel's Fees                          ,500,19/12/2014,REV,REDACTED
373,Central Services,SupS Legal,Sutton Legal                            ,E10293,Supplies & Services           ,Services                      ,DF11,Counsel's Fees                          ,520,23/12/2014,REV,REDACTED
374,Central Services,SupS Legal,Sutton Legal                            ,E10293,Supplies & Services           ,Services                      ,DF11,Counsel's Fees                          ,650,17/12/2014,REV,REDACTED
375,Central Services,SupS Legal,Sutton Legal                            ,E10293,Supplies & Services           ,Services                      ,DF11,Counsel's Fees                          ,510,10/12/2014,REV,REDACTED
376,Central Services,SupS Legal,Sutton Legal                            ,E10293,Supplies & Services           ,Services                      ,DF11,Counsel's Fees                          ,"1,068.75",02/12/2014,REV,REDACTED
377,Central Services,SupS Legal,Sutton Legal                            ,E10293,Supplies & Services           ,Services                      ,DF11,Counsel's Fees                          ,"5,248.75",23/01/2015,REV,REDACTED
378,Central Services,SupS Legal,Sutton Legal                            ,E10293,Supplies & Services           ,Services                      ,DF11,Counsel's Fees                          ,510,23/12/2014,REV,REDACTED
379,Central Services,SupS Legal,Sutton Legal                            ,E10293,Supplies & Services           ,Services                      ,DF11,Counsel's Fees                          ,"1,755.00",17/12/2014,REV,REDACTED
380,Central Services,SupS Legal,Sutton Legal                            ,E10293,Supplies & Services           ,Services                      ,DF11,Counsel's Fees                          ,500,17/12/2014,REV,REDACTED
381,Central Services,SupS Legal,Sutton Legal                            ,E10293,Supplies & Services           ,Services                      ,DF14,Doctors and Other Fees                  ,"1,724.00",24/06/2014,REV,BRADLEY MANN PSYCHOLOG'CL SERV
382,Central Services,SupS Legal,Sutton Legal                            ,E10293,Supplies & Services           ,Services                      ,DF14,Doctors and Other Fees                  ,"2,641.00",19/12/2014,REV,REDACTED
383,Central Services,SupS Legal,Sutton Legal                            ,E10293,Supplies & Services           ,Services                      ,DF14,Doctors and Other Fees                  ,830.3,18/12/2014,REV,WESSEX PSYCHOLOGY SERVICES LTD
384,Central Services,SupS Legal,Sutton Legal                            ,E10293,Supplies & Services           ,Services                      ,DF14,Doctors and Other Fees                  ,"2,899.00",18/12/2014,REV,WESSEX PSYCHOLOGY SERVICES LTD
385,Central Services,SupS Legal,Sutton Legal                            ,E10293,Supplies & Services           ,Services                      ,DF14,Doctors and Other Fees                  ,"1,139.50",17/04/2014,REV,CF SOCIAL WORK                
386,Central Services,SupS Legal,Sutton Legal                            ,E10293,Supplies & Services           ,Services                      ,DF14,Doctors and Other Fees                  ,"2,659.30",17/04/2014,REV,CF SOCIAL WORK                
387,Central Services,SupS Legal,Sutton Legal                            ,E10293,Supplies & Services           ,Services                      ,DF14,Doctors and Other Fees                  ,588,14/11/2014,REV,BRADLEY MANN PSYCHOLOG'CL SERV
388,Central Services,SupS Legal,Sutton Legal                            ,E10293,Supplies & Services           ,Services                      ,DF14,Doctors and Other Fees                  ,555,22/12/2014,REV,REDACTED
389,Central Services,SupS Legal,Sutton Legal                            ,E10293,Supplies & Services           ,Services                      ,DF95,Services from Provider                  ,"1,745.60",23/01/2015,REV,DUNCAN LEWIS (SOLICITORS) LTD 
390,Central Services,SupS Legal,Sutton Legal                            ,E10293,Supplies & Services           ,Services                      ,DF95,Services from Provider                  ,"4,584.00",08/01/2015,REV,VEALE WASBROUGH VIZARDS LLP   
391,Central Services,SupS Legal,Sutton Legal                            ,E10293,Supplies & Services           ,Expenses                      ,DH16,Compensation Payments                   ,600,15/01/2015,REV,LONDON BOROUGH OF SUTTON      
392,Central Services,SupS Legal,Achieving for Children (AFC),E10295,Supplies & Services           ,Services                      ,DF11,Counsel's Fees                          ,595,05/01/2015,REV,REDACTED
393,Central Services,SupS Legal,Achieving for Children (AFC),E10295,Supplies & Services           ,Services                      ,DF11,Counsel's Fees                          ,500,23/12/2014,REV,REDACTED
394,Central Services,SupS Legal,Achieving for Children (AFC),E10295,Supplies & Services           ,Services                      ,DF11,Counsel's Fees                          ,790,23/12/2014,REV,REDACTED
395,Central Services,SupS Legal,Achieving for Children (AFC),E10295,Supplies & Services           ,Services                      ,DF11,Counsel's Fees                          ,607.5,03/01/2015,REV,REDACTED
396,Central Services,SupS Legal,Achieving for Children (AFC),E10295,Supplies & Services           ,Services                      ,DF11,Counsel's Fees                          ,"1,500.00",19/01/2015,REV,REDACTED
397,Central Services,SupS Legal,Achieving for Children (AFC),E10295,Supplies & Services           ,Services                      ,DF11,Counsel's Fees                          ,510,14/01/2015,REV,REDACTED
398,Central Services,SupS Legal,Achieving for Children (AFC),E10295,Supplies & Services           ,Services                      ,DF11,Counsel's Fees                          ,520,23/12/2014,REV,REDACTED
399,Central Services,SupS Legal,Achieving for Children (AFC),E10295,Supplies & Services           ,Services                      ,DF11,Counsel's Fees                          ,"2,250.00",27/01/2015,REV,REDACTED
400,Central Services,SupS Legal,Achieving for Children (AFC),E10295,Supplies & Services           ,Services                      ,DF11,Counsel's Fees                          ,520,20/01/2015,REV,REDACTED
401,Central Services,SupS Legal,Achieving for Children (AFC),E10295,Supplies & Services           ,Services                      ,DF11,Counsel's Fees                          ,575,01/12/2014,REV,REDACTED
402,Central Services,SupS Legal,Achieving for Children (AFC),E10295,Supplies & Services           ,Services                      ,DF11,Counsel's Fees                          ,520,12/01/2015,REV,REDACTED
403,Central Services,SupS Legal,Achieving for Children (AFC),E10295,Supplies & Services           ,Services                      ,DF11,Counsel's Fees                          ,500,23/12/2014,REV,REDACTED
404,Central Services,SupS Legal,Achieving for Children (AFC),E10295,Supplies & Services           ,Services                      ,DF11,Counsel's Fees                          ,590,14/01/2015,REV,REDACTED
405,Central Services,SupS Legal,Achieving for Children (AFC),E10295,Supplies & Services           ,Services                      ,DF11,Counsel's Fees                          ,-607.5,12/05/2014,REV,REDACTED
406,Central Services,SupS Legal,Achieving for Children (AFC),E10295,Supplies & Services           ,Services                      ,DF11,Counsel's Fees                          ,"2,291.66",21/01/2015,REV,REDACTED
407,Central Services,SupS Legal,Achieving for Children (AFC),E10295,Supplies & Services           ,Services                      ,DF11,Counsel's Fees                          ,"2,390.00",23/12/2014,REV,REDACTED
408,Central Services,SupS Legal,Achieving for Children (AFC),E10295,Supplies & Services           ,Services                      ,DF11,Counsel's Fees                          ,"1,250.00",26/01/2015,REV,REDACTED
409,Central Services,SupS Legal,Achieving for Children (AFC),E10295,Supplies & Services           ,Services                      ,DF11,Counsel's Fees                          ,600,05/01/2015,REV,REDACTED
410,Central Services,SupS Legal,Achieving for Children (AFC),E10295,Supplies & Services           ,Services                      ,DF14,Doctors and Other Fees                  ,614.4,03/12/2014,REV,REDACTED
411,Central Services,SupS Legal,Achieving for Children (AFC),E10295,Supplies & Services           ,Services                      ,DF95,Services from Provider                  ,"1,041.50",30/12/2014,REV,REDACTED
412,Central Services,SupS Payroll,Coroners Courts,E11300,Third Party Payments          ,Joint Authorities             ,EC11,SW Inner London Coroners Crt C          ,"44,080.00",09/01/2015,REV,CITY OF WESTMINSTER           
413,Central Services,SupS IT,Social Care Info System (SCI)           ,E14357,Employees                     ,Direct Employee Expenses      ,AA17,Agency Staff & Casual Paymts            ,"6,823.28",22/01/2015,REV,REDACTED
414,Central Services,SupS IT,Social Care Info System (SCI)           ,E14357,Employees                     ,Direct Employee Expenses      ,AA17,Agency Staff & Casual Paymts            ,"3,025.00",10/12/2014,REV,HAYS RECRUITING EXPERTS       
415,Central Services,SupS IT,Social Care Info System (SCI)           ,E14357,Employees                     ,Direct Employee Expenses      ,AA17,Agency Staff & Casual Paymts            ,"6,105.04",05/01/2015,REV,REDACTED
416,Central Services,SupS IT,Social Care Info System (SCI)           ,E14357,Employees                     ,Direct Employee Expenses      ,AA17,Agency Staff & Casual Paymts            ,"1,210.00",07/01/2015,REV,HAYS RECRUITING EXPERTS       
417,Central Services,SupS IT,Social Care Info System (SCI)           ,E14357,Employees                     ,Direct Employee Expenses      ,AA17,Agency Staff & Casual Paymts            ,"1,210.00",30/12/2014,REV,HAYS RECRUITING EXPERTS       
418,Central Services,SupS IT,Social Care Info System (SCI)           ,E14357,Employees                     ,Direct Employee Expenses      ,AA17,Agency Staff & Casual Paymts            ,"3,025.00",17/12/2014,REV,HAYS RECRUITING EXPERTS       
419,Central Services,SupS IT,AD Business Improvement,E14358,Supplies & Services           ,Services                      ,DF04,Miscellaneous Expenses                  ,"1,300.00",27/10/2014,REV,SPRING TECHNOLOGY             
420,Central Services,SupS IT,Corp Saving-Print Strategy,E14359,Supplies & Services           ,Equip Furniture/Materials     ,DA77,Photocopier Rental                      ,"40,805.22",17/11/2014,REV,ALTODIGITAL NETWORKS LTD      
421,Central Services,SupS IT,Corp Saving-Print Strategy,E14359,Supplies & Services           ,Prntng Stnry Gen Off Exp      ,DE06,MULTI-FUNCTIONAL PRINTERS               ,"4,404.33",18/11/2014,REV,ALTODIGITAL NETWORKS LTD      
422,Central Services,SupS IT,Corp Saving-Print Strategy,E14359,Supplies & Services           ,Prntng Stnry Gen Off Exp      ,DE06,MULTI-FUNCTIONAL PRINTERS               ,"26,146.18",17/11/2014,REV,ALTODIGITAL NETWORKS LTD      
423,Central Services,SupS IT,BI IT Projects,E14360,Employees                     ,Direct Employee Expenses      ,AA17,Agency Staff & Casual Paymts            ,"1,520.00",19/12/2014,REV,REDACTED
424,Central Services,SupS IT,BI IT Projects,E14360,Employees                     ,Direct Employee Expenses      ,AA17,Agency Staff & Casual Paymts            ,"1,900.00",17/11/2014,REV,REDACTED
425,Central Services,SupS IT,BI IT Projects,E14360,Employees                     ,Direct Employee Expenses      ,AA17,Agency Staff & Casual Paymts            ,"3,040.00",13/01/2015,REV,REDACTED
426,Central Services,SupS IT,BI IT Projects,E14360,Employees                     ,Direct Employee Expenses      ,AA17,Agency Staff & Casual Paymts            ,"1,900.00",22/12/2014,REV,REDACTED
427,Central Services,SupS IT,AD I&T,E14363,Employees                     ,Direct Employee Expenses      ,AA17,Agency Staff & Casual Paymts            ,"9,222.50",30/12/2014,REV,REDACTED
428,Central Services,SupS IT,AD I&T,E14363,Supplies & Services           ,Comms and Computing           ,DG03,Computer Consumables                    ,"1,600.00",29/01/2015,REV,SOFTCAT LTD                   
429,Central Services,SupS IT,Systems & Projects,E14366,Employees                     ,Direct Employee Expenses      ,AA17,Agency Staff & Casual Paymts            ,"2,014.42",12/01/2015,REV,REDACTED
430,Central Services,SupS IT,Systems & Projects,E14366,Employees                     ,Direct Employee Expenses      ,AA17,Agency Staff & Casual Paymts            ,"1,375.00",26/09/2014,REV,REDACTED
431,Central Services,SupS IT,Systems & Projects,E14366,Employees                     ,Direct Employee Expenses      ,AA17,Agency Staff & Casual Paymts            ,"2,014.42",06/01/2015,REV,REDACTED
432,Central Services,SupS IT,Systems & Projects,E14366,Supplies & Services           ,Comms and Computing           ,DG07,Computer Software                       ,"1,896.65",18/12/2014,REV,CIVICA UK LIMITED             
433,Central Services,SupS IT,Operations & Telecomms,E14367,Employees                     ,Direct Employee Expenses      ,AA17,Agency Staff & Casual Paymts            ,"3,990.00",01/12/2014,REV,REDACTED
434,Central Services,SupS IT,Operations & Telecomms,E14367,Premises Related Expenditure  ,RepairsAlterations&MtceOfBldgs,BA06,Repairs & Maintenance General           ,630,13/01/2015,REV,ON365.CO.UK                   
435,Central Services,SupS IT,Operations & Telecomms,E14367,Supplies & Services           ,Comms and Computing           ,DG14,Telephones - Mobile                     ,"1,094.88",29/11/2014,REV,O2 (UK) LIMITED               
436,Central Services,SupS IT,Operations & Telecomms,E14367,Supplies & Services           ,Comms and Computing           ,DG14,Telephones - Mobile                     ,"1,096.35",29/12/2014,REV,O2 (UK) LIMITED               
437,Central Services,SupS IT,Operations & Telecomms,E14367,Supplies & Services           ,Comms and Computing           ,DG15,Network Maintenance                     ,587,11/12/2014,REV,NET-CTRL                      
438,Central Services,SupS IT,Operations & Telecomms,E14367,Supplies & Services           ,Comms and Computing           ,DG15,Network Maintenance                     ,"6,312.00",31/12/2014,REV,NEW NET TECHNOLOGIES          
439,Central Services,SupS IT,Operations & Telecomms,E14367,Supplies & Services           ,Comms and Computing           ,DG15,Network Maintenance                     ,"4,412.62",02/01/2015,REV,BT REDCARE                    
440,Central Services,SupS IT,Operations & Telecomms,E14367,Supplies & Services           ,Comms and Computing           ,DG54,Corporate Telephones                    ,"4,117.29",04/01/2015,REV,T MOBILE (UK)                 
441,Central Services,SupS IT,Operations & Telecomms,E14367,Supplies & Services           ,Comms and Computing           ,DG54,Corporate Telephones                    ,"4,754.95",04/12/2014,REV,T MOBILE (UK)                 
442,Central Services,SupS IT,Operations & Telecomms,E14367,Supplies & Services           ,Comms and Computing           ,DG54,Corporate Telephones                    ,"2,573.20",02/01/2015,REV,COLT TELECOMMUNICATIONS       
443,Central Services,SupS IT,Operations & Telecomms,E14367,Supplies & Services           ,Comms and Computing           ,DG54,Corporate Telephones                    ,"4,581.50",17/01/2015,REV,ORANGE P'MENT PRO'SING AIRTIME
444,Central Services,SupS IT,Operations & Telecomms,E14367,Supplies & Services           ,Comms and Computing           ,DG54,Corporate Telephones                    ,"1,563.98",02/11/2014,REV,COLT TELECOMMUNICATIONS       
445,Central Services,SupS IT,Distributed Services,E14368,Supplies & Services           ,Comms and Computing           ,DG63,Software Licences - Data                ,"14,394.00",23/12/2014,REV,INSIGHT DIRECT (UK) LTD       
446,Central Services,SupS IT,Distributed Services,E14368,Supplies & Services           ,Comms and Computing           ,DG63,Software Licences - Data                ,"1,066.00",27/01/2015,REV,NU NETWORK PRODUCTS LTD       
447,Central Services,SupS IT,Distributed Services,E14368,Supplies & Services           ,Comms and Computing           ,DG63,Software Licences - Data                ,"10,320.00",09/01/2015,REV,INSIGHT DIRECT (UK) LTD       
448,Central Services,SupS IT,Distributed Services,E14368,Supplies & Services           ,Comms and Computing           ,DG63,Software Licences - Data                ,"1,260.48",08/01/2015,REV,PROCESSFLOWS UK LTD           
449,Central Services,SupS IT,Distributed Services,E14368,Supplies & Services           ,Comms and Computing           ,DG63,Software Licences - Data                ,"2,152.00",27/01/2015,REV,NU NETWORK PRODUCTS LTD       
450,Central Services,SupS IT,Corp Saving-IT Consolidation,E14370,Premises Related Expenditure  ,RepairsAlterations&MtceOfBldgs,BA01,DDM - General Building                  ,"10,125.00",08/01/2015,REV,SALTASH ENTERPRISES LTD       
451,Central Services,SupS IT,Corp Saving-IT Consolidation,E14370,Premises Related Expenditure  ,RepairsAlterations&MtceOfBldgs,BA01,DDM - General Building                  ,"7,783.00",12/12/2014,REV,SALTASH ENTERPRISES LTD       
452,Central Services,SupS IT,Corp Saving-IT Consolidation,E14370,Premises Related Expenditure  ,RepairsAlterations&MtceOfBldgs,BA01,DDM - General Building                  ,656.5,08/01/2015,REV,SALTASH ENTERPRISES LTD       
453,Central Services,SupS IT,Corp Saving-IT Consolidation,E14370,Premises Related Expenditure  ,RepairsAlterations&MtceOfBldgs,BA01,DDM - General Building                  ,"1,187.50",08/01/2015,REV,SALTASH ENTERPRISES LTD       
454,Central Services,SupS IT,Corp Saving-IT Consolidation,E14370,Premises Related Expenditure  ,RepairsAlterations&MtceOfBldgs,BA01,DDM - General Building                  ,"3,000.00",08/01/2015,REV,SALTASH ENTERPRISES LTD       
455,Central Services,SupS IT,No longer used,E14371,Employees                     ,Direct Employee Expenses      ,AA17,Agency Staff & Casual Paymts            ,"2,060.00",13/01/2015,REV,REDACTED
456,Central Services,SupS IT,No longer used,E14371,Employees                     ,Direct Employee Expenses      ,AA17,Agency Staff & Casual Paymts            ,"3,390.00",19/12/2014,REV,HAYS RECRUITING EXPERTS       
457,Central Services,SupS IT,No longer used,E14371,Employees                     ,Direct Employee Expenses      ,AA17,Agency Staff & Casual Paymts            ,"2,034.00",14/01/2015,REV,HAYS RECRUITING EXPERTS       
458,Central Services,SupS IT,No longer used,E14371,Employees                     ,Direct Employee Expenses      ,AA17,Agency Staff & Casual Paymts            ,"2,060.00",16/12/2014,REV,REDACTED
459,Central Services,SupS IT,No longer used,E14371,Employees                     ,Direct Employee Expenses      ,AA17,Agency Staff & Casual Paymts            ,"2,060.00",04/11/2014,REV,REDACTED
460,Central Services,SupS IT,No longer used,E14371,Employees                     ,Direct Employee Expenses      ,AA17,Agency Staff & Casual Paymts            ,"2,060.00",23/12/2014,REV,REDACTED
461,Central Services,SupS IT,No longer used,E14371,Employees                     ,Direct Employee Expenses      ,AA17,Agency Staff & Casual Paymts            ,"3,390.00",26/11/2014,REV,HAYS RECRUITING EXPERTS       
462,Central Services,SupS IT,No longer used,E14371,Employees                     ,Direct Employee Expenses      ,AA17,Agency Staff & Casual Paymts            ,824,06/01/2015,REV,REDACTED
463,Central Services,SupS IT,No longer used,E14371,Employees                     ,Direct Employee Expenses      ,AA17,Agency Staff & Casual Paymts            ,"3,390.00",19/12/2014,REV,HAYS RECRUITING EXPERTS       
464,Central Services,SupS IT,No longer used,E14371,Supplies & Services           ,Services                      ,DF03,Consultants                             ,"10,700.00",12/01/2015,REV,V4 SERVICES LIMITED           
465,Central Services,SupS IT,Business Systems - Deptl Supt,E14377,Supplies & Services           ,Services                      ,DF04,Miscellaneous Expenses                  ,"4,750.00",26/01/2015,REV,THINTECH LIMITED              
466,Central Services,SupS IT,Business Systems - Deptl Supt,E14377,Supplies & Services           ,Comms and Computing           ,DG15,Network Maintenance                     ,"1,902.00",16/01/2015,REV,ZOHO CORPORATION PRIVATE      
467,Cultural Env Reg&Plan Services,Housing Standards,Shared Regulatory Service Proj          ,G00091,Supplies & Services           ,Services                      ,DF03,Consultants                             ,"2,800.00",22/12/2014,REV,REDACTED
468,Cultural Env Reg&Plan Services,Mgt & Support (Env),Senior Mgt. - E.S.C.,G00100,Supplies & Services           ,Services                      ,DF03,Consultants                             ,"9,290.00",23/10/2014,REV,STEER DAVIES GLEAS            
469,Highways & Transport Services,Hwys/Rds (struct) not split,C'way & F'way Mtce,G00121,Supplies & Services           ,Services                      ,DF03,Consultants                             ,"1,822.50",20/12/2014,REV,KKMC CONSULTING LTD           
470,Highways & Transport Services,Hwys/Rds (struct) not split,C'way & F'way Mtce,G00121,Supplies & Services           ,Services                      ,DF03,Consultants                             ,"1,462.50",20/12/2014,REV,KKMC CONSULTING LTD           
471,Highways & Transport Services,Hwys/Rds (struct) not split,C'way & F'way Mtce,G00121,Supplies & Services           ,Services                      ,DF03,Consultants                             ,"2,047.50",20/01/2015,REV,KKMC CONSULTING LTD           
472,Highways & Transport Services,Hwys/Rds (struct) not split,C'way & F'way Mtce,G00121,Supplies & Services           ,Services                      ,DF03,Consultants                             ,607.5,24/11/2014,REV,KKMC CONSULTING LTD           
473,Highways & Transport Services,Hwys/Rds (struct) not split,C'way & F'way Mtce,G00121,Supplies & Services           ,Services                      ,DF03,Consultants                             ,540,24/11/2014,REV,KKMC CONSULTING LTD           
474,Highways & Transport Services,Hwys/Rds (struct) not split,C'way & F'way Mtce,G00121,Supplies & Services           ,Services                      ,DF03,Consultants                             ,810,24/11/2014,REV,KKMC CONSULTING LTD           
475,Highways & Transport Services,Hwys/Rds (struct) not split,C'way & F'way Mtce,G00121,Supplies & Services           ,Grants and Subscriptions      ,DJ04,Subscriptions                           ,750,13/08/2014,REV,THOMAS TELFORD SERVICES LTD   
476,Highways & Transport Services,Repair prin/oth rds not split,Carriageway Patching,G00125,Third Party Payments          ,Private Contractors           ,EH56,Carriageway/Fway Maint                  ,"52,564.62",19/12/2014,REV,FM CONWAY LTD                 
477,Highways & Transport Services,Repair prin/oth rds not split,Carriageway Patching,G00125,Third Party Payments          ,Private Contractors           ,EH56,Carriageway/Fway Maint                  ,"4,279.50",12/01/2015,REV,FM CONWAY LTD                 
478,Highways & Transport Services,Repair prin/oth rds not split,Carriageway Patching,G00125,Third Party Payments          ,Private Contractors           ,EH56,Carriageway/Fway Maint                  ,"5,142.20",06/01/2015,REV,FM CONWAY LTD                 
479,Highways & Transport Services,Repair prin/oth rds not split,Walk Sheets,G00127,Third Party Payments          ,Private Contractors           ,EH56,Carriageway/Fway Maint                  ,"1,618.86",06/01/2015,REV,FM CONWAY LTD                 
480,Highways & Transport Services,Repair prin/oth rds not split,Walk Sheets,G00127,Third Party Payments          ,Private Contractors           ,EH56,Carriageway/Fway Maint                  ,"1,952.40",12/01/2015,REV,FM CONWAY LTD                 
481,Highways & Transport Services,Repair prin/oth rds not split,Walk Sheets,G00127,Third Party Payments          ,Private Contractors           ,EH56,Carriageway/Fway Maint                  ,679.84,12/01/2015,REV,FM CONWAY LTD                 
482,Highways & Transport Services,Repair prin/oth rds not split,Walk Sheets,G00127,Third Party Payments          ,Private Contractors           ,EH56,Carriageway/Fway Maint                  ,"8,204.49",21/01/2015,REV,FM CONWAY LTD                 
483,Highways & Transport Services,Hwys/Rds (struct) not split,"Br., H'ways & Struct",G00128,Premises Related Expenditure  ,RepairsAlterations&MtceOfBldgs,BA59,Periodic Inspections                    ,"8,000.00",18/12/2014,REV,HYDER CONSULTING (UK) LTD     
484,Highways & Transport Services,Hwys/Rds (struct) not split,"Br., H'ways & Struct",G00128,Third Party Payments          ,Private Contractors           ,EH01,Miscellaneous Contrct Services          ,735,15/12/2014,REV,INTEGRATED DESIGN TECHNIQUES  
485,Highways & Transport Services,Winter Maintenance.,Winter Maintenance,G00150,Third Party Payments          ,Private Contractors           ,EH56,Carriageway/Fway Maint                  ,"4,860.00",07/01/2015,REV,MET OFFICE                    
486,Highways & Transport Services,Saf mtc prin/oth rds not split,Traffic Signs.,G00160,Premises Related Expenditure  ,Energy Costs                  ,BB02,Electricity                             ,"1,470.05",05/01/2015,REV,SCOTTISHPOWER                 
487,Highways & Transport Services,Saf mtc prin/oth rds not split,Traffic Signals .,G00170,Third Party Payments          ,Other Agencies                ,EJ57,Traffic Signals Control Unit            ,"84,903.04",14/01/2015,REV,TRANSPORT FOR LONDON          
488,Highways & Transport Services,Transport Plg/Policy/Strategy,CPZ implementation & Consultat,G00211,Third Party Payments          ,Private Contractors           ,EH56,Carriageway/Fway Maint                  ,"2,955.89",12/01/2015,REV,FM CONWAY LTD                 
489,Highways & Transport Services,Transport Plg/Policy/Strategy,CPZ implementation & Consultat,G00211,Third Party Payments          ,Private Contractors           ,EH56,Carriageway/Fway Maint                  ,747.5,18/12/2014,REV,PARKEON LTD                   
490,Highways & Transport Services,Street Lighting.,Street Lighting .,G00260,Premises Related Expenditure  ,Energy Costs                  ,BB02,Electricity                             ,"49,577.29",05/01/2015,REV,SCOTTISHPOWER                 
491,Highways & Transport Services,Street Lighting.,Street Lighting .,G00260,Third Party Payments          ,Private Contractors           ,EH01,Miscellaneous Agency Services           ,642,19/12/2014,REV,UK POWER NETWORKS (OPERATIONS)
492,Highways & Transport Services,Street Lighting.,Street Lighting .,G00260,Third Party Payments          ,Private Contractors           ,EH01,Miscellaneous Agency Services           ,642,16/01/2015,REV,UK POWER NETWORKS (OPERATIONS)
493,Highways & Transport Services,Street Lighting.,Street Lighting .,G00260,Third Party Payments          ,Private Contractors           ,EH01,Miscellaneous Agency Services           ,642,19/12/2014,REV,UK POWER NETWORKS (OPERATIONS)
494,Highways & Transport Services,Street Lighting.,Street Lighting .,G00260,Third Party Payments          ,Private Contractors           ,EH01,Miscellaneous Agency Services           ,675.83,19/12/2014,REV,MAY GURNEY LTD T/A CARTLEDGE  
495,Highways & Transport Services,Street Lighting.,Street Lighting .,G00260,Third Party Payments          ,Private Contractors           ,EH01,Miscellaneous Agency Services           ,526,05/01/2015,REV,UK POWER NETWORKS (OPERATIONS)
496,Highways & Transport Services,Street Lighting.,Street Lighting .,G00260,Third Party Payments          ,Private Contractors           ,EH01,Miscellaneous Agency Services           ,"1,837.09",20/01/2015,REV,MAY GURNEY LTD T/A CARTLEDGE  
497,Highways & Transport Services,Street Lighting.,Street Lighting .,G00260,Third Party Payments          ,Private Contractors           ,EH01,Miscellaneous Agency Services           ,639,19/12/2014,REV,UK POWER NETWORKS (OPERATIONS)
498,Highways & Transport Services,Street Lighting.,Street Lighting .,G00260,Third Party Payments          ,Private Contractors           ,EH01,Miscellaneous Agency Services           ,"1,124.00",19/12/2014,REV,UK POWER NETWORKS (OPERATIONS)
499,Highways & Transport Services,Street Lighting.,Street Lighting .,G00260,Third Party Payments          ,Private Contractors           ,EH01,Miscellaneous Agency Services           ,642,16/01/2015,REV,UK POWER NETWORKS (OPERATIONS)
500,Highways & Transport Services,Off-street parking,Car Parks (Unloc),G00291,Premises Related Expenditure  ,RepairsAlterations&MtceOfBldgs,BA06,REPAIRS & MAINTENANCE GENERAL           ,"1,121.80",17/12/2014,REV,FACTOR 21                     
501,Highways & Transport Services,Off-street parking,Car Parks (Unloc),G00291,Third Party Payments          ,Private Contractors           ,EH02,Miscellaneous Hired Services            ,"3,666.00",31/12/2014,REV,COBALT TELEPHONE TECHNOLOGIES 
502,Highways & Transport Services,Off-street parking,York Close CP,G00298,Premises Related Expenditure  ,Energy Costs                  ,BB02,Electricity                             ,590.27,25/12/2014,REV,SCOTTISHPOWER                 
503,Highways & Transport Services,Off-street parking,St. Georges Car Park WEST M/S,G00302,Premises Related Expenditure  ,Energy Costs                  ,BB02,Electricity                             ,"-1,328.88",08/01/2015,REV,SCOTTISHPOWER                 
504,Highways & Transport Services,Off-street parking,St. Georges Car Park WEST M/S,G00302,Premises Related Expenditure  ,Energy Costs                  ,BB02,Electricity                             ,"1,328.88",08/01/2015,REV,SCOTTISHPOWER                 
505,Highways & Transport Services,Off-street parking,St. Georges Car Park WEST M/S,G00302,Premises Related Expenditure  ,Energy Costs                  ,BB02,Electricity                             ,684.58,14/01/2015,REV,SCOTTISHPOWER                 
506,Highways & Transport Services,On-street parking,On Street Parking.,G00311,Premises Related Expenditure  ,RepairsAlterations&MtceOfBldgs,BA06,Repairs & Maintenance General           ,695.2,17/12/2014,REV,FACTOR 21                     
507,Highways & Transport Services,On-street parking,On Street Parking.,G00311,Supplies & Services           ,Comms and Computing           ,DG56,SRF Work                                ,"1,255.00",29/01/2015,REV,NETCALL TELECOM LIMITED       
508,Highways & Transport Services,Safe routes inc schl x patrol,DFT Child Pedestrian,G00324,Supplies & Services           ,Expenses                      ,DH50,Special Projects                        ,"1,111.10",18/12/2014,REV,ISLINGTON COUNCIL             
509,Highways & Transport Services,CYCLIST TRAINER,CYCLIST TRAINER,G00328,Supplies & Services           ,Equip Furniture/Materials     ,DA04,Materials                               ,"1,735.00",17/12/2014,REV,RED ZULU LIMITED              
510,Highways & Transport Services,Parking Enforcement not split,Civil Enforcement Officers,G00330,Supplies & Services           ,Equip Furniture/Materials     ,DA53,Specialist Equipment                    ,"1,900.00",16/01/2015,REV,LONDON BOROUGH OF CROYDON     
511,Highways & Transport Services,Parking Enforcement not split,Civil Enforcement Officers,G00330,Supplies & Services           ,Clothing Unfrms Laundry       ,DC02,Clothing & Uniforms                     ,877.5,18/12/2014,REV,KELTIC CLOTHING LTD           
512,Highways & Transport Services,Parking Enforcement not split,Operational Running Costs,G00331,Supplies & Services           ,Equip Furniture/Materials     ,DA09,Equip-Purchases                         ,"4,655.00",17/12/2014,REV,PARKEON LTD                   
513,Highways & Transport Services,Parking Enforcement not split,Operational Running Costs,G00331,Third Party Payments          ,Other Agencies                ,EJ58,Parking Cttee for London                ,"21,130.23",14/01/2015,REV,LONDON COUNCILS               
514,Highways & Transport Services,Repair prin/oth rds not split,Flood Risk Management,G00350,Supplies & Services           ,Services                      ,DF02,Misc Advertising/Publicity              ,573.81,15/12/2014,REV,NEWSQUEST (LONDON)LTD         
515,Highways & Transport Services,Repair prin/oth rds not split,Flood Risk Management,G00350,Third Party Payments          ,Private Contractors           ,EH56,Carriageway/Fway Maint                  ,"17,000.00",21/01/2015,REV,FM CONWAY LTD                 
516,Highways & Transport Services,Hwys/Rds (struct) not split,NRSWA Permitting (LoPS),G00385,Employees                     ,Indirect Employee Expenses    ,AB57,External Training Costs                 ,"1,530.00",22/01/2015,REV,WILBAR ASSOCIATES             
517,Highways & Transport Services,Hwys/Rds (struct) not split,NRSWA Permitting (LoPS),G00385,Supplies & Services           ,Services                      ,DF03,Consultants                             ,"1,560.96",21/11/2014,REV,FIRST INTERVENTION LTD        
518,Highways & Transport Services,Hwys/Rds (struct) not split,Footpath Crossings.,G00390,Third Party Payments          ,Private Contractors           ,EH56,Carriageway/Fway Maint                  ,"3,505.78",06/01/2015,REV,FM CONWAY LTD                 
519,Highways & Transport Services,Hwys/Rds (struct) not split,Footpath Crossings.,G00390,Third Party Payments          ,Private Contractors           ,EH56,Carriageway/Fway Maint                  ,"5,240.11",06/01/2015,REV,FM CONWAY LTD                 
520,Highways & Transport Services,Hwys/Rds (struct) not split,Footpath Crossings.,G00390,Third Party Payments          ,Private Contractors           ,EH56,Carriageway/Fway Maint                  ,642,16/01/2015,REV,UK POWER NETWORKS (OPERATIONS)
521,Cultural Env Reg&Plan Services,Street Clean - Not highways,Street Cleansing (Inc. Gully),G00492,Supplies & Services           ,Equip Furniture/Materials     ,DA01,Equipment - R & M                       ,"1,183.25",28/11/2014,REV,N A BROWN LTD                 
522,Cultural Env Reg&Plan Services,Street Clean - Not highways,Street Cleansing (Inc. Gully),G00492,Supplies & Services           ,Equip Furniture/Materials     ,DA31,Waste Sacks & Bags                      ,"5,305.50",27/11/2014,REV,IMPERIAL POLYTHENE PRODUCTS LT
523,Cultural Env Reg&Plan Services,Waste Disposal (not separated),Waste Disposal .,G00550,Third Party Payments          ,Private Contractors           ,EH04,C1 Viridor SLWP Landfill Contract       ,"399,285.52",29/12/2014,REV,KINGSTON CORPORATION          
524,Cultural Env Reg&Plan Services,Waste Disposal (not separated),Waste Disposal .,G00550,Third Party Payments          ,Private Contractors           ,EH63,SLWP C3 EFW Gate Fees                   ,"38,487.28",29/12/2014,REV,KINGSTON CORPORATION          
525,Cultural Env Reg&Plan Services,Waste Disposal (not separated),Waste Disposal .,G00550,Third Party Payments          ,Private Contractors           ,EH66,Clinical Waste Disposal                 ,642.11,31/12/2014,REV,S.GRUNDON (WASTE) LTD.        
526,Cultural Env Reg&Plan Services,Waste Disposal (not separated),Waste Disposal .,G00550,Third Party Payments          ,Private Contractors           ,EH96,GULLY DISPOSAL                          ,634.31,31/12/2014,REV,CORY ENVIRONMENTAL LIMITED    
527,Cultural Env Reg&Plan Services,Civic Amenity Sites,Garth Road Site,G00580,Premises Related Expenditure  ,Energy Costs                  ,BB02,Electricity                             ,"1,049.19",29/12/2014,REV,SCOTTISHPOWER                 
528,Cultural Env Reg&Plan Services,Civic Amenity Sites,Garth Road Site,G00580,Third Party Payments          ,Private Contractors           ,EH61,Green Waste Disposal                    ,"6,765.58",29/12/2014,REV,KINGSTON CORPORATION          
529,Cultural Env Reg&Plan Services,Public Health,Dog Control.,G00620,Third Party Payments          ,Private Contractors           ,EH02,Miscellaneous Hired Services            ,"1,746.00",05/01/2015,REV,NOAH'S ARK ENVIRONMENTAL SERV.
530,Cultural Env Reg&Plan Services,Recycling (Collection),Recycling Activities,G00640,Supplies & Services           ,Equip Furniture/Materials     ,DA01,Equipment - R & M                       ,828,16/01/2015,REV,R.J.H.WELDING                 
531,Cultural Env Reg&Plan Services,Recycling (Collection),Recycling Activities,G00640,Supplies & Services           ,Equip Furniture/Materials     ,DA31,Waste Sacks & Bags                      ,"1,532.70",27/11/2014,REV,IMPERIAL POLYTHENE PRODUCTS LT
532,Cultural Env Reg&Plan Services,Recycling (Collection),Recycling Activities,G00640,Third Party Payments          ,Private Contractors           ,EH03,C3 DRY RECYCLING GATE FEE               ,"-20,605.62",29/12/2014,REV,KINGSTON CORPORATION          
533,Cultural Env Reg&Plan Services,Recycling (Collection),Recycling Activities,G00640,Third Party Payments          ,Private Contractors           ,EH08,SLWP C1 Haulage Dry Recyclable          ,"34,211.11",29/12/2014,REV,KINGSTON CORPORATION          
534,Cultural Env Reg&Plan Services,Recycling (Collection),Recycling Activities,G00640,Third Party Payments          ,Private Contractors           ,EH94,C1 DRY RECYCLING ACCEPTANCE & BULK      ,"7,441.54",29/12/2014,REV,KINGSTON CORPORATION          
535,Cultural Env Reg&Plan Services,Recycling (Collection),Garden Waste Service,G00647,Third Party Payments          ,Private Contractors           ,EH61,Green Waste Disposal                    ,"6,063.62",29/12/2014,REV,KINGSTON CORPORATION          
536,Cultural Env Reg&Plan Services,Recycling (Collection),Food Waste Service,G00648,Supplies & Services           ,Equip Furniture/Materials     ,DA31,Waste Sacks & Bags                      ,"1,692.39",01/12/2014,REV,SPHERE PROFFESSIONAL          
537,Cultural Env Reg&Plan Services,Recycling (Collection),Food Waste Service,G00648,Supplies & Services           ,Equip Furniture/Materials     ,DA32,Wheeled Bins                            ,"6,645.60",21/01/2015,REV,STRAIGHT PLC                  
538,Cultural Env Reg&Plan Services,Recycling (Collection),Food Waste Service,G00648,Third Party Payments          ,Private Contractors           ,EH18,SLWP C3 Food Waste Gate Fees            ,"8,560.01",29/12/2014,REV,KINGSTON CORPORATION          
539,Cultural Env Reg&Plan Services,Recycling (Collection),Food Waste Service,G00648,Third Party Payments          ,Private Contractors           ,EH19,SLWP C3 FOOD WASTE HAULAGE              ,"6,068.83",29/12/2014,REV,KINGSTON CORPORATION          
540,Cultural Env Reg&Plan Services,Household Waste Collection,Refuse Collection (Operations),G00661,Supplies & Services           ,Equip Furniture/Materials     ,DA09,Equip-Purchases                         ,"1,540.00",29/12/2014,REV,RAEVAN SUPPLIES LTD           
541,Cultural Env Reg&Plan Services,Household Waste Collection,Refuse Collection (Operations),G00661,Supplies & Services           ,Equip Furniture/Materials     ,DA31,Waste Sacks & Bags                      ,"4,848.64",17/12/2014,REV,IMPERIAL POLYTHENE PRODUCTS LT
542,Cultural Env Reg&Plan Services,Household Waste Collection,Refuse Collection (Operations),G00661,Supplies & Services           ,Equip Furniture/Materials     ,DA32,Wheeled Bins                            ,"1,920.00",12/12/2014,REV,UK CONTAINER MAINTENANCE LTD  
543,Cultural Env Reg&Plan Services,Household Waste Collection,Refuse Collection (Operations),G00661,Supplies & Services           ,Clothing Unfrms Laundry       ,DC02,Clothing & Uniforms                     ,"1,650.00",23/12/2014,REV,VESTGUARD UK                  
544,Cultural Env Reg&Plan Services,Household Waste Collection,Refuse Collection (Operations),G00661,Supplies & Services           ,Services                      ,DF04,Miscellaneous Expenses                  ,"1,490.40",06/01/2015,REV,ELM GARDEN ALLEYGATE SCHEME   
545,Cultural Env Reg&Plan Services,Street Clean - Not highways,Waste Enforcement,G00680,Supplies & Services           ,Equip Furniture/Materials     ,DA09,Equip-Purchases                         ,"1,774.00",08/01/2015,REV,SECURITYTEC LTD               
546,Cultural Env Reg&Plan Services,Street Clean - Not highways,Waste Enforcement,G00680,Supplies & Services           ,Services                      ,DF30,Activities Programme                    ,"3,360.00",05/12/2014,REV,DANGEROUS THEATRE COMPANY     
547,Cultural Env Reg&Plan Services,Street Clean - Not highways,Waste Enforcement,G00680,Third Party Payments          ,Private Contractors           ,EH02,Miscellaneous Hired Services            ,"29,712.80",31/12/2014,REV,KINGDOM SECURITY              
548,Cultural Env Reg&Plan Services,Inspect/Enforce (Consumer P),Trading Standards,G00690,Supplies & Services           ,Services                      ,DF11,Counsel's Fees                          ,"1,050.00",02/01/2015,REV,REDACTED
549,Cultural Env Reg&Plan Services,Food Safety,Health & Safety,G00697,Supplies & Services           ,Grants and Subscriptions      ,DJ04,Subscriptions                           ,825,29/01/2015,REV,CHARTERED INST.OF ENVIR.HEALTH
550,Cultural Env Reg&Plan Services,Housing Standards,Housing/Env,G00730,Supplies & Services           ,Services                      ,DF11,Counsel's Fees                          ,500,22/12/2014,REV,REDACTED
551,Central Services,SupS Env and Regen,LBR - Pollution                         ,G01004,Supplies & Services           ,Services                      ,DF03,Consultants                             ,"1,000.00",19/12/2014,REV,REDACTED
552,Central Services,Grants - Voluntary Groups,Vestry Hall,G19290,Employees                     ,Direct Employee Expenses      ,AA17,Agency Staff & Casual Paymts            ,"5,148.13",10/01/2015,REV,REDACTED
553,Central Services,Grants - Voluntary Groups,Vestry Hall,G19290,Employees                     ,Direct Employee Expenses      ,AA17,Agency Staff & Casual Paymts            ,551.12,31/12/2014,REV,REDACTED
554,Central Services,Grants - Voluntary Groups,Vestry Hall,G19290,Premises Related Expenditure  ,RepairsAlterations&MtceOfBldgs,BA06,Repairs & Maintenance General           ,"1,620.00",07/01/2015,REV,DAPPA MRP FLOORING            
555,Central Services,Grants - Voluntary Groups,Vestry Hall,G19290,Premises Related Expenditure  ,Water Services                ,BE01,Use of Water (Metered)                  ,607.46,05/01/2015,REV,THAMES WATER UTILITIES LTD    
556,Central Services,Grants - Voluntary Groups,Vestry Hall,G19290,Premises Related Expenditure  ,Cleaning and Domestic Supplies,BH03,Cleaning Services                       ,"1,383.56",20/12/2014,REV,BIRKIN CLEANING SERVICES LTD  
557,CS -Oth Operating Inc & Expend,Extraordinary Items & PY Adj.,326 London Road,G40312,Supplies & Services           ,Services                      ,DF03,Consultants                             ,"-1,527.50",27/10/2014,REV,QUINTON SCOTT                 
558,CS -Oth Operating Inc & Expend,Extraordinary Items & PY Adj.,326 London Road,G40312,Supplies & Services           ,Services                      ,DF03,Consultants                             ,"10,502.50",25/04/2014,REV,QUINTON SCOTT                 
559,Highways & Transport Services,Safe routes inc schl x patrol,School & Road Safety TFL                ,H01083,Supplies & Services           ,Equip Furniture/Materials     ,DA04,Materials                               ,545,20/11/2014,REV,EMC ADVERTISING GIFTS         
560,Highways & Transport Services,Safe routes inc schl x patrol,School & Road Safety TFL                ,H01083,Supplies & Services           ,Equip Furniture/Materials     ,DA04,Materials                               ,"1,750.00",14/01/2015,REV,BIKEWIZE MOTORCYCLE TRAINING  
561,Highways & Transport Services,Safe routes inc schl x patrol,School & Road Safety TFL                ,H01083,Supplies & Services           ,Equip Furniture/Materials     ,DA09,Equip-Purchases                         ,540,07/01/2015,REV,SELECTA MARK SECURITY SYSTEMS 
562,Cultural Env Reg&Plan Services,DC Advice Apps & Reg not split,Development Control,H01130,Supplies & Services           ,Services                      ,DF02,Misc Advertising/Publicity              ,565.5,27/12/2014,REV,NEWSQUEST (LONDON)LTD         
563,Cultural Env Reg&Plan Services,DC Advice Apps & Reg not split,Development Control,H01130,Supplies & Services           ,Services                      ,DF03,Consultants                             ,"4,125.00",01/12/2014,REV,LUNDUN LTD                    
564,Cultural Env Reg&Plan Services,DC Advice Apps & Reg not split,Development Control,H01130,Supplies & Services           ,Services                      ,DF11,Counsel's fees                          ,"1,850.00",29/01/2015,REV,GC PLANNING PARTNERSHIP LTD   
565,Cultural Env Reg&Plan Services,DC Advice Apps & Reg not split,Development Control,H01130,Supplies & Services           ,Comms and Computing           ,DG09,Computer Purchases - Misc               ,750,22/12/2014,REV,NORTHGATE INFORMATION SOLUTION
566,Cultural Env Reg&Plan Services,DC Advice Apps & Reg not split,Development Control,H01130,Oth Grants Reimbmnts/Contribs ,Cost recharges to other bodies,QC10,Recovery of misc expenses (X)           ,500,13/01/2015,REV,LOPIAN WAGNER SOLICITORS      
567,Cultural Env Reg&Plan Services,Planning Policy not split,REGENERATION & INVESTMENT,H01174,Supplies & Services           ,Grants and Subscriptions      ,DJ04,Subscriptions                           ,625,01/01/2015,REV,ASSOC OF TOWN CTR MANAGEMENT  
568,Cultural Env Reg&Plan Services,Economic Dev (Not separated),LABGI-BUSINESS SUPPORT SERVICE,H01219,Third Party Payments          ,Private Contractors           ,EH10,Contract Payments                       ,"4,975.00",13/01/2015,REV,SHARED INTELLIGENCE LTD       
569,Cultural Env Reg&Plan Services,Economic Dev (Not separated),Mitcham Means Business,H01230,Supplies & Services           ,Services                      ,DF35,Graphic Design                          ,590,19/01/2015,REV,OMNI COLOUR PRESENTATIONS LTD 
570,Cultural Env Reg&Plan Services,Economic Dev (Not separated),Capt Ambition-Suburban Opprt Z,H01231,Supplies & Services           ,Services                      ,DF03,Consultants                             ,"1,831.00",27/01/2015,REV,WHITE LABEL CONSULTANTS       
571,Cultural Env Reg&Plan Services,Economic Dev (Not separated),Capt Ambition-Suburban Opprt Z,H01231,Supplies & Services           ,Expenses                      ,DH14,Prizes and Awards                       ,"12,900.00",12/12/2014,REV,EVENTS AND PR LIMITED         
572,CS -Oth Operating Inc & Expend,T/A Vehicle Maintenance etc,Transport-Contract Hire,J01374,Transport Related Expenditure ,Contract Hire and Op Leasing  ,CC53,Plant Hire for MRCS                     ,610,13/01/2015,REV,PFB HIRE LTD                  
573,CS -Oth Operating Inc & Expend,T/A Vehicle Maintenance etc,Transport-Contract Hire,J01374,Transport Related Expenditure ,Contract Hire and Op Leasing  ,CC53,Plant Hire for MRCS                     ,550,06/01/2015,REV,PFB HIRE LTD                  
574,CS -Oth Operating Inc & Expend,T/A Vehicle Maintenance etc,Transport-Contract Hire,J01374,Transport Related Expenditure ,Contract Hire and Op Leasing  ,CC53,Plant Hire for MRCS                     ,610,30/12/2014,REV,PFB HIRE LTD                  
575,CS -Oth Operating Inc & Expend,T/A Vehicle Maintenance etc,Transport-Contract Hire,J01374,Transport Related Expenditure ,Contract Hire and Op Leasing  ,CC53,Plant Hire for MRCS                     ,550,09/01/2015,REV,PFB HIRE LTD                  
576,CS -Oth Operating Inc & Expend,T/A Vehicle Maintenance etc,Transport-Contract Hire,J01374,Transport Related Expenditure ,Contract Hire and Op Leasing  ,CC53,Plant Hire for MRCS                     ,759,31/12/2014,REV,REDACTED
577,CS -Oth Operating Inc & Expend,T/A Vehicle Maintenance etc,Transport-Contract Hire,J01374,Transport Related Expenditure ,Contract Hire and Op Leasing  ,CC53,Plant Hire for MRCS                     ,550,18/12/2014,REV,PFB HIRE LTD                  
578,CS -Oth Operating Inc & Expend,T/A Vehicle Maintenance etc,Transport-Contract Hire,J01374,Transport Related Expenditure ,Contract Hire and Op Leasing  ,CC53,Plant Hire for MRCS                     ,825,31/12/2014,REV,B&T PLANT HIRE LTD            
579,CS -Oth Operating Inc & Expend,T/A Vehicle Maintenance etc,Transport-Contract Hire,J01374,Transport Related Expenditure ,Contract Hire and Op Leasing  ,CC53,Plant Hire for MRCS                     ,925,09/01/2015,REV,DRM MUNICIPAL SERVICES LIMITED
580,CS -Oth Operating Inc & Expend,T/A Vehicle Maintenance etc,Transport-Contract Hire,J01374,Transport Related Expenditure ,Contract Hire and Op Leasing  ,CC53,Plant Hire for MRCS                     ,759,31/12/2014,REV,REDACTED
581,CS -Oth Operating Inc & Expend,T/A Vehicle Maintenance etc,Transport-Contract Hire,J01374,Transport Related Expenditure ,Contract Hire and Op Leasing  ,CC53,Plant Hire for MRCS                     ,610,23/12/2014,REV,PFB HIRE LTD                  
582,CS -Oth Operating Inc & Expend,T/A Vehicle Maintenance etc,Transport-Contract Hire,J01374,Transport Related Expenditure ,Contract Hire and Op Leasing  ,CC53,Plant Hire for MRCS                     ,925,02/01/2015,REV,DRM MUNICIPAL SERVICES LIMITED
583,CS -Oth Operating Inc & Expend,T/A Vehicle Maintenance etc,Transport-Contract Hire,J01374,Transport Related Expenditure ,Contract Hire and Op Leasing  ,CC53,Plant Hire for MRCS                     ,550,30/12/2014,REV,PFB HIRE LTD                  
584,CS -Oth Operating Inc & Expend,T/A Vehicle Maintenance etc,Transport-Contract Hire,J01374,Transport Related Expenditure ,Contract Hire and Op Leasing  ,CC53,Plant Hire for MRCS                     ,925,16/01/2015,REV,DRM MUNICIPAL SERVICES LIMITED
585,CS -Oth Operating Inc & Expend,T/A Vehicle Maintenance etc,Transport-Contract Hire,J01374,Transport Related Expenditure ,Contract Hire and Op Leasing  ,CC53,Plant Hire for MRCS                     ,610,06/01/2015,REV,PFB HIRE LTD                  
586,CS -Oth Operating Inc & Expend,T/A Vehicle Maintenance etc,Transport-Contract Hire,J01374,Transport Related Expenditure ,Contract Hire and Op Leasing  ,CC53,Plant Hire for MRCS                     ,610,16/12/2014,REV,PFB HIRE LTD                  
587,CS -Oth Operating Inc & Expend,T/A Vehicle Maintenance etc,Transport-Contract Hire,J01374,Transport Related Expenditure ,Contract Hire and Op Leasing  ,CC53,Plant Hire for MRCS                     ,550,15/01/2015,REV,PFB HIRE LTD                  
588,CS -Oth Operating Inc & Expend,T/A Vehicle Maintenance etc,Transport-Contract Hire,J01374,Transport Related Expenditure ,Contract Hire and Op Leasing  ,CC53,Plant Hire for MRCS                     ,925,28/12/2014,REV,DRM MUNICIPAL SERVICES LIMITED
589,CS -Oth Operating Inc & Expend,T/A Vehicle Maintenance etc,Transport-Contract Hire,J01374,Transport Related Expenditure ,Contract Hire and Op Leasing  ,CC56,Plant Hire for Leisure                  ,"1,755.00",31/12/2014,REV,REDACTED
590,CS -Oth Operating Inc & Expend,T/A Vehicle Maintenance etc,Transport-Contract Hire,J01374,Transport Related Expenditure ,Contract Hire and Op Leasing  ,CC57,Pland Hire for Housing                  ,940,31/12/2014,REV,REDACTED
591,CS -Oth Operating Inc & Expend,T/A Vehicle Maintenance etc,Transport-Contract Hire,J01374,Transport Related Expenditure ,Contract Hire and Op Leasing  ,CC59,HIRING TRANSPORT OPERATIONS             ,"2,238.32",31/12/2014,REV,REDACTED
592,CS -Oth Operating Inc & Expend,T/A Vehicle Maintenance etc,Transport-Contract Hire,J01374,Transport Related Expenditure ,Contract Hire and Op Leasing  ,CC59,HIRING TRANSPORT OPERATIONS             ,"1,518.00",31/12/2014,REV,BURNT TREE VEHICLE RENTAL     
593,CS -Oth Operating Inc & Expend,T/A Vehicle Maintenance etc,Transport-Contract Hire,J01374,Transport Related Expenditure ,Contract Hire and Op Leasing  ,CC59,HIRING TRANSPORT OPERATIONS             ,"1,518.00",31/12/2014,REV,BURNT TREE VEHICLE RENTAL     
594,CS -Oth Operating Inc & Expend,T/A Vehicle Maintenance etc,Transport-Contract Hire,J01374,Transport Related Expenditure ,Contract Hire and Op Leasing  ,CC59,HIRING TRANSPORT OPERATIONS             ,"1,518.00",31/12/2014,REV,BURNT TREE VEHICLE RENTAL     
595,CS -Oth Operating Inc & Expend,T/A Vehicle Maintenance etc,Transport-Contract Hire,J01374,Transport Related Expenditure ,Contract Hire and Op Leasing  ,CC64,HIRING TRANSPORT SEN CABS               ,870,22/12/2014,REV,SILVERBURN FINANCE (UK) LTD   
596,CS -Oth Operating Inc & Expend,T/A Vehicle Maintenance etc,Transport-Contract Hire,J01374,Transport Related Expenditure ,Contract Hire and Op Leasing  ,CC64,HIRING TRANSPORT SEN CABS               ,750,31/12/2014,REV,NVCAR HIRE LTD                
597,CS -Oth Operating Inc & Expend,T/A Vehicle Maintenance etc,Transport-Contract Hire,J01374,Transport Related Expenditure ,Contract Hire and Op Leasing  ,CC64,HIRING TRANSPORT SEN CABS               ,"1,484.00",31/12/2014,REV,CAPITAL CARS                  
598,CS -Oth Operating Inc & Expend,T/A Vehicle Maintenance etc,Transport-Contract Hire,J01374,Transport Related Expenditure ,Contract Hire and Op Leasing  ,CC64,HIRING TRANSPORT SEN CABS               ,700,31/12/2014,REV,NVCAR HIRE LTD                
599,CS -Oth Operating Inc & Expend,T/A Vehicle Maintenance etc,Transport-Contract Hire,J01374,Transport Related Expenditure ,Contract Hire and Op Leasing  ,CC64,HIRING TRANSPORT SEN CABS               ,"1,092.00",31/12/2014,REV,CAPITAL CARS                  
600,CS -Oth Operating Inc & Expend,T/A Vehicle Maintenance etc,Transport-Contract Hire,J01374,Transport Related Expenditure ,Contract Hire and Op Leasing  ,CC64,HIRING TRANSPORT SEN CABS               ,"1,260.00",31/12/2014,REV,CAPITAL CARS                  
601,CS -Oth Operating Inc & Expend,T/A Vehicle Maintenance etc,Transport-Contract Hire,J01374,Transport Related Expenditure ,Contract Hire and Op Leasing  ,CC64,HIRING TRANSPORT SEN CABS               ,"1,452.00",31/12/2014,REV,SHERWOOD TRANSPORT GROUP      
602,CS -Oth Operating Inc & Expend,T/A Vehicle Maintenance etc,Transport-Contract Hire,J01374,Transport Related Expenditure ,Contract Hire and Op Leasing  ,CC64,HIRING TRANSPORT SEN CABS               ,"2,775.00",31/12/2014,REV,THE IMPACT GROUP PLC          
603,CS -Oth Operating Inc & Expend,T/A Vehicle Maintenance etc,Transport-Contract Hire,J01374,Transport Related Expenditure ,Contract Hire and Op Leasing  ,CC64,HIRING TRANSPORT SEN CABS               ,"1,560.00",31/12/2014,REV,NVCAR HIRE LTD                
604,CS -Oth Operating Inc & Expend,T/A Vehicle Maintenance etc,Transport-Contract Hire,J01374,Transport Related Expenditure ,Contract Hire and Op Leasing  ,CC64,HIRING TRANSPORT SEN CABS               ,"1,596.00",30/12/2014,REV,BARCLAYS ASSET & SALES FINANCE
605,CS -Oth Operating Inc & Expend,T/A Vehicle Maintenance etc,Transport-Contract Hire,J01374,Transport Related Expenditure ,Contract Hire and Op Leasing  ,CC64,HIRING TRANSPORT SEN CABS               ,"1,350.00",31/12/2014,REV,SHERWOOD TRANSPORT GROUP      
606,CS -Oth Operating Inc & Expend,T/A Vehicle Maintenance etc,Transport-Contract Hire,J01374,Transport Related Expenditure ,Contract Hire and Op Leasing  ,CC64,HIRING TRANSPORT SEN CABS               ,912,22/12/2014,REV,SILVERBURN FINANCE (UK) LTD   
607,CS -Oth Operating Inc & Expend,T/A Vehicle Maintenance etc,Transport-Contract Hire,J01374,Transport Related Expenditure ,Contract Hire and Op Leasing  ,CC64,HIRING TRANSPORT SEN CABS               ,630,31/12/2014,REV,NVCAR HIRE LTD                
608,CS -Oth Operating Inc & Expend,T/A Vehicle Maintenance etc,Transport-Contract Hire,J01374,Transport Related Expenditure ,Contract Hire and Op Leasing  ,CC64,HIRING TRANSPORT SEN CABS               ,924,31/12/2014,REV,CAPITAL CARS                  
609,CS -Oth Operating Inc & Expend,T/A Vehicle Maintenance etc,Transport-Contract Hire,J01374,Transport Related Expenditure ,Contract Hire and Op Leasing  ,CC64,HIRING TRANSPORT SEN CABS               ,768,31/12/2014,REV,CHEAM STATION CARS            
610,CS -Oth Operating Inc & Expend,T/A Vehicle Maintenance etc,Transport-Contract Hire,J01374,Transport Related Expenditure ,Contract Hire and Op Leasing  ,CC64,HIRING TRANSPORT SEN CABS               ,"1,872.00",31/12/2014,REV,CAPITAL CARS                  
611,CS -Oth Operating Inc & Expend,T/A Vehicle Maintenance etc,Transport-Contract Hire,J01374,Transport Related Expenditure ,Contract Hire and Op Leasing  ,CC64,HIRING TRANSPORT SEN CABS               ,"2,385.00",31/12/2014,REV,SHERWOOD TRANSPORT GROUP      
612,CS -Oth Operating Inc & Expend,T/A Vehicle Maintenance etc,Transport-Contract Hire,J01374,Transport Related Expenditure ,Contract Hire and Op Leasing  ,CC64,HIRING TRANSPORT SEN CABS               ,660,31/12/2014,REV,CAPITAL CARS                  
613,CS -Oth Operating Inc & Expend,T/A Vehicle Maintenance etc,Transport-Contract Hire,J01374,Transport Related Expenditure ,Contract Hire and Op Leasing  ,CC64,HIRING TRANSPORT SEN CABS               ,"1,470.00",31/12/2014,REV,NVCAR HIRE LTD                
614,CS -Oth Operating Inc & Expend,T/A Vehicle Maintenance etc,Transport-Contract Hire,J01374,Transport Related Expenditure ,Contract Hire and Op Leasing  ,CC64,HIRING TRANSPORT SEN CABS               ,"1,950.00",31/12/2014,REV,CAPITAL CARS                  
615,CS -Oth Operating Inc & Expend,T/A Vehicle Maintenance etc,Transport-Contract Hire,J01374,Transport Related Expenditure ,Contract Hire and Op Leasing  ,CC64,HIRING TRANSPORT SEN CABS               ,"1,320.00",22/12/2014,REV,SILVERBURN FINANCE (UK) LTD   
616,CS -Oth Operating Inc & Expend,T/A Vehicle Maintenance etc,Transport-Contract Hire,J01374,Transport Related Expenditure ,Contract Hire and Op Leasing  ,CC64,HIRING TRANSPORT SEN CABS               ,"1,323.00",31/12/2014,REV,A STAR TRANSPORT LIMITED      
617,CS -Oth Operating Inc & Expend,T/A Vehicle Maintenance etc,Transport-Contract Hire,J01374,Transport Related Expenditure ,Contract Hire and Op Leasing  ,CC64,HIRING TRANSPORT SEN CABS               ,"1,186.50",22/12/2014,REV,SILVERBURN FINANCE (UK) LTD   
618,CS -Oth Operating Inc & Expend,T/A Vehicle Maintenance etc,Transport-Contract Hire,J01374,Transport Related Expenditure ,Contract Hire and Op Leasing  ,CC64,HIRING TRANSPORT SEN CABS               ,"2,040.00",31/12/2014,REV,CAPITAL CARS                  
619,CS -Oth Operating Inc & Expend,T/A Vehicle Maintenance etc,Transport-Contract Hire,J01374,Transport Related Expenditure ,Contract Hire and Op Leasing  ,CC64,HIRING TRANSPORT SEN CABS               ,"1,000.00",31/12/2014,REV,NVCAR HIRE LTD                
620,CS -Oth Operating Inc & Expend,T/A Vehicle Maintenance etc,Transport-Contract Hire,J01374,Transport Related Expenditure ,Contract Hire and Op Leasing  ,CC64,HIRING TRANSPORT SEN CABS               ,"1,140.00",31/12/2014,REV,CAPITAL CARS                  
621,CS -Oth Operating Inc & Expend,T/A Vehicle Maintenance etc,Transport-Contract Hire,J01374,Transport Related Expenditure ,Contract Hire and Op Leasing  ,CC64,HIRING TRANSPORT SEN CABS               ,"2,660.00",31/12/2014,REV,SHERWOOD TRANSPORT GROUP      
622,CS -Oth Operating Inc & Expend,T/A Vehicle Maintenance etc,Transport-Contract Hire,J01374,Transport Related Expenditure ,Contract Hire and Op Leasing  ,CC64,HIRING TRANSPORT SEN CABS               ,"1,200.00",31/12/2014,REV,CAPITAL CARS                  
623,CS -Oth Operating Inc & Expend,T/A Vehicle Maintenance etc,Transport-Contract Hire,J01374,Transport Related Expenditure ,Contract Hire and Op Leasing  ,CC64,HIRING TRANSPORT SEN CABS               ,"1,820.00",30/12/2014,REV,BARCLAYS ASSET & SALES FINANCE
624,CS -Oth Operating Inc & Expend,T/A Vehicle Maintenance etc,Transport-Contract Hire,J01374,Transport Related Expenditure ,Contract Hire and Op Leasing  ,CC64,HIRING TRANSPORT SEN CABS               ,"1,035.00",31/12/2014,REV,CHEAM STATION CARS            
625,CS -Oth Operating Inc & Expend,T/A Vehicle Maintenance etc,Transport-Contract Hire,J01374,Transport Related Expenditure ,Contract Hire and Op Leasing  ,CC64,HIRING TRANSPORT SEN CABS               ,"1,845.00",31/12/2014,REV,SHERWOOD TRANSPORT GROUP      
626,CS -Oth Operating Inc & Expend,T/A Vehicle Maintenance etc,Transport-Contract Hire,J01374,Transport Related Expenditure ,Contract Hire and Op Leasing  ,CC64,HIRING TRANSPORT SEN CABS               ,"1,200.00",31/12/2014,REV,CHEAM STATION CARS            
627,CS -Oth Operating Inc & Expend,T/A Vehicle Maintenance etc,Transport-Contract Hire,J01374,Transport Related Expenditure ,Contract Hire and Op Leasing  ,CC64,HIRING TRANSPORT SEN CABS               ,"1,020.00",31/12/2014,REV,GALPINS SERVICE               
628,CS -Oth Operating Inc & Expend,T/A Vehicle Maintenance etc,Transport-Contract Hire,J01374,Transport Related Expenditure ,Contract Hire and Op Leasing  ,CC64,HIRING TRANSPORT SEN CABS               ,"1,128.00",31/12/2014,REV,PREMIER CARS                  
629,CS -Oth Operating Inc & Expend,T/A Vehicle Maintenance etc,Transport-Contract Hire,J01374,Transport Related Expenditure ,Contract Hire and Op Leasing  ,CC64,HIRING TRANSPORT SEN CABS               ,"2,001.00",28/12/2014,REV,WALLINGTON CARS & COURIERS LTD
630,CS -Oth Operating Inc & Expend,T/A Vehicle Maintenance etc,Transport-Contract Hire,J01374,Transport Related Expenditure ,Contract Hire and Op Leasing  ,CC64,HIRING TRANSPORT SEN CABS               ,"1,950.00",31/12/2014,REV,CAPITAL CARS                  
631,CS -Oth Operating Inc & Expend,T/A Vehicle Maintenance etc,Transport-Contract Hire,J01374,Transport Related Expenditure ,Contract Hire and Op Leasing  ,CC64,HIRING TRANSPORT SEN CABS               ,"1,440.00",31/12/2014,REV,CAPITAL CARS                  
632,CS -Oth Operating Inc & Expend,T/A Vehicle Maintenance etc,Transport-Contract Hire,J01374,Transport Related Expenditure ,Contract Hire and Op Leasing  ,CC64,HIRING TRANSPORT SEN CABS               ,780,31/12/2014,REV,NVCAR HIRE LTD                
633,CS -Oth Operating Inc & Expend,T/A Vehicle Maintenance etc,Transport-Contract Hire,J01374,Transport Related Expenditure ,Contract Hire and Op Leasing  ,CC64,HIRING TRANSPORT SEN CABS               ,"1,800.00",31/12/2014,REV,NVCAR HIRE LTD                
634,CS -Oth Operating Inc & Expend,T/A Vehicle Maintenance etc,Transport-Contract Hire,J01374,Transport Related Expenditure ,Contract Hire and Op Leasing  ,CC64,HIRING TRANSPORT SEN CABS               ,"1,344.00",31/12/2014,REV,CAPITAL CARS                  
635,CS -Oth Operating Inc & Expend,T/A Vehicle Maintenance etc,Transport-Contract Hire,J01374,Transport Related Expenditure ,Contract Hire and Op Leasing  ,CC64,HIRING TRANSPORT SEN CABS               ,630,31/12/2014,REV,CAPITAL CARS                  
636,CS -Oth Operating Inc & Expend,T/A Vehicle Maintenance etc,Transport-Contract Hire,J01374,Transport Related Expenditure ,Contract Hire and Op Leasing  ,CC64,HIRING TRANSPORT SEN CABS               ,"1,960.00",30/12/2014,REV,BARCLAYS ASSET & SALES FINANCE
637,CS -Oth Operating Inc & Expend,T/A Vehicle Maintenance etc,Transport-Contract Hire,J01374,Transport Related Expenditure ,Contract Hire and Op Leasing  ,CC64,HIRING TRANSPORT SEN CABS               ,"1,386.00",31/12/2014,REV,SHERWOOD TRANSPORT GROUP      
638,CS -Oth Operating Inc & Expend,T/A Vehicle Maintenance etc,Transport-Contract Hire,J01374,Transport Related Expenditure ,Contract Hire and Op Leasing  ,CC64,HIRING TRANSPORT SEN CABS               ,525,31/12/2014,REV,AERIAL CAR SERVICES LTD       
639,CS -Oth Operating Inc & Expend,T/A Vehicle Maintenance etc,Transport-Contract Hire,J01374,Transport Related Expenditure ,Contract Hire and Op Leasing  ,CC64,HIRING TRANSPORT SEN CABS               ,756,31/12/2014,REV,NVCAR HIRE LTD                
640,CS -Oth Operating Inc & Expend,T/A Vehicle Maintenance etc,Transport-Contract Hire,J01374,Transport Related Expenditure ,Contract Hire and Op Leasing  ,CC64,HIRING TRANSPORT SEN CABS               ,"1,344.00",30/12/2014,REV,BARCLAYS ASSET & SALES FINANCE
641,CS -Oth Operating Inc & Expend,T/A Vehicle Maintenance etc,Transport-Contract Hire,J01374,Transport Related Expenditure ,Contract Hire and Op Leasing  ,CC64,HIRING TRANSPORT SEN CABS               ,"2,250.00",30/12/2014,REV,BARCLAYS ASSET & SALES FINANCE
642,CS -Oth Operating Inc & Expend,T/A Vehicle Maintenance etc,Transport-Contract Hire,J01374,Transport Related Expenditure ,Contract Hire and Op Leasing  ,CC64,HIRING TRANSPORT SEN CABS               ,755,31/12/2014,REV,NVCAR HIRE LTD                
643,CS -Oth Operating Inc & Expend,T/A Vehicle Maintenance etc,Transport-Contract Hire,J01374,Transport Related Expenditure ,Contract Hire and Op Leasing  ,CC64,HIRING TRANSPORT SEN CABS               ,"1,092.00",22/12/2014,REV,SILVERBURN FINANCE (UK) LTD   
644,CS -Oth Operating Inc & Expend,T/A Vehicle Maintenance etc,Transport-Contract Hire,J01374,Transport Related Expenditure ,Contract Hire and Op Leasing  ,CC64,HIRING TRANSPORT SEN CABS               ,"1,920.00",28/12/2014,REV,WALLINGTON CARS & COURIERS LTD
645,CS -Oth Operating Inc & Expend,T/A Vehicle Maintenance etc,Transport-Contract Hire,J01374,Transport Related Expenditure ,Contract Hire and Op Leasing  ,CC64,HIRING TRANSPORT SEN CABS               ,728,31/12/2014,REV,NVCAR HIRE LTD                
646,CS -Oth Operating Inc & Expend,T/A Vehicle Maintenance etc,Transport-Contract Hire,J01374,Transport Related Expenditure ,Contract Hire and Op Leasing  ,CC64,HIRING TRANSPORT SEN CABS               ,"1,950.00",31/12/2014,REV,CAPITAL CARS                  
647,CS -Oth Operating Inc & Expend,T/A Vehicle Maintenance etc,Transport-Contract Hire,J01374,Transport Related Expenditure ,Contract Hire and Op Leasing  ,CC64,HIRING TRANSPORT SEN CABS               ,585,31/12/2014,REV,CAPITAL CARS                  
648,CS -Oth Operating Inc & Expend,T/A Vehicle Maintenance etc,Transport-Contract Hire,J01374,Transport Related Expenditure ,Contract Hire and Op Leasing  ,CC64,HIRING TRANSPORT SEN CABS               ,540,22/12/2014,REV,SILVERBURN FINANCE (UK) LTD   
649,CS -Oth Operating Inc & Expend,T/A Vehicle Maintenance etc,Transport-Contract Hire,J01374,Transport Related Expenditure ,Contract Hire and Op Leasing  ,CC64,HIRING TRANSPORT SEN CABS               ,"1,344.00",22/12/2014,REV,SILVERBURN FINANCE (UK) LTD   
650,CS -Oth Operating Inc & Expend,T/A Vehicle Maintenance etc,Transport-Contract Hire,J01374,Transport Related Expenditure ,Contract Hire and Op Leasing  ,CC64,HIRING TRANSPORT SEN CABS               ,520,22/12/2014,REV,SILVERBURN FINANCE (UK) LTD   
651,CS -Oth Operating Inc & Expend,T/A Vehicle Maintenance etc,Transport-Contract Hire,J01374,Transport Related Expenditure ,Contract Hire and Op Leasing  ,CC64,HIRING TRANSPORT SEN CABS               ,"1,350.00",31/12/2014,REV,NVCAR HIRE LTD                
652,CS -Oth Operating Inc & Expend,T/A Vehicle Maintenance etc,Transport-Contract Hire,J01374,Transport Related Expenditure ,Contract Hire and Op Leasing  ,CC64,HIRING TRANSPORT SEN CABS               ,"1,180.00",30/12/2014,REV,BARCLAYS ASSET & SALES FINANCE
653,CS -Oth Operating Inc & Expend,T/A Vehicle Maintenance etc,Transport-Contract Hire,J01374,Transport Related Expenditure ,Contract Hire and Op Leasing  ,CC64,HIRING TRANSPORT SEN CABS               ,750,28/12/2014,REV,WALLINGTON CARS & COURIERS LTD
654,CS -Oth Operating Inc & Expend,T/A Vehicle Maintenance etc,Transport-Contract Hire,J01374,Transport Related Expenditure ,Contract Hire and Op Leasing  ,CC64,HIRING TRANSPORT SEN CABS               ,"1,344.00",31/12/2014,REV,CAPITAL CARS                  
655,CS -Oth Operating Inc & Expend,T/A Vehicle Maintenance etc,Transport-Contract Hire,J01374,Transport Related Expenditure ,Contract Hire and Op Leasing  ,CC64,HIRING TRANSPORT SEN CABS               ,"1,629.00",31/12/2014,REV,NVCAR HIRE LTD                
656,CS -Oth Operating Inc & Expend,T/A Vehicle Maintenance etc,Transport-Contract Hire,J01374,Transport Related Expenditure ,Contract Hire and Op Leasing  ,CC64,HIRING TRANSPORT SEN CABS               ,520,31/12/2014,REV,GALPINS SERVICE               
657,CS -Oth Operating Inc & Expend,T/A Vehicle Maintenance etc,Transport-Contract Hire,J01374,Transport Related Expenditure ,Contract Hire and Op Leasing  ,CC64,HIRING TRANSPORT SEN CABS               ,784,31/12/2014,REV,NVCAR HIRE LTD                
658,CS -Oth Operating Inc & Expend,T/A Vehicle Maintenance etc,Transport-Contract Hire,J01374,Transport Related Expenditure ,Contract Hire and Op Leasing  ,CC64,HIRING TRANSPORT SEN CABS               ,"1,350.00",31/12/2014,REV,CAPITAL CARS                  
659,CS -Oth Operating Inc & Expend,T/A Vehicle Maintenance etc,Transport-Contract Hire,J01374,Transport Related Expenditure ,Contract Hire and Op Leasing  ,CC64,HIRING TRANSPORT SEN CABS               ,513,31/12/2014,REV,SHERWOOD TRANSPORT GROUP      
660,CS -Oth Operating Inc & Expend,T/A Vehicle Maintenance etc,Transport-Contract Hire,J01374,Transport Related Expenditure ,Contract Hire and Op Leasing  ,CC64,HIRING TRANSPORT SEN CABS               ,795,30/12/2014,REV,BARCLAYS ASSET & SALES FINANCE
661,CS -Oth Operating Inc & Expend,T/A Vehicle Maintenance etc,Transport-Contract Hire,J01374,Transport Related Expenditure ,Contract Hire and Op Leasing  ,CC64,HIRING TRANSPORT SEN CABS               ,"1,500.00",31/12/2014,REV,NVCAR HIRE LTD                
662,CS -Oth Operating Inc & Expend,T/A Vehicle Maintenance etc,Transport-Contract Hire,J01374,Transport Related Expenditure ,Contract Hire and Op Leasing  ,CC64,HIRING TRANSPORT SEN CABS               ,"1,560.00",30/12/2014,REV,BARCLAYS ASSET & SALES FINANCE
663,CS -Oth Operating Inc & Expend,T/A Vehicle Maintenance etc,Transport-Contract Hire,J01374,Transport Related Expenditure ,Contract Hire and Op Leasing  ,CC64,HIRING TRANSPORT SEN CABS               ,"1,146.95",22/12/2014,REV,SILVERBURN FINANCE (UK) LTD   
664,CS -Oth Operating Inc & Expend,T/A Vehicle Maintenance etc,Transport-Contract Hire,J01374,Transport Related Expenditure ,Contract Hire and Op Leasing  ,CC64,HIRING TRANSPORT SEN CABS               ,750,31/12/2014,REV,PREMIER CARS                  
665,CS -Oth Operating Inc & Expend,T/A Vehicle Maintenance etc,Transport-Contract Hire,J01374,Transport Related Expenditure ,Contract Hire and Op Leasing  ,CC64,HIRING TRANSPORT SEN CABS               ,"1,116.00",31/12/2014,REV,NVCAR HIRE LTD                
666,CS -Oth Operating Inc & Expend,T/A Vehicle Maintenance etc,Transport-Contract Hire,J01374,Transport Related Expenditure ,Contract Hire and Op Leasing  ,CC64,HIRING TRANSPORT SEN CABS               ,"1,560.00",31/12/2014,REV,CHEAM STATION CARS            
667,CS -Oth Operating Inc & Expend,T/A Vehicle Maintenance etc,Transport-Contract Hire,J01374,Transport Related Expenditure ,Contract Hire and Op Leasing  ,CC64,HIRING TRANSPORT SEN CABS               ,"1,948.00",31/12/2014,REV,NVCAR HIRE LTD                
668,CS -Oth Operating Inc & Expend,T/A Vehicle Maintenance etc,Transport-Contract Hire,J01374,Transport Related Expenditure ,Contract Hire and Op Leasing  ,CC64,HIRING TRANSPORT SEN CABS               ,"2,250.00",28/12/2014,REV,WALLINGTON CARS & COURIERS LTD
669,CS -Oth Operating Inc & Expend,T/A Vehicle Maintenance etc,Transport-Contract Hire,J01374,Transport Related Expenditure ,Contract Hire and Op Leasing  ,CC64,HIRING TRANSPORT SEN CABS               ,"1,596.00",31/12/2014,REV,CAPITAL CARS                  
670,CS -Oth Operating Inc & Expend,T/A Vehicle Maintenance etc,Transport-Contract Hire,J01374,Transport Related Expenditure ,Contract Hire and Op Leasing  ,CC64,HIRING TRANSPORT SEN CABS               ,"1,050.00",31/12/2014,REV,SHERWOOD TRANSPORT GROUP      
671,CS -Oth Operating Inc & Expend,T/A Vehicle Maintenance etc,Transport-Contract Hire,J01374,Transport Related Expenditure ,Contract Hire and Op Leasing  ,CC64,HIRING TRANSPORT SEN CABS               ,"1,920.00",31/12/2014,REV,A STAR TRANSPORT LIMITED      
672,CS -Oth Operating Inc & Expend,T/A Vehicle Maintenance etc,Transport-Contract Hire,J01374,Transport Related Expenditure ,Contract Hire and Op Leasing  ,CC64,HIRING TRANSPORT SEN CABS               ,"2,100.00",30/12/2014,REV,BARCLAYS ASSET & SALES FINANCE
673,CS -Oth Operating Inc & Expend,T/A Vehicle Maintenance etc,Transport-Contract Hire,J01374,Transport Related Expenditure ,Contract Hire and Op Leasing  ,CC64,HIRING TRANSPORT SEN CABS               ,"1,350.00",31/12/2014,REV,SHERWOOD TRANSPORT GROUP      
674,CS -Oth Operating Inc & Expend,T/A Vehicle Maintenance etc,Transport-Contract Hire,J01374,Transport Related Expenditure ,Contract Hire and Op Leasing  ,CC64,HIRING TRANSPORT SEN CABS               ,"1,260.00",31/12/2014,REV,CAPITAL CARS                  
675,CS -Oth Operating Inc & Expend,T/A Vehicle Maintenance etc,Transport-Contract Hire,J01374,Transport Related Expenditure ,Contract Hire and Op Leasing  ,CC64,HIRING TRANSPORT SEN CABS               ,"1,185.00",31/12/2014,REV,SHERWOOD TRANSPORT GROUP      
676,CS -Oth Operating Inc & Expend,T/A Vehicle Maintenance etc,Transport-Contract Hire,J01374,Transport Related Expenditure ,Contract Hire and Op Leasing  ,CC64,HIRING TRANSPORT SEN CABS               ,"1,960.00",30/12/2014,REV,BARCLAYS ASSET & SALES FINANCE
677,CS -Oth Operating Inc & Expend,T/A Vehicle Maintenance etc,Transport-Contract Hire,J01374,Transport Related Expenditure ,Contract Hire and Op Leasing  ,CC64,HIRING TRANSPORT SEN CABS               ,"2,030.00",31/12/2014,REV,NVCAR HIRE LTD                
678,CS -Oth Operating Inc & Expend,T/A Vehicle Maintenance etc,Transport-Contract Hire,J01374,Transport Related Expenditure ,Contract Hire and Op Leasing  ,CC64,HIRING TRANSPORT SEN CABS               ,"1,350.00",31/12/2014,REV,NVCAR HIRE LTD                
679,CS -Oth Operating Inc & Expend,T/A Vehicle Maintenance etc,Transport-Contract Hire,J01374,Transport Related Expenditure ,Contract Hire and Op Leasing  ,CC64,HIRING TRANSPORT SEN CABS               ,"1,060.00",22/12/2014,REV,SILVERBURN FINANCE (UK) LTD   
680,CS -Oth Operating Inc & Expend,T/A Vehicle Maintenance etc,Transport-Contract Hire,J01374,Transport Related Expenditure ,Contract Hire and Op Leasing  ,CC64,HIRING TRANSPORT SEN CABS               ,840,31/12/2014,REV,NVCAR HIRE LTD                
681,CS -Oth Operating Inc & Expend,T/A Vehicle Maintenance etc,Transport-Contract Hire,J01374,Transport Related Expenditure ,Contract Hire and Op Leasing  ,CC64,HIRING TRANSPORT SEN CABS               ,"2,520.00",22/12/2014,REV,SILVERBURN FINANCE (UK) LTD   
682,CS -Oth Operating Inc & Expend,T/A Vehicle Maintenance etc,Transport-Contract Hire,J01374,Transport Related Expenditure ,Contract Hire and Op Leasing  ,CC64,HIRING TRANSPORT SEN CABS               ,616,31/12/2014,REV,AERIAL CAR SERVICES LTD       
683,CS -Oth Operating Inc & Expend,T/A Vehicle Maintenance etc,Transport-Contract Hire,J01374,Transport Related Expenditure ,Contract Hire and Op Leasing  ,CC64,HIRING TRANSPORT SEN CABS               ,520,31/12/2014,REV,GALPINS SERVICE               
684,CS -Oth Operating Inc & Expend,T/A Vehicle Maintenance etc,Transport-Contract Hire,J01374,Transport Related Expenditure ,Contract Hire and Op Leasing  ,CC64,HIRING TRANSPORT SEN CABS               ,"1,410.00",31/12/2014,REV,CAPITAL CARS                  
685,CS -Oth Operating Inc & Expend,T/A Vehicle Maintenance etc,Transport-Contract Hire,J01374,Transport Related Expenditure ,Contract Hire and Op Leasing  ,CC64,HIRING TRANSPORT SEN CABS               ,"1,425.00",31/12/2014,REV,SHERWOOD TRANSPORT GROUP      
686,CS -Oth Operating Inc & Expend,T/A Vehicle Maintenance etc,Transport-Contract Hire,J01374,Transport Related Expenditure ,Contract Hire and Op Leasing  ,CC64,HIRING TRANSPORT SEN CABS               ,"2,377.50",31/12/2014,REV,SHERWOOD TRANSPORT GROUP      
687,CS -Oth Operating Inc & Expend,T/A Vehicle Maintenance etc,Transport-Contract Hire,J01374,Transport Related Expenditure ,Contract Hire and Op Leasing  ,CC64,HIRING TRANSPORT SEN CABS               ,517,31/12/2014,REV,CAPITAL CARS                  
688,CS -Oth Operating Inc & Expend,T/A Vehicle Maintenance etc,Transport-Contract Hire,J01374,Transport Related Expenditure ,Contract Hire and Op Leasing  ,CC64,HIRING TRANSPORT SEN CABS               ,825,31/12/2014,REV,SHERWOOD TRANSPORT GROUP      
689,CS -Oth Operating Inc & Expend,T/A Vehicle Maintenance etc,Transport-Contract Hire,J01374,Transport Related Expenditure ,Contract Hire and Op Leasing  ,CC64,HIRING TRANSPORT SEN CABS               ,"1,210.00",31/12/2014,REV,SHERWOOD TRANSPORT GROUP      
690,CS -Oth Operating Inc & Expend,T/A Vehicle Maintenance etc,Transport-Contract Hire,J01374,Transport Related Expenditure ,Contract Hire and Op Leasing  ,CC64,HIRING TRANSPORT SEN CABS               ,792,31/12/2014,REV,NVCAR HIRE LTD                
691,CS -Oth Operating Inc & Expend,T/A Vehicle Maintenance etc,Transport-Contract Hire,J01374,Transport Related Expenditure ,Contract Hire and Op Leasing  ,CC64,HIRING TRANSPORT SEN CABS               ,725,31/12/2014,REV,GALPINS SERVICE               
692,CS -Oth Operating Inc & Expend,T/A Vehicle Maintenance etc,Transport-Contract Hire,J01374,Transport Related Expenditure ,Contract Hire and Op Leasing  ,CC64,HIRING TRANSPORT SEN CABS               ,"1,440.00",31/12/2014,REV,CHEAM STATION CARS            
693,CS -Oth Operating Inc & Expend,T/A Vehicle Maintenance etc,Transport-Contract Hire,J01374,Transport Related Expenditure ,Contract Hire and Op Leasing  ,CC64,HIRING TRANSPORT SEN CABS               ,"1,050.00",22/12/2014,REV,SILVERBURN FINANCE (UK) LTD   
694,CS -Oth Operating Inc & Expend,T/A Vehicle Maintenance etc,Transport-Contract Hire,J01374,Transport Related Expenditure ,Contract Hire and Op Leasing  ,CC64,HIRING TRANSPORT SEN CABS               ,"1,392.00",31/12/2014,REV,CAPITAL CARS                  
695,CS -Oth Operating Inc & Expend,T/A Vehicle Maintenance etc,Transport-Contract Hire,J01374,Transport Related Expenditure ,Contract Hire and Op Leasing  ,CC64,HIRING TRANSPORT SEN CABS               ,"3,250.00",31/12/2014,REV,SHERWOOD TRANSPORT GROUP      
696,CS -Oth Operating Inc & Expend,T/A Vehicle Maintenance etc,Transport-Contract Hire,J01374,Transport Related Expenditure ,Contract Hire and Op Leasing  ,CC64,HIRING TRANSPORT SEN CABS               ,"1,560.00",31/12/2014,REV,A STAR TRANSPORT LIMITED      
697,CS -Oth Operating Inc & Expend,T/A Vehicle Maintenance etc,Transport-Contract Hire,J01374,Transport Related Expenditure ,Contract Hire and Op Leasing  ,CC67,HIRING TRANSPORT H&SS CAB ADULTS        ,864,31/12/2014,REV,CHEAM STATION CARS            
698,CS -Oth Operating Inc & Expend,T/A Vehicle Maintenance etc,Transport-Contract Hire,J01374,Transport Related Expenditure ,Contract Hire and Op Leasing  ,CC67,HIRING TRANSPORT H&SS CAB ADULTS        ,"1,180.00",31/12/2014,REV,CAPITAL CARS                  
699,CS -Oth Operating Inc & Expend,T/A Vehicle Maintenance etc,Transport-Contract Hire,J01374,Transport Related Expenditure ,Contract Hire and Op Leasing  ,CC67,HIRING TRANSPORT H&SS CAB ADULTS        ,"1,545.00",31/12/2014,REV,SHERWOOD TRANSPORT GROUP      
700,CS -Oth Operating Inc & Expend,T/A Vehicle Maintenance etc,Transport-Contract Hire,J01374,Transport Related Expenditure ,Contract Hire and Op Leasing  ,CC67,HIRING TRANSPORT H&SS CAB ADULTS        ,"1,280.00",31/12/2014,REV,A STAR TRANSPORT LIMITED      
701,CS -Oth Operating Inc & Expend,T/A Vehicle Maintenance etc,Transport-Contract Hire,J01374,Transport Related Expenditure ,Contract Hire and Op Leasing  ,CC67,HIRING TRANSPORT H&SS CAB ADULTS        ,948,31/12/2014,REV,NVCAR HIRE LTD                
702,CS -Oth Operating Inc & Expend,T/A Vehicle Maintenance etc,Transport-Contract Hire,J01374,Transport Related Expenditure ,Contract Hire and Op Leasing  ,CC67,HIRING TRANSPORT H&SS CAB ADULTS        ,600,31/12/2014,REV,AERIAL CAR SERVICES LTD       
703,CS -Oth Operating Inc & Expend,T/A Vehicle Maintenance etc,Transport-Contract Hire,J01374,Transport Related Expenditure ,Contract Hire and Op Leasing  ,CC67,HIRING TRANSPORT H&SS CAB ADULTS        ,"1,380.00",31/12/2014,REV,CAPITAL CARS                  
704,CS -Oth Operating Inc & Expend,T/A Vehicle Maintenance etc,Transport-Contract Hire,J01374,Transport Related Expenditure ,Contract Hire and Op Leasing  ,CC67,HIRING TRANSPORT H&SS CAB ADULTS        ,774,22/12/2014,REV,SILVERBURN FINANCE (UK) LTD   
705,CS -Oth Operating Inc & Expend,T/A Vehicle Maintenance etc,Transport-Contract Hire,J01374,Transport Related Expenditure ,Contract Hire and Op Leasing  ,CC67,HIRING TRANSPORT H&SS CAB ADULTS        ,672,31/12/2014,REV,CAPITAL CARS                  
706,CS -Oth Operating Inc & Expend,T/A Vehicle Maintenance etc,Transport-Contract Hire,J01374,Transport Related Expenditure ,Contract Hire and Op Leasing  ,CC67,HIRING TRANSPORT H&SS CAB ADULTS        ,"1,104.00",22/12/2014,REV,SILVERBURN FINANCE (UK) LTD   
707,CS -Oth Operating Inc & Expend,T/A Vehicle Maintenance etc,Transport-Contract Hire,J01374,Transport Related Expenditure ,Contract Hire and Op Leasing  ,CC67,HIRING TRANSPORT H&SS CAB ADULTS        ,"1,081.00",31/12/2014,REV,CAPITAL CARS                  
708,CS -Oth Operating Inc & Expend,T/A Vehicle Maintenance etc,Transport-Contract Hire,J01374,Transport Related Expenditure ,Contract Hire and Op Leasing  ,CC67,HIRING TRANSPORT H&SS CAB ADULTS        ,990,31/12/2014,REV,A STAR TRANSPORT LIMITED      
709,CS -Oth Operating Inc & Expend,T/A Vehicle Maintenance etc,Transport-Contract Hire,J01374,Transport Related Expenditure ,Contract Hire and Op Leasing  ,CC68,HIRING TRANSPORT SEN COLLEGES CABS      ,588.96,22/12/2014,REV,SILVERBURN FINANCE (UK) LTD   
710,CS -Oth Operating Inc & Expend,T/A Vehicle Maintenance etc,Transport-Contract Hire,J01374,Transport Related Expenditure ,Contract Hire and Op Leasing  ,CC68,HIRING TRANSPORT SEN COLLEGES CABS      ,622.8,22/12/2014,REV,SILVERBURN FINANCE (UK) LTD   
711,CS -Oth Operating Inc & Expend,T/A Vehicle Maintenance etc,Transport-Contract Hire,J01374,Transport Related Expenditure ,Contract Hire and Op Leasing  ,CC68,HIRING TRANSPORT SEN COLLEGES CABS      ,"2,100.00",30/12/2014,REV,BARCLAYS ASSET & SALES FINANCE
712,CS -Oth Operating Inc & Expend,T/A Vehicle Maintenance etc,Transport-Contract Hire,J01374,Transport Related Expenditure ,Contract Hire and Op Leasing  ,CC68,HIRING TRANSPORT SEN COLLEGES CABS      ,525,31/12/2014,REV,NVCAR HIRE LTD                
713,CS -Oth Operating Inc & Expend,T/A Vehicle Maintenance etc,Transport-Contract Hire,J01374,Transport Related Expenditure ,Contract Hire and Op Leasing  ,CC68,HIRING TRANSPORT SEN COLLEGES CABS      ,872,22/12/2014,REV,SILVERBURN FINANCE (UK) LTD   
714,CS -Oth Operating Inc & Expend,T/A Vehicle Maintenance etc,Transport-Contract Hire,J01374,Transport Related Expenditure ,Contract Hire and Op Leasing  ,CC68,HIRING TRANSPORT SEN COLLEGES CABS      ,"1,100.00",31/12/2014,REV,PREMIER CARS                  
715,CS -Oth Operating Inc & Expend,T/A Vehicle Maintenance etc,Transport-Workshop,J01376,Transport Related Expenditure ,Contract Hire and Op Leasing  ,CC60,Vehicle Hire for LB Sutton              ,530,22/12/2014,REV,SILVERBURN FINANCE (UK) LTD   
716,CS -Oth Operating Inc & Expend,T/A Vehicle Maintenance etc,Transport-Workshop,J01376,Transport Related Expenditure ,Contract Hire and Op Leasing  ,CC60,Vehicle Hire for LB Sutton              ,"1,710.00",11/12/2014,REV,SCHOOL TRANSPORT LTD          
717,CS -Oth Operating Inc & Expend,T/A Vehicle Maintenance etc,Transport-Workshop,J01376,Transport Related Expenditure ,Contract Hire and Op Leasing  ,CC60,Vehicle Hire for LB Sutton              ,"4,216.00",31/12/2014,REV,BARCLAYS ASSET & SALES FINANCE
718,CS -Oth Operating Inc & Expend,T/A Vehicle Maintenance etc,Transport-Workshop,J01376,Transport Related Expenditure ,Contract Hire and Op Leasing  ,CC60,Vehicle Hire for LB Sutton              ,"2,280.00",31/12/2014,REV,CAPITAL CARS                  
719,CS -Oth Operating Inc & Expend,T/A Vehicle Maintenance etc,Transport-Workshop,J01376,Transport Related Expenditure ,Contract Hire and Op Leasing  ,CC60,Vehicle Hire for LB Sutton              ,720,11/12/2014,REV,SCHOOL TRANSPORT LTD          
720,CS -Oth Operating Inc & Expend,T/A Vehicle Maintenance etc,Transport-Workshop,J01376,Transport Related Expenditure ,Contract Hire and Op Leasing  ,CC60,Vehicle Hire for LB Sutton              ,"1,860.00",31/12/2014,REV,BARCLAYS ASSET & SALES FINANCE
721,CS -Oth Operating Inc & Expend,T/A Vehicle Maintenance etc,Transport-Workshop,J01376,Transport Related Expenditure ,Contract Hire and Op Leasing  ,CC65,Vehicle Hire for Education              ,"1,512.00",31/12/2014,REV,BARCLAYS ASSET & SALES FINANCE
722,CS -Oth Operating Inc & Expend,T/A Vehicle Maintenance etc,Vehicle Workshops,J01378,Employees                     ,Direct Employee Expenses      ,AA17,Agency Staff & Casual Paymts            ,528,07/01/2015,REV,REDACTED
723,CS -Oth Operating Inc & Expend,T/A Vehicle Maintenance etc,Vehicle Workshops,J01378,Transport Related Expenditure ,Direct Transport Costs        ,CA02,Tyres                                   ,"2,307.00",07/01/2015,REV,MORDEN TYRE SERVICES LTD      
724,CS -Oth Operating Inc & Expend,T/A Vehicle Maintenance etc,Vehicle Workshops,J01378,Transport Related Expenditure ,Direct Transport Costs        ,CA02,Tyres                                   ,"2,214.00",16/01/2015,REV,MORDEN TYRE SERVICES LTD      
725,CS -Oth Operating Inc & Expend,T/A Vehicle Maintenance etc,Vehicle Workshops,J01378,Transport Related Expenditure ,Direct Transport Costs        ,CA02,Tyres                                   ,"1,100.00",08/01/2015,REV,MORDEN TYRE SERVICES LTD      
726,CS -Oth Operating Inc & Expend,T/A Vehicle Maintenance etc,Vehicle Workshops,J01378,Transport Related Expenditure ,Direct Transport Costs        ,CA05,Vehicle MOTs                            ,"1,000.00",21/01/2015,REV,V.O.S.A                       
727,CS -Oth Operating Inc & Expend,T/A Vehicle Maintenance etc,Vehicle Workshops,J01378,Transport Related Expenditure ,Direct Transport Costs        ,CA55,Specialist Maint. (Off Site)            ,"1,141.42",18/11/2014,REV,FIRST PARTS SOLUTIONS         
728,CS -Oth Operating Inc & Expend,T/A Vehicle Maintenance etc,Vehicle Workshops,J01378,Transport Related Expenditure ,Direct Transport Costs        ,CA55,Specialist Maint. (Off Site)            ,-985.75,06/01/2015,REV,REDACTED
729,CS -Oth Operating Inc & Expend,T/A Vehicle Maintenance etc,Vehicle Workshops,J01378,Transport Related Expenditure ,Direct Transport Costs        ,CA55,Specialist Maint. (Off Site)            ,985.75,31/12/2014,REV,REDACTED
730,CS -Oth Operating Inc & Expend,T/A Vehicle Maintenance etc,Vehicle Workshops,J01378,Transport Related Expenditure ,Direct Transport Costs        ,CA55,Specialist Maint. (Off Site)            ,"1,368.75",19/12/2014,REV,REDACTED
731,CS -Oth Operating Inc & Expend,T/A Vehicle Maintenance etc,Vehicle Workshops,J01378,Transport Related Expenditure ,Direct Transport Costs        ,CA55,Specialist Maint. (Off Site)            ,"2,332.46",23/12/2014,REV,FLEETSPEED COACHWORKS LTD.    
732,CS -Oth Operating Inc & Expend,T/A Vehicle Maintenance etc,Vehicle Workshops,J01378,Transport Related Expenditure ,Direct Transport Costs        ,CA55,Specialist Maint. (Off Site)            ,697,15/12/2014,REV,KINGSLEY COMM COMPONENTS LTD  
733,CS -Oth Operating Inc & Expend,T/A Vehicle Maintenance etc,Vehicle Workshops,J01378,Transport Related Expenditure ,Direct Transport Costs        ,CA55,Specialist Maint. (Off Site)            ,673.74,15/01/2015,REV,REDACTED
734,CS -Oth Operating Inc & Expend,T/A Vehicle Maintenance etc,Vehicle Workshops,J01378,Transport Related Expenditure ,Direct Transport Costs        ,CA55,Specialist Maint. (Off Site)            ,"1,793.79",12/01/2015,REV,FLEETSPEED COACHWORKS LTD.    
735,CS -Oth Operating Inc & Expend,T/A Vehicle Maintenance etc,Vehicle Workshops,J01378,Transport Related Expenditure ,Direct Transport Costs        ,CA56,Specialist Maint. (On Site)             ,509.9,30/12/2014,REV,SCARAB SWEEPERS LTD           
736,CS -Oth Operating Inc & Expend,T/A Vehicle Maintenance etc,Vehicle Workshops,J01378,Transport Related Expenditure ,Direct Transport Costs        ,CA56,Specialist Maint. (On Site)             ,589.05,04/01/2015,REV,REDACTED
737,CS -Oth Operating Inc & Expend,T/A Vehicle Maintenance etc,Vehicle Workshops,J01378,Transport Related Expenditure ,Direct Transport Costs        ,CA56,Specialist Maint. (On Site)             ,"1,729.35",09/01/2015,REV,JOHNSTON SWEEPERS LIMITED     
738,CS -Oth Operating Inc & Expend,T/A Vehicle Maintenance etc,Vehicle Workshops,J01378,Transport Related Expenditure ,Direct Transport Costs        ,CA56,Specialist Maint. (On Site)             ,"1,298.70",07/01/2015,REV,GALLOWAY VEHICLE SERVICES     
739,CS -Oth Operating Inc & Expend,T/A Vehicle Maintenance etc,Vehicle Workshops,J01378,Transport Related Expenditure ,Direct Transport Costs        ,CA56,Specialist Maint. (On Site)             ,833.75,28/12/2014,REV,R.J.H.WELDING                 
740,CS -Oth Operating Inc & Expend,T/A Vehicle Maintenance etc,Vehicle Workshops,J01378,Transport Related Expenditure ,Direct Transport Costs        ,CA56,Specialist Maint. (On Site)             ,625,28/12/2014,REV,R.J.H.WELDING                 
741,CS -Oth Operating Inc & Expend,T/A Vehicle Maintenance etc,Vehicle Workshops,J01378,Transport Related Expenditure ,Direct Transport Costs        ,CA72,Vehicle Parts                           ,918.08,23/12/2014,REV,DENNIS EAGLE LIMITED          
742,CS -Oth Operating Inc & Expend,T/A Vehicle Maintenance etc,Vehicle Workshops,J01378,Transport Related Expenditure ,Direct Transport Costs        ,CA72,Vehicle Parts                           ,540.51,02/01/2015,REV,IVECO RETAIL LTD              
743,CS -Oth Operating Inc & Expend,T/A Vehicle Maintenance etc,Vehicle Workshops,J01378,Transport Related Expenditure ,Direct Transport Costs        ,CA72,Vehicle Parts                           ,712.98,30/12/2014,REV,GEESINK NORBA                 
744,CS -Oth Operating Inc & Expend,T/A Vehicle Maintenance etc,Vehicle Workshops,J01378,Transport Related Expenditure ,Direct Transport Costs        ,CA72,Vehicle Parts                           ,567.58,15/01/2015,REV,JOHNSTON SWEEPERS LIMITED     
745,CS -Oth Operating Inc & Expend,T/A Vehicle Maintenance etc,Vehicle Workshops,J01378,Transport Related Expenditure ,Direct Transport Costs        ,CA72,Vehicle Parts                           ,652.15,06/01/2015,REV,DENNIS EAGLE LIMITED          
746,CS -Oth Operating Inc & Expend,T/A Vehicle Maintenance etc,Vehicle Workshops,J01378,Transport Related Expenditure ,Direct Transport Costs        ,CA72,Vehicle Parts                           ,537.55,16/01/2015,REV,JD ASSOCIATES                 
747,CS -Oth Operating Inc & Expend,T/A Vehicle Maintenance etc,Vehicle Workshops,J01378,Transport Related Expenditure ,Direct Transport Costs        ,CA72,Vehicle Parts                           ,"3,499.38",12/11/2014,REV,NTM GB LIMITED                
748,CS -Oth Operating Inc & Expend,T/A Vehicle Maintenance etc,Vehicle Workshops,J01378,Transport Related Expenditure ,Direct Transport Costs        ,CA72,Vehicle Parts                           ,944.85,20/09/2014,REV,BOC LTD.                      
749,CS -Oth Operating Inc & Expend,T/A Vehicle Maintenance etc,Vehicle Workshops,J01378,Transport Related Expenditure ,Direct Transport Costs        ,CA72,Vehicle Parts                           ,535.8,19/12/2014,REV,DENNIS EAGLE LIMITED          
750,CS -Oth Operating Inc & Expend,T/A Vehicle Maintenance etc,Vehicle Workshops,J01378,Transport Related Expenditure ,Direct Transport Costs        ,CA73,Vehicle Consumables                     ,"1,068.96",13/01/2015,REV,COMMERCIAL & PLANT LTD        
751,CS -Oth Operating Inc & Expend,T/A Vehicle Maintenance etc,Vehicle Workshops,J01378,Supplies & Services           ,Clothing Unfrms Laundry       ,DC01,Laundry                                 ,526.96,01/01/2015,REV,SUNLIGHT SERVICE GROUP LTD    
752,CS -Oth Operating Inc & Expend,Extraordinary Items & PY Adj.,Gdn r.o. 44 S'down Rd,J01451,Supplies & Services           ,Services                      ,DF11,Gdn r.o. 44 S'down Rd         -Counsel's,900,26/11/2014,REV,REDACTED
753,CS -Oth Operating Inc & Expend,Extraordinary Items & PY Adj.,Gdn r.o. 44 S'down Rd,J01451,Supplies & Services           ,Services                      ,DF95,Gdn r.o. 44 S'down Rd         -Services ,"2,550.00",04/12/2014,REV,REDACTED
754,CS -Oth Operating Inc & Expend,Extraordinary Items & PY Adj.,Gdn r.o. 44 S'down Rd,J01451,Supplies & Services           ,Services                      ,DF95,Gdn r.o. 44 S'down Rd         -Services ,"2,000.00",01/12/2014,REV,JOHN MORSE SOLICITORS         
755,CS -Oth Operating Inc & Expend,Extraordinary Items & PY Adj.,Other Misc Props Budget,J01526,Premises Related Expenditure  ,Energy Costs                  ,BB03,GAS (INCL. BUTANE)                      ,991.54,22/12/2014,REV,SOUTHERN ELECTRIC             
756,CS -Oth Operating Inc & Expend,Extraordinary Items & PY Adj.,Housing Shops,J01533,Premises Related Expenditure  ,RepairsAlterations&MtceOfBldgs,BA01,DDM - GENERAL BUILDING                  ,"3,183.05",11/11/2014,REV,SALTASH ENTERPRISES LTD       
757,CS -Oth Operating Inc & Expend,Extraordinary Items & PY Adj.,South Wimbledon Comm Centre,J08073,Premises Related Expenditure  ,RepairsAlterations&MtceOfBldgs,BA05,DDM - Electrical                        ,"1,088.00",19/12/2014,REV,ENERGY SAVING LIGHTING (UK) LT
758,CS -Oth Operating Inc & Expend,Extraordinary Items & PY Adj.,Pollards Hill Comm Cntre,J08074,Premises Related Expenditure  ,RepairsAlterations&MtceOfBldgs,BA01,DDM - General Building                  ,692.35,18/12/2014,REV,SALTASH ENTERPRISES LTD       
759,Childrens & Education Services,Statutory & Regulatory Duties,Senior Mngt & Support Services,K01005,Employees                     ,Direct Employee Expenses      ,AA17,Agency Staff & Casual Paymts            ,"1,980.85",31/12/2014,REV,REDACTED
760,Childrens & Education Services,Statutory & Regulatory Duties,Senior Mngt & Support Services,K01005,Employees                     ,Indirect Employee Expenses    ,AB02,Recruitment Adverts                     ,"8,018.00",31/12/2014,REV,PENNA COMMUNICATIONS (NO 2 A/C
761,Childrens & Education Services,Statutory & Regulatory Duties,Senior Mngt & Support Services,K01005,Supplies & Services           ,Services                      ,DF11,Counsel's Fees                          ,570,30/09/2014,REV,REDACTED
762,Childrens & Education Services,Statutory & Regulatory Duties,Senior Mngt & Support Services,K01005,Supplies & Services           ,Services                      ,DF11,Counsel's Fees                          ,700,23/12/2014,REV,REDACTED
763,Childrens & Education Services,Statutory & Regulatory Duties,Senior Mngt & Support Services,K01005,Supplies & Services           ,Services                      ,DF11,Counsel's Fees                          ,510,10/12/2014,REV,REDACTED
764,Childrens & Education Services,Statutory & Regulatory Duties,Senior Mngt & Support Services,K01005,Supplies & Services           ,Services                      ,DF11,Counsel's Fees                          ,"1,030.00",23/12/2014,REV,REDACTED
765,Childrens & Education Services,Statutory & Regulatory Duties,Schools IT Support,K02008,Supplies & Services           ,Comms and Computing           ,DG50,Other IT Expenditure                    ,"1,256.20",19/01/2015,REV,ATOMWIDE LTD                  
766,Childrens & Education Services,Statutory & Regulatory Duties,Schools IT Support,K02008,Supplies & Services           ,Comms and Computing           ,DG50,Other IT Expenditure                    ,500,29/12/2014,REV,ATOMWIDE LTD                  
767,Childrens & Education Services,Asset Management,PFI Unitary Charges,K03023,Third Party Payments          ,Private Contractors           ,EH10,Contract Payments                       ,"16,814.92",31/12/2014,REV,NEWSCHOOLS (MERTON) LIMITED   
768,Childrens & Education Services,Education Psychology Service,Education Psychology.,K04018,Employees                     ,Direct Employee Expenses      ,AA17,Agency Staff & Casual Paymts            ,"1,000.00",12/01/2015,REV,REDACTED
769,Childrens & Education Services,Education Psychology Service,Education Psychology.,K04018,Employees                     ,Direct Employee Expenses      ,AA17,Agency Staff & Casual Paymts            ,"2,100.00",05/01/2015,REV,REDACTED
770,Childrens & Education Services,Support for SEN Pupils,Statementing-Transport,K04023,Employees                     ,Direct Employee Expenses      ,AA17,Agency Staff & Casual Paymts            ,625,20/01/2015,REV,REDACTED
771,Childrens & Education Services,Support for SEN Pupils,Statementing-Transport,K04023,Transport Related Expenditure ,Public Transport              ,CD50,Home Sch/Coll Trans(Trav Exps)          ,594,01/01/2015,REV,MASTER TAXIS                  
772,Childrens & Education Services,Support for SEN Pupils,Statementing-Transport,K04023,Transport Related Expenditure ,Public Transport              ,CD50,Home Sch/Coll Trans(Trav Exps)          ,560,02/01/2015,REV,REDACTED
773,Childrens & Education Services,Pupil Referral Units,Expanded Pupil Referral Unit,K05099,Third Party Payments          ,Private Contractors           ,EH01,Miscellaneous Agency Services           ,"5,086.94",22/12/2014,REV,SW LONDON ST GEORGES NHS TRUST
774,Childrens & Education Services,Oth U5s Provn Not Prim or Spec,GSSG Workforce Development,K05111,Employees                     ,Indirect Employee Expenses    ,AB56,Internal Training Costs                 ,600,23/01/2015,REV,REDACTED
775,Childrens & Education Services,Oth U5s Provn Not Prim or Spec,GSSG Workforce Development,K05111,Supplies & Services           ,Services                      ,DF03,Consultants                             ,"3,080.00",31/12/2014,REV,REDACTED
776,Childrens & Education Services,GENERATED ACCOUNT,Mitcham MAT (Premises),K05412,Premises Related Expenditure  ,Water Services                ,BE01,Use of Water (Metered)                  ,539.19,17/12/2014,REV,THAMES WATER UTILITIES LTD    
777,Childrens & Education Services,GENERATED ACCOUNT,Mitcham MAT (Premises),K05412,Premises Related Expenditure  ,Cleaning and Domestic Supplies,BH03,Cleaning Services                       ,"1,208.78",20/12/2014,REV,BIRKIN CLEANING SERVICES LTD  
778,Childrens & Education Services,GENERATED ACCOUNT,Morden MAT,K05413,Premises Related Expenditure  ,Energy Costs                  ,BB02,Electricity                             ,507.37,14/01/2015,REV,SCOTTISHPOWER                 
779,Childrens & Education Services,GENERATED ACCOUNT,Morden MAT,K05413,Premises Related Expenditure  ,Energy Costs                  ,BB03,Gas (incl. Butane)                      ,505.6,06/01/2015,REV,GAZPROM MARKETING&TRADING LTD 
780,Childrens & Education Services,Nursery schools,Lavender CC Non Childcare,K05415,Premises Related Expenditure  ,Cleaning and Domestic Supplies,BH03,Cleaning Services                       ,"1,212.14",20/12/2014,REV,BIRKIN CLEANING SERVICES LTD  
781,Childrens & Education Services,Nursery schools,Lavender CC Non Childcare,K05415,Supplies & Services           ,Services                      ,DF30,Activities Programme                    ,"2,000.00",08/01/2015,REV,ASSOC. FOR THE POLISH FAMILY  
782,Childrens & Education Services,Nursery schools,Lavender CC Non Childcare,K05415,Supplies & Services           ,Services                      ,DF30,Activities Programme                    ,847.75,21/01/2015,REV,FAWNS RECREATIONAL SERVICES   
783,Childrens & Education Services,Nursery schools,Lavender CC Non Childcare,K05415,Supplies & Services           ,Services                      ,DF30,Activities Programme                    ,"1,248.00",21/01/2015,REV,FAWNS RECREATIONAL SERVICES   
784,Childrens & Education Services,Nursery schools,E.Years-Intergenerational Cntr,K05416,Premises Related Expenditure  ,RepairsAlterations&MtceOfBldgs,BA06,Repairs & Maintenance General           ,"1,278.00",17/12/2014,REV,CDEC LIMITED                  
785,Childrens & Education Services,Nursery schools,E.Years-Intergenerational Cntr,K05416,Premises Related Expenditure  ,RepairsAlterations&MtceOfBldgs,BA06,Repairs & Maintenance General           ,"6,450.00",07/01/2015,REV,REDACTED
786,Childrens & Education Services,Nursery schools,E.Years-Intergenerational Cntr,K05416,Premises Related Expenditure  ,RepairsAlterations&MtceOfBldgs,BA06,Repairs & Maintenance General           ,"4,975.00",07/01/2015,REV,REDACTED
787,Childrens & Education Services,Nursery schools,E.Years-Intergenerational Cntr,K05416,Premises Related Expenditure  ,Energy Costs                  ,BB02,Electricity                             ,"1,043.97",07/01/2015,REV,SCOTTISHPOWER                 
788,Childrens & Education Services,Nursery schools,E.Years-Intergenerational Cntr,K05416,Premises Related Expenditure  ,Cleaning and Domestic Supplies,BH03,Cleaning Services                       ,811.96,20/12/2014,REV,BIRKIN CLEANING SERVICES LTD  
789,Childrens & Education Services,Nursery schools,EY-Support Separating Parents,K05417,Supplies & Services           ,Services                      ,DF03,Consultants                             ,"1,300.00",06/01/2015,REV,CRACKING BEHAVIOUR            
790,Childrens & Education Services,Nursery schools,EY-Support Separating Parents,K05417,Supplies & Services           ,Services                      ,DF03,Consultants                             ,"2,500.00",15/01/2015,REV,NATIONAL CHILDMINDING ASSOC.  
791,Childrens & Education Services,Nursery schools,EY-Support Separating Parents,K05417,Supplies & Services           ,Services                      ,DF30,Activities Programme                    ,"8,100.00",23/01/2015,REV,RELATE BROMLEY T/A RELATE LDN 
792,Childrens & Education Services,Nursery schools,EY-Support Separating Parents,K05417,Supplies & Services           ,Services                      ,DF30,Activities Programme                    ,"1,025.00",23/12/2014,REV,THE JAYNE STEWART SCH OF DANCE
793,Childrens & Education Services,Vocational - Adult Education,AE-additional learner SF,K06046,Supplies & Services           ,Comms and Computing           ,DG02,Software Licences                       ,"2,795.00",18/12/2014,REV,PLUS BUSINESS SYSTEMS LIMITED 
794,Childrens & Education Services,Vocational - Adult Education,AE-Adult Education Main,K06049,Premises Related Expenditure  ,Energy Costs                  ,BB03,Gas (incl. Butane)                      ,"2,181.11",06/01/2015,REV,GAZPROM MARKETING&TRADING LTD 
795,Childrens & Education Services,Vocational - Adult Education,AE-Adult Education Main,K06049,Premises Related Expenditure  ,Energy Costs                  ,BB03,Gas (incl. Butane)                      ,"1,670.85",04/12/2014,REV,GAZPROM MARKETING&TRADING LTD 
796,Childrens & Education Services,Vocational - Adult Education,AE-Adult Education Main,K06049,Premises Related Expenditure  ,Energy Costs                  ,BB03,Gas (incl. Butane)                      ,"1,083.40",04/12/2014,REV,GAZPROM MARKETING&TRADING LTD 
797,Childrens & Education Services,Vocational - Adult Education,AE-Adult Education Main,K06049,Premises Related Expenditure  ,Cleaning and Domestic Supplies,BH03,Cleaning Services                       ,"2,747.90",30/12/2014,REV,JULIUS RUTHERFOORD & CO LTD   
798,Childrens & Education Services,Vocational - Adult Education,AE-Adult Education Main,K06049,Supplies & Services           ,Equip Furniture/Materials     ,DA04,Materials                               ,511.68,12/12/2014,REV,DERMALOGICA UK LTD            
799,Childrens & Education Services,Vocational - Adult Education,AE-Adult Education Main,K06049,Supplies & Services           ,Equip Furniture/Materials     ,DA04,Materials                               ,510.13,06/01/2015,REV,ELLISONS                      
800,Childrens & Education Services,Vocational - Adult Education,AE-Adult Education Main,K06049,Supplies & Services           ,Catering                      ,DB01,Contract Catering                       ,"1,431.52",30/11/2014,REV,COFFEE AT WORK LTD            
801,Childrens & Education Services,Vocational - Adult Education,AE-Adult Education Main,K06049,Supplies & Services           ,Services                      ,DF03,Consultants                             ,"1,004.90",06/01/2015,REV,TCMD LTD                      
802,Childrens & Education Services,Vocational - Adult Education,AE-Adult Education Main,K06049,Supplies & Services           ,Services                      ,DF30,Activities Programme                    ,"2,319.56",15/01/2015,REV,SOCIAL WORKS LTD              
803,Childrens & Education Services,Vocational - Adult Education,AE-Adult Education Main,K06049,Supplies & Services           ,Services                      ,DF30,Activities Programme                    ,"2,319.56",15/12/2014,REV,SOCIAL WORKS LTD              
804,Childrens & Education Services,Vocational - Adult Education,AE-Adult Education Main,K06049,Supplies & Services           ,Comms and Computing           ,DG02,Software Licences                       ,"1,790.00",18/12/2014,REV,PLUS BUSINESS SYSTEMS LIMITED 
805,Childrens & Education Services,Vocational - Adult Education,AE-Adult Education Main,K06049,Supplies & Services           ,Comms and Computing           ,DG02,Software Licences                       ,"1,350.00",09/12/2014,REV,PLUS BUSINESS SYSTEMS LIMITED 
806,Childrens & Education Services,Vocational - Adult Education,AE-Adult Education Main,K06049,Supplies & Services           ,Comms and Computing           ,DG02,Software Licences                       ,"1,350.00",09/12/2014,REV,PLUS BUSINESS SYSTEMS LIMITED 
807,Childrens & Education Services,Youth Centres (Residential),Youth Service,K06053,Premises Related Expenditure  ,Cleaning and Domestic Supplies,BH03,Cleaning Services                       ,506.69,20/12/2014,REV,BIRKIN CLEANING SERVICES LTD  
808,Childrens & Education Services,Youth Centres (Residential),Youth Service,K06053,Transport Related Expenditure ,Direct Transport Costs        ,CA04,R & M of Veh - General                  ,"2,783.38",09/01/2015,REV,ZURICH INSURANCE COMPANY      
809,Childrens & Education Services,Youth Centres (Residential),Duke of Edinburgh Awrds,K06055,Supplies & Services           ,Expenses                      ,DH12,Young Peoples Expenses                  ,"1,200.00",16/01/2015,REV,THE AWARD SCHEME LTD          
810,Childrens & Education Services,Youth Centres (Residential),Youth Office Premises Cost,K06073,Premises Related Expenditure  ,RepairsAlterations&MtceOfBldgs,BA06,Repairs & Maintenance General           ,"1,713.88",16/12/2014,REV,PJ HARVEY & CO LTD            
811,Childrens & Education Services,Youth Centres (Residential),PAYP Moving Forward in Life,K06092,Employees                     ,Direct Employee Expenses      ,AA17,Agency Staff & Casual Payments          ,900,15/12/2014,REV,REDACTED
812,Childrens & Education Services,Youth Centres (Residential),PAYP Moving Forward in Life,K06092,Supplies & Services           ,Expenses                      ,DH50,Special Projects                        ,950,07/01/2015,REV,MERTON AND SUTTON MEDIATION   
813,Childrens & Education Services,Youth Centres (Residential),Youth Opps Fund (GF C G),K06093,Supplies & Services           ,Grants and Subscriptions      ,DJ01,Grants                                  ,600,17/12/2014,REV,SOUTH THAMES COLLEGE          
814,Childrens & Education Services,Pupil Support,Young Person Substance Misuse,K06114,Third Party Payments          ,Private Contractors           ,EH01,Miscellaneous Agency Services           ,"54,993.25",02/12/2014,REV,CATCH 22                      
815,Childrens & Education Services,Asset Management,S106 Bid,K08077,Premises Related Expenditure  ,RepairsAlterations&MtceOfBldgs,BA79,Security of Premises                    ,"1,450.00",01/01/2015,REV,SIGHT & SOUND                 
816,Childrens & Education Services,Asset Management,S106 Bid,K08077,Premises Related Expenditure  ,Energy Costs                  ,BB02,Electricity                             ,"4,147.46",23/12/2014,REV,SOUTHERN ELECTRIC             
817,Childrens & Education Services,Asset Management,S106 Bid,K08077,Premises Related Expenditure  ,Ground Maintenance Costs      ,BL50,Nature Conservation                     ,"1,140.00",08/12/2014,REV,REDACTED
818,Childrens & Education Services,Asset Management,S106 Bid,K08077,Supplies & Services           ,Prntng Stnry Gen Off Exp      ,DE52,Office Removal Expenses                 ,540,23/01/2015,REV,EDE'S (U.K.) LTD              
819,Childrens & Education Services,Asset Management,S106 Bid,K08077,Supplies & Services           ,Prntng Stnry Gen Off Exp      ,DE52,Office Removal Expenses                 ,"1,290.00",23/01/2015,REV,EDE'S (U.K.) LTD              
820,Childrens & Education Services,Asset Management,S106 Bid,K08077,Supplies & Services           ,Prntng Stnry Gen Off Exp      ,DE52,Office Removal Expenses                 ,"1,280.00",23/01/2015,REV,EDE'S (U.K.) LTD              
821,Childrens & Education Services,Asset Management,Centre Commissioned Servs,K08078,Supplies & Services           ,Grants and Subscriptions      ,DJ01,Grants                                  ,"9,737.50",14/01/2015,REV,BARNARDOS                     
822,Childrens & Education Services,Asset Management,Centre Commissioned Servs,K08078,Supplies & Services           ,Grants and Subscriptions      ,DJ01,Grants                                  ,"24,056.00",20/01/2015,REV,HOME-START MERTON             
823,Childrens & Education Services,Asset Management,Centre Commissioned Servs,K08078,Supplies & Services           ,Grants and Subscriptions      ,DJ01,Grants                                  ,"12,202.50",13/01/2015,REV,JIGSAW4U                      
824,Childrens & Education Services,Asset Management,Centre Commissioned Servs,K08078,Supplies & Services           ,Grants and Subscriptions      ,DJ01,Grants                                  ,"7,556.25",05/01/2015,REV,VOLUNTEER CENTRE MERTON       
825,Childrens & Education Services,Asset Management,Centre Commissioned Servs,K08078,Supplies & Services           ,Grants and Subscriptions      ,DJ01,Grants                                  ,"8,125.00",14/01/2015,REV,YMCA LONDON SOUTH WEST        
826,Childrens & Education Services,Asset Management,Centre Commissioned Servs,K08078,Supplies & Services           ,Grants and Subscriptions      ,DJ01,Grants                                  ,"18,281.25",18/12/2014,REV,ST MARKS FAMILY CENTRE        
827,Childrens & Education Services,Asset Management,Centre Commissioned Servs,K08078,Supplies & Services           ,Grants and Subscriptions      ,DJ01,Grants                                  ,"2,687.50",26/01/2015,REV,CARERS SUPPORT MERTON         
828,Childrens & Education Services,Asset Management,Centre Commissioned Servs,K08078,Supplies & Services           ,Grants and Subscriptions      ,DJ01,Grants                                  ,"7,312.50",09/01/2015,REV,COMMONSIDE COMMUNITY DEV TRUST
829,Childrens & Education Services,Asset Management,Centre Commissioned Servs,K08078,Supplies & Services           ,Grants and Subscriptions      ,DJ01,Grants                                  ,"18,750.00",26/01/2015,REV,CARERS SUPPORT MERTON         
830,Childrens & Education Services,Asset Management,Centre Commissioned Servs,K08078,Supplies & Services           ,Grants and Subscriptions      ,DJ01,Grants                                  ,"6,160.00",05/01/2015,REV,MERTON VOLUNTARY SERV COUNCIL 
831,Childrens & Education Services,Asset Management,Centre Commissioned Servs,K08078,Supplies & Services           ,Grants and Subscriptions      ,DJ01,Grants                                  ,"6,250.00",05/01/2015,REV,MERTON VOLUNTARY SERV COUNCIL 
832,Childrens & Education Services,Asset Management,Centre Commissioned Servs,K08078,Supplies & Services           ,Grants and Subscriptions      ,DJ01,Grants                                  ,"2,500.00",26/01/2015,REV,CARERS SUPPORT MERTON         
833,Childrens & Education Services,Asset Management,Centre Commissioned Servs,K08078,Supplies & Services           ,Grants and Subscriptions      ,DJ01,Grants                                  ,"8,762.50",15/01/2015,REV,BARNARDOS                     
834,Childrens & Education Services,Asset Management,Centre Commissioned Servs,K08078,Supplies & Services           ,Grants and Subscriptions      ,DJ01,Grants                                  ,"9,875.00",05/01/2015,REV,MERTON VOLUNTARY SERV COUNCIL 
835,Childrens & Education Services,Asset Management,Centre Commissioned Servs,K08078,Supplies & Services           ,Grants and Subscriptions      ,DJ01,Grants                                  ,"2,642.25",26/01/2015,REV,CARERS SUPPORT MERTON         
836,Childrens & Education Services,Asset Management,Centre Commissioned Servs,K08078,Supplies & Services           ,Grants and Subscriptions      ,DJ01,Grants                                  ,"7,321.50",06/01/2015,REV,JIGSAW4U                      
837,Childrens & Education Services,Asset Management,Centre Commissioned Servs,K08078,Supplies & Services           ,Grants and Subscriptions      ,DJ01,Grants                                  ,"4,500.00",26/01/2015,REV,CARERS SUPPORT MERTON         
838,Childrens & Education Services,Asset Management,Centre Commissioned Servs,K08078,Supplies & Services           ,Grants and Subscriptions      ,DJ01,Grants                                  ,"6,093.75",06/01/2015,REV,PRE SCHOOL LEARNING ALLIANCE  
839,Childrens & Education Services,Asset Management,Centre Commissioned Servs,K08078,Supplies & Services           ,Grants and Subscriptions      ,DJ01,Grants                                  ,"6,101.00",06/01/2015,REV,JIGSAW4U                      
840,Childrens & Education Services,Facilitating School Improvemnt,SSQ,K09077,Supplies & Services           ,Equip Furniture/Materials     ,DA58,Educn Matrls (Grant Aided)              ,"7,175.00",19/12/2014,REV,DOUBLESTRUCK LTD              
841,Childrens & Education Services,Facilitating School Improvemnt,SSQ,K09077,Supplies & Services           ,Services                      ,DF03,Consultants                             ,600,18/12/2014,REV,REDACTED
842,Childrens & Education Services,Facilitating School Improvemnt,SSQ,K09077,Supplies & Services           ,Services                      ,DF03,Consultants                             ,"1,160.00",18/12/2014,REV,HAPSFORD ASSOCIATES           
843,Childrens & Education Services,Facilitating School Improvemnt,SSQ,K09077,Supplies & Services           ,Expenses                      ,DH02,Conferences                             ,740,06/01/2015,REV,POPLAR PRIMARY SCHOOL         
844,Childrens & Education Services,Statutory & Regulatory Duties,Governor Support,K09081,Supplies & Services           ,Equip Furniture/Materials     ,DA58,Educn Matrls (Grant Aided)              ,"3,750.00",23/12/2014,REV,NGA                           
845,Childrens & Education Services,Asset Management,Stouthall,K09082,Premises Related Expenditure  ,Rents                         ,BC01,Miscellaneous Rents                     ,"4,125.00",17/12/2014,REV,ROBERT MORGAN & SONS LTD      
846,Childrens & Education Services,Asset Management,Stouthall,K09082,Premises Related Expenditure  ,Ground Maintenance Costs      ,BL03,Maintenance of Grounds                  ,600,31/12/2014,REV,A Y LANDSCAPES LTD            
847,Childrens & Education Services,Asset Management,Stouthall,K09082,Premises Related Expenditure  ,Ground Maintenance Costs      ,BL03,Maintenance of Grounds                  ,"1,000.00",31/12/2014,REV,A Y LANDSCAPES LTD            
848,Childrens & Education Services,Asset Management,Stouthall,K09082,Supplies & Services           ,Services                      ,DF03,Consultants                             ,"3,592.75",21/11/2014,REV,GVA GRIMLEY LLP               
849,Childrens & Education Services,Asset Management,Stouthall,K09082,Supplies & Services           ,Services                      ,DF03,Consultants                             ,"1,615.50",16/12/2014,REV,GVA GRIMLEY LLP               
850,Childrens & Education Services,Statutory & Regulatory Duties,Profess Develop Cntre,K09084,Premises Related Expenditure  ,Cleaning and Domestic Supplies,BH03,Cleaning Services                       ,"2,329.26",30/12/2014,REV,JULIUS RUTHERFOORD & CO LTD   
851,Childrens & Education Services,Sch Meals & Milk-Not Delegated,Free School Meals,K90002,Supplies & Services           ,Grants and Subscriptions      ,DJ80,Free School Meals                       ,"128,179.60",21/10/2014,REV,ISS COLLECTIONS LTD           
852,Childrens & Education Services,Sch Meals & Milk-Not Delegated,Free School Meals,K90002,Supplies & Services           ,Grants and Subscriptions      ,DJ80,Free School Meals                       ,"109,882.14",17/09/2014,REV,ISS COLLECTIONS LTD           
853,Childrens & Education Services,Sch Meals & Milk-Not Delegated,Free School Meals,K90002,Supplies & Services           ,Grants and Subscriptions      ,DJ80,Free School Meals                       ,"-87,309.52",21/10/2014,REV,ISS COLLECTIONS LTD           
854,Childrens & Education Services,Sch Meals & Milk-Not Delegated,Free School Meals,K90002,Supplies & Services           ,Grants and Subscriptions      ,DJ80,Free School Meals                       ,"153,488.21",19/12/2014,REV,ISS COLLECTIONS LTD           
855,Childrens & Education Services,Sch Meals & Milk-Not Delegated,Free School Meals,K90002,Supplies & Services           ,Grants and Subscriptions      ,DJ80,Free School Meals                       ,"18,486.90",21/10/2014,REV,ISS COLLECTIONS LTD           
856,Childrens & Education Services,Facilitating School Improvemnt,Virtual Schools - PEA's,K90016,Supplies & Services           ,Expenses                      ,DH12,Young Peoples Expenses                  ,672,30/11/2014,REV,FLEET EDUCATION SERVICES LTD  
857,Childrens & Education Services,Facilitating School Improvemnt,Virtual Schools - PEA's,K90016,Supplies & Services           ,Expenses                      ,DH12,Young Peoples Expenses                  ,"1,080.00",17/12/2014,REV,ARAGON PRIMARY SCHOOL         
858,Childrens & Education Services,Facilitating School Improvemnt,Virtual Schools - PEA's,K90016,Supplies & Services           ,Grants and Subscriptions      ,DJ01,Grants                                  ,600,21/01/2015,REV,CLIFTON HILL SCHOOL           
859,Childrens & Education Services,Facilitating School Improvemnt,Virtual Schools - PEA's,K90016,Supplies & Services           ,Grants and Subscriptions      ,DJ01,Grants                                  ,600,21/01/2015,REV,BECKMEAD SCHOOL               
860,Childrens & Education Services,Facilitating School Improvemnt,Virtual Schools - PEA's,K90016,Supplies & Services           ,Grants and Subscriptions      ,DJ01,Grants                                  ,600,21/01/2015,REV,GRAVENEY SCHOOL               
861,Childrens & Education Services,Facilitating School Improvemnt,Virtual Schools - PEA's,K90016,Supplies & Services           ,Grants and Subscriptions      ,DJ01,Grants                                  ,"3,500.00",30/01/2015,REV,FAIRWAY SCHL & CHILDREN'S CTR 
862,Childrens & Education Services,Facilitating School Improvemnt,Virtual Schools - PEA's,K90016,Supplies & Services           ,Grants and Subscriptions      ,DJ01,Grants                                  ,600,21/01/2015,REV,HAWES DOWN JUNIOR SCHOOL      
863,Childrens & Education Services,Facilitating School Improvemnt,Virtual Schools - PEA's,K90016,Supplies & Services           ,Grants and Subscriptions      ,DJ01,Grants                                  ,600,21/01/2015,REV,LINDEN LODGE SCHOOL           
864,Childrens & Education Services,Facilitating School Improvemnt,Virtual Schools - PEA's,K90016,Supplies & Services           ,Grants and Subscriptions      ,DJ01,Grants                                  ,600,21/01/2015,REV,HAWES DOWN INFANT SCHOOL      
865,Childrens & Education Services,Facilitating School Improvemnt,Virtual Schools - PEA's,K90016,Supplies & Services           ,Grants and Subscriptions      ,DJ01,Grants                                  ,600,21/01/2015,REV,CARSHALTON HIGH SCH FOR GIRLS 
866,Childrens & Education Services,Facilitating School Improvemnt,Virtual Schools - PEA's,K90016,Supplies & Services           ,Grants and Subscriptions      ,DJ01,Grants                                  ,600,21/01/2015,REV,CARSHALTON HIGH SCH FOR GIRLS 
867,Childrens & Education Services,Facilitating School Improvemnt,Virtual Schools - PEA's,K90016,Supplies & Services           ,Grants and Subscriptions      ,DJ01,Grants                                  ,600,21/01/2015,REV,FAIRWAY SCHL & CHILDREN'S CTR 
868,Childrens & Education Services,Facilitating School Improvemnt,Virtual Schools - PEA's,K90016,Supplies & Services           ,Grants and Subscriptions      ,DJ01,Grants                                  ,600,21/01/2015,REV,IFIELD COMMUNITY COLLEGE      
869,Childrens & Education Services,Facilitating School Improvemnt,Virtual Schools - PEA's,K90016,Supplies & Services           ,Grants and Subscriptions      ,DJ01,Grants                                  ,"3,600.00",27/01/2015,REV,ST MARY'S C OF E JUNIOR SCHOOL
870,Childrens & Education Services,Facilitating School Improvemnt,Virtual Schools - PEA's,K90016,Supplies & Services           ,Grants and Subscriptions      ,DJ01,Grants                                  ,600,21/01/2015,REV,WOODMANSTERNE PRIMARY SCHOOL  
871,Childrens & Education Services,Facilitating School Improvemnt,Virtual Schools - PEA's,K90016,Supplies & Services           ,Grants and Subscriptions      ,DJ01,Grants                                  ,600,21/01/2015,REV,STANLEY PARK HIGH SCHOOL      
872,Childrens & Education Services,Facilitating School Improvemnt,Virtual Schools - PEA's,K90016,Supplies & Services           ,Grants and Subscriptions      ,DJ01,Grants                                  ,600,21/01/2015,REV,THE NORTH SCHOOL              
873,Childrens & Education Services,Facilitating School Improvemnt,Virtual Schools - PEA's,K90016,Supplies & Services           ,Grants and Subscriptions      ,DJ01,Grants                                  ,600,21/01/2015,REV,LANGLEY PARK SCHOOL FOR BOYS  
874,Childrens & Education Services,Facilitating School Improvemnt,Virtual Schools - PEA's,K90016,Supplies & Services           ,Grants and Subscriptions      ,DJ01,Grants                                  ,600,21/01/2015,REV,CLIFTON HILL SCHOOL           
875,Childrens & Education Services,Facilitating School Improvemnt,Virtual Schools - PEA's,K90016,Supplies & Services           ,Grants and Subscriptions      ,DJ01,Grants                                  ,600,21/01/2015,REV,NORBURY MANOR & ENTER. COLLEGE
876,Childrens & Education Services,Facilitating School Improvemnt,Virtual Schools - PEA's,K90016,Supplies & Services           ,Grants and Subscriptions      ,DJ01,Grants                                  ,600,21/01/2015,REV,GLENTHORNE HIGH SCHOOL        
877,Childrens & Education Services,Facilitating School Improvemnt,Virtual Schools - PEA's,K90016,Supplies & Services           ,Grants and Subscriptions      ,DJ01,Grants                                  ,600,21/01/2015,REV,THE NORTH SCHOOL              
878,Childrens & Education Services,Facilitating School Improvemnt,Virtual Schools - PEA's,K90016,Supplies & Services           ,Grants and Subscriptions      ,DJ01,Grants                                  ,600,21/01/2015,REV,LINDEN LODGE SCHOOL           
879,Childrens & Education Services,Facilitating School Improvemnt,Virtual Schools - PEA's,K90016,Supplies & Services           ,Grants and Subscriptions      ,DJ01,Grants                                  ,600,21/01/2015,REV,CUDDINGTON COMMUNITY P. SCHOOL
880,Childrens & Education Services,Facilitating School Improvemnt,Virtual Schools - PEA's,K90016,Supplies & Services           ,Grants and Subscriptions      ,DJ01,Grants                                  ,600,21/01/2015,REV,CATERHAM HIGH SCHOOL          
881,Childrens & Education Services,Facilitating School Improvemnt,Virtual Schools - PEA's,K90016,Supplies & Services           ,Grants and Subscriptions      ,DJ01,Grants                                  ,600,21/01/2015,REV,THE WATERLOO SCHOOL           
882,Childrens & Education Services,Facilitating School Improvemnt,Virtual Schools - PEA's,K90016,Supplies & Services           ,Grants and Subscriptions      ,DJ01,Grants                                  ,600,21/01/2015,REV,GLENTHORNE HIGH SCHOOL        
883,Childrens & Education Services,Facilitating School Improvemnt,Virtual Schools - PEA's,K90016,Supplies & Services           ,Grants and Subscriptions      ,DJ01,Grants                                  ,600,21/01/2015,REV,NORTH DOWNS PRIMARY SCHOOL    
884,Childrens & Education Services,Facilitating School Improvemnt,Virtual Schools - PEA's,K90016,Supplies & Services           ,Grants and Subscriptions      ,DJ01,Grants                                  ,600,21/01/2015,REV,FURZEDOWN PRIMARY SCHOOL      
885,Childrens & Education Services,Facilitating School Improvemnt,Virtual Schools - PEA's,K90016,Supplies & Services           ,Grants and Subscriptions      ,DJ01,Grants                                  ,"1,200.00",16/01/2015,REV,LONDON ACADEMY                
886,Childrens & Education Services,Support for SEN Pupils,Non-Delegated Statements,K90024,Employees                     ,Direct Employee Expenses      ,AA17,Agency Staff & Casual Paymts            ,505,31/12/2014,REV,REDACTED
887,Childrens & Education Services,Support for SEN Pupils,Non-Delegated Statements,K90024,Supplies & Services           ,Services                      ,DF09,Miscellaneous Fees                      ,"8,333.33",09/12/2014,REV,BEYOND AUTISM                 
888,Childrens & Education Services,Support for SEN Pupils,Non-Delegated Statements,K90024,Supplies & Services           ,Services                      ,DF09,Miscellaneous Fees                      ,"1,650.00",26/01/2015,REV,RIVER COUNSELLING AGENCY      
889,Childrens & Education Services,Support for SEN Pupils,Non-Delegated Statements,K90024,Supplies & Services           ,Services                      ,DF09,Miscellaneous Fees                      ,"1,430.00",19/01/2015,REV,RIVER COUNSELLING AGENCY      
890,Childrens & Education Services,Support for SEN Pupils,Non-Delegated Statements,K90024,Supplies & Services           ,Services                      ,DF09,Miscellaneous Fees                      ,542.81,31/12/2014,REV,DEEPSTORE LTD                 
891,Childrens & Education Services,Support for SEN Pupils,Non-Delegated Statements,K90024,Supplies & Services           ,Services                      ,DF09,Miscellaneous Fees                      ,"1,650.00",12/01/2015,REV,RIVER COUNSELLING AGENCY      
892,Childrens & Education Services,Support for SEN Pupils,Non-Delegated Statements,K90024,Supplies & Services           ,Services                      ,DF11,Counsel's Fees                          ,975,24/12/2014,REV,REDACTED
893,Childrens & Education Services,Support for SEN Pupils,Non-Delegated Statements,K90024,Third Party Payments          ,Other Local Authorities       ,EB48,OLA PAYMENTS-STATEMENTS                 ,"7,826.36",22/01/2015,REV,ST CECILIA'S CATHOLIC P.SCHOOL
894,Childrens & Education Services,Support for SEN Pupils,Non-Delegated Statements,K90024,Third Party Payments          ,Other Local Authorities       ,EB48,OLA PAYMENTS-STATEMENTS                 ,"5,810.58",13/01/2015,REV,ABBEY PRIMARY SCHOOL          
895,Childrens & Education Services,Support for SEN Pupils,Non-Delegated Statements,K90024,Third Party Payments          ,Other Local Authorities       ,EB48,OLA PAYMENTS-STATEMENTS                 ,981.34,16/01/2015,REV,ST PHILOMENA'S SCHOOL         
896,Childrens & Education Services,Support for SEN Pupils,Non-Delegated Statements,K90024,Third Party Payments          ,Other Local Authorities       ,EB48,OLA PAYMENTS-STATEMENTS                 ,"3,524.66",16/01/2015,REV,ST BERNADETTE CATHOLIC J.SCH  
897,Childrens & Education Services,Support for SEN Pupils,Non-Delegated Statements,K90024,Third Party Payments          ,Other Local Authorities       ,EB48,OLA PAYMENTS-STATEMENTS                 ,"118,327.45",14/01/2015,REV,WANDSWORTH CORPORATION        
898,Childrens & Education Services,Support for SEN Pupils,Non-Delegated Statements,K90024,Third Party Payments          ,Other Local Authorities       ,EB48,OLA PAYMENTS-STATEMENTS                 ,"3,794.00",16/01/2015,REV,BRIT SCHOOL                   
899,Childrens & Education Services,Support for SEN Pupils,Non-Delegated Statements,K90024,Third Party Payments          ,Other Local Authorities       ,EB50,OLA-Payments - Day Schools              ,"3,780.02",28/10/2014,REV,SURREY COUNTY COUNCIL         
900,Childrens & Education Services,Support for SEN Pupils,Non-Delegated Statements,K90024,Third Party Payments          ,Other Local Authorities       ,EB50,OLA-Payments - Day Schools              ,"9,764.10",13/01/2015,REV,THE LIVITY SCHOOL             
901,Childrens & Education Services,Support for SEN Pupils,Non-Delegated Statements,K90024,Third Party Payments          ,Other Local Authorities       ,EB50,OLA-Payments - Day Schools              ,"3,849.99",04/11/2014,REV,WANDLE VALLEY SCHOOL          
902,Childrens & Education Services,Support for SEN Pupils,Non-Delegated Statements,K90024,Third Party Payments          ,Other Local Authorities       ,EB50,OLA-Payments - Day Schools              ,"5,000.00",30/01/2015,REV,WANDLE VALLEY SCHOOL          
903,Childrens & Education Services,Support for SEN Pupils,Non-Delegated Statements,K90024,Third Party Payments          ,Other Local Authorities       ,EB51,OLA Payments - Special Units            ,"7,475.33",13/01/2015,REV,FORESTERS PRIM'Y SCH SPEC UNIT
904,Childrens & Education Services,Support for SEN Pupils,Non-Delegated Statements,K90024,Third Party Payments          ,Other Establishments          ,EG01,Alternative SEN Provision               ,578,02/12/2014,REV,REDACTED
905,Childrens & Education Services,Support for SEN Pupils,Non-Delegated Statements,K90024,Third Party Payments          ,Other Establishments          ,EG01,Alternative SEN Provision               ,"1,281.00",02/12/2014,REV,REDACTED
906,Childrens & Education Services,Support for SEN Pupils,Non-Delegated Statements,K90024,Third Party Payments          ,Other Establishments          ,EG01,Alternative SEN Provision               ,"1,425.90",31/12/2014,REV,HA TUTORS LTD                 
907,Childrens & Education Services,Support for SEN Pupils,Non-Delegated Statements,K90024,Third Party Payments          ,Other Establishments          ,EG01,Alternative SEN Provision               ,"2,700.00",15/01/2015,REV,REDACTED
908,Childrens & Education Services,Support for SEN Pupils,Non-Delegated Statements,K90024,Third Party Payments          ,Other Establishments          ,EG01,Alternative SEN Provision               ,"2,961.25",31/12/2014,REV,HA TUTORS LTD                 
909,Childrens & Education Services,Support for SEN Pupils,Non-Delegated Statements,K90024,Third Party Payments          ,Other Establishments          ,EG01,Alternative SEN Provision               ,"1,855.00",31/12/2014,REV,HA TUTORS LTD                 
910,Childrens & Education Services,Support for SEN Pupils,Non-Delegated Statements,K90024,Third Party Payments          ,Other Establishments          ,EG01,Alternative SEN Provision               ,945,31/12/2014,REV,HA TUTORS LTD                 
911,Childrens & Education Services,Support for SEN Pupils,Non-Delegated Statements,K90024,Third Party Payments          ,Other Establishments          ,EG01,Alternative SEN Provision               ,"1,422.50",31/12/2014,REV,HA TUTORS LTD                 
912,Childrens & Education Services,Support for SEN Pupils,Non-Delegated Statements,K90024,Third Party Payments          ,Other Establishments          ,EG50,Ind Day Schs Payments                   ,"5,319.00",08/12/2014,REV,LVS HASSOCKS                  
913,Childrens & Education Services,Support for SEN Pupils,Non-Delegated Statements,K90024,Third Party Payments          ,Other Establishments          ,EG50,Ind Day Schs Payments                   ,"5,000.00",25/11/2014,REV,RADIUS SPECIAL EDUCATION TRUST
914,Childrens & Education Services,Support for SEN Pupils,Non-Delegated Statements,K90024,Third Party Payments          ,Other Establishments          ,EG50,Ind Day Schs Payments                   ,"4,244.66",17/12/2014,REV,THE LINK SECONDARY SCHOOL     
915,Childrens & Education Services,Support for SEN Pupils,Non-Delegated Statements,K90024,Third Party Payments          ,Other Establishments          ,EG50,Ind Day Schs Payments                   ,"3,603.96",31/12/2014,REV,RADIUS SPECIAL EDUCATION TRUST
916,Childrens & Education Services,Support for SEN Pupils,Non-Delegated Statements,K90024,Third Party Payments          ,Other Establishments          ,EG50,Ind Day Schs Payments                   ,"11,578.93",06/01/2015,REV,FACE YOUTH                    
917,Childrens & Education Services,Support for SEN Pupils,Non-Delegated Statements,K90024,Third Party Payments          ,Other Establishments          ,EG50,Ind Day Schs Payments                   ,"6,220.00",22/12/2014,REV,COLLINGHAM COLLEGE            
918,Childrens & Education Services,Support for SEN Pupils,Non-Delegated Statements,K90024,Third Party Payments          ,Other Establishments          ,EG50,Ind Day Schs Payments                   ,"11,578.93",06/01/2015,REV,FACE YOUTH                    
919,Childrens & Education Services,Support for SEN Pupils,Non-Delegated Statements,K90024,Third Party Payments          ,Other Establishments          ,EG50,Ind Day Schs Payments                   ,"17,711.00",31/12/2014,REV,RADIUS SPECIAL EDUCATION TRUST
920,Childrens & Education Services,Support for SEN Pupils,Non-Delegated Statements,K90024,Third Party Payments          ,Other Establishments          ,EG50,Ind Day Schs Payments                   ,"46,576.00",15/12/2014,REV,PAPILLON HOUSE SCHOOL         
921,Childrens & Education Services,Support for SEN Pupils,Non-Delegated Statements,K90024,Third Party Payments          ,Other Establishments          ,EG50,Ind Day Schs Payments                   ,"3,322.67",17/12/2014,REV,THE LINK SECONDARY SCHOOL     
922,Childrens & Education Services,Support for SEN Pupils,Non-Delegated Statements,K90024,Third Party Payments          ,Other Establishments          ,EG50,Ind Day Schs Payments                   ,"18,615.00",10/12/2014,REV,PHILPOTS MANOR SCHOOL         
923,Childrens & Education Services,Support for SEN Pupils,Non-Delegated Statements,K90024,Third Party Payments          ,Other Establishments          ,EG50,Ind Day Schs Payments                   ,600.66,31/12/2014,REV,RADIUS SPECIAL EDUCATION TRUST
924,Childrens & Education Services,Support for SEN Pupils,Non-Delegated Statements,K90024,Third Party Payments          ,Other Establishments          ,EG50,Ind Day Schs Payments                   ,"7,816.52",15/12/2014,REV,CANBURY SCHOOL LIMITED        
925,Childrens & Education Services,Support for SEN Pupils,Non-Delegated Statements,K90024,Third Party Payments          ,Other Establishments          ,EG50,Ind Day Schs Payments                   ,"12,376.75",16/12/2014,REV,THE CHILDRENS TRUST           
926,Childrens & Education Services,Support for SEN Pupils,Non-Delegated Statements,K90024,Third Party Payments          ,Other Establishments          ,EG50,Ind Day Schs Payments                   ,"85,181.33",31/12/2014,REV,RADIUS SPECIAL EDUCATION TRUST
927,Childrens & Education Services,Behavioural Support,Language & Learning Service,K90025,Supplies & Services           ,Equip Furniture/Materials     ,DA58,Education Materials                     ,802.27,15/01/2015,REV,THE TRAINING SHOP             
928,Childrens & Education Services,Behavioural Support,Language & Learning Service,K90025,Supplies & Services           ,Equip Furniture/Materials     ,DA58,Education Materials                     ,"1,559.22",09/01/2015,REV,INCENTIVE PLUS C/O NBN INT    
929,Childrens & Education Services,Behavioural Support,Language & Learning Service,K90025,Supplies & Services           ,Equip Furniture/Materials     ,DA58,Education Materials                     ,682.5,29/01/2015,REV,ELKLAN TRAINING LTD           
930,Childrens & Education Services,Behavioural Support,Language & Learning Service,K90025,Supplies & Services           ,Equip Furniture/Materials     ,DA58,Education Materials                     ,"1,716.00",21/01/2015,REV,STASS PUBLICATION LTD         
931,Childrens & Education Services,Behavioural Support,Language & Learning Service,K90025,Supplies & Services           ,Equip Furniture/Materials     ,DA58,Education Materials                     ,682.5,09/01/2015,REV,H P GIBSON & SONS LTD         
932,Childrens & Education Services,Behavioural Support,Language & Learning Service,K90025,Supplies & Services           ,Prntng Stnry Gen Off Exp      ,DE03,Stationery                              ,951.6,23/01/2015,REV,OFFICE DEPOT UK LTD           
933,Childrens & Education Services,Behavioural Support,Sensory Team,K90026,Supplies & Services           ,Services                      ,DF73,Advocacy & Mentoring Service            ,"2,151.80",06/01/2015,REV,MERTON VISION                 
934,Childrens & Education Services,Admissions & Planning Sch Prov,Retained Schools Budgets,K90030,Supplies & Services           ,Prntng Stnry Gen Off Exp      ,DE22,Marketing                               ,"2,450.00",31/12/2014,REV,GREBOT DONNELLY  ASSOCIAT. LTD
935,Childrens & Education Services,Admissions & Planning Sch Prov,Retained Schools Budgets,K90030,Supplies & Services           ,Prntng Stnry Gen Off Exp      ,DE22,Marketing                               ,"15,450.00",30/11/2014,REV,GREBOT DONNELLY  ASSOCIAT. LTD
936,Childrens & Education Services,Admissions & Planning Sch Prov,Retained Schools Budgets,K90030,Supplies & Services           ,Services                      ,DF02,Misc Advertising/Publicity              ,"2,227.50",03/11/2014,REV,NEWSQUEST (LONDON)LTD         
937,Childrens & Education Services,Del. Ind Secondary Sch Budgets,Schools Delegated Budget,K90032,Employees                     ,Indirect Employee Expenses    ,AB57,External Training Costs                 ,600,20/02/2012,REV,LONDON BOROUGH OF SUTTON      
938,Childrens & Education Services,Facilitating School Improvemnt,SSQ CORE OFFER (DSG),K90040,Supplies & Services           ,Services                      ,DF03,Consultants                             ,500,17/12/2014,REV,WIDEHORIZONS OUTDOOR EDUC TRUS
939,Childrens & Education Services,Facilitating School Improvemnt,SSQ CORE OFFER (DSG),K90040,Supplies & Services           ,Services                      ,DF03,Consultants                             ,"2,050.00",18/12/2014,REV,REDACTED
